Workbook

Sheet Datos de identificación 2024
E1: Subsecretaría de Educación Básica Dirección General de Desarrollo Curricular Dirección de Fortalecimiento Curricular para la Formación Personal y Social en la Educación Básica Educación Especial
A6: ANEXO 3 PLAN ANUAL DE TRABAJO (PAT) 2024 Programa Fortalecimiento de los Servicios de Educación Especial (PFSEE)
A7: Entidad: | D7: DURANGO
A9: 1. Datos de la Persona Coodinadora Local del PFSEE
A11: Nombre: | D11: M.P.O.E. J. CRUZ CONTRERAS MORENO
A12: Cargo: | D12: COORDINADOR DEL PROGRAMA FORTALECIMIENTO DE LOS SERVICIOS DE EDUCACIÓN ESPECIAL DURANGO
A13: Domicilio de la oficina: | D13: Blvd. Domingo Arrieta 1700, Fracc. Domingo Arrieta CP. 34180 Durango Dgo.
A17: Correo electrónico: | D17: jcruz.contreras@durango.gob.mx
A18: Teléfono y extensión: | D18: 6181376259 CISCO 76259
A19: Celular: | D19: 6182970022

Sheet Instrucciones para el llenado
S1: Subsecretaría de Educación Básica Dirección General de Desarrollo Curricular Dirección de Fortalecimiento Curricular para la Formación Personal y Social en la Educación Básica Educación Especial
A6: Sírvase de las siguientes recomendaciones para el llenado de su formato PAT
A8: Este archivo requiere guardarse como "Libro de Excel habilitado para macros".
A10: 1. Previamente, el formato está diseñado para imprimirse bajo los siguientes criterios, sin embargo, puede hacer las adecuaciones que considere para que las tablas se impriman completas hoja por hoja:
B12: o Formato horizontal
B13: o Tamaño Carta
B14: o Márgenes estrechos
B15: o Escalado 40%
A17: 2. Una vez llenadas las pestañas "Estrategia 2024" y "Servicios EE", se pasan en automático los servicios que fueron focalizados en cada tabla, así como el recurso proyectado para cada criterio. Lo anterior, para facilitar el llenado a partir de estos datos.
A20: 3. La celda "Remanente" es un apoyo para el llenado del documento, ahí se va actualizando el recurso que no se está planeando con las acciones propuestas. Para la entrega final, el remanente deberá quedar en ceros.
A23: 4. En las pestañas correspondientes a "Acciones académicas", se despliegan las siguientes opciones. Favor de no escribir, únicamente seleccionar del desplegable:
B25: Diplomado | D25: 2do | F25: Encuentro | H25: Arrendamiento de salas / salones
B26: Curso | D26: 3ro | F26: Curso | H26: Compra de recursos didácticos
B27: Taller | D27: 4to | F27: Taller | H27: Reproducción de materiales
B28: Conferencia | F28: Reunión | H28: Pago a conferencistas o talleristas
B29: Asesoría | H29: Contratación de plataforma digital
H30: Pago de viáticos para asistentes
H31: Pago de traslados para asistentes
H32: Coffee break
H33: Compra de papelería
H34: Renta de equipo de audio y/o video
H35: Renta de mobiliario
H36: N/A
A37: 4. En las pestañas correspondientes a "Atención complementaria", se despliegan las siguientes opciones. Favor de no escribir, únicamente seleccionar del desplegable:
B39: Académica | D39: 2do | F39: Campaña | H39: Arrendamiento de salas / salones
B40: Artística | D40: 3ro | F40: Feria | H40: Compra de recursos didácticos
B41: Deportiva | D41: 4to | F41: Evento | H41: Compra de material deportivo y/o artístico
B42: Rehabilitadora | H42: Reproducción de materiales
B43: Desarrollo de habilidades socioafectivas | H43: Pago a especialistas
B44: Para contribuir al diagnóstico | H44: Contratación de plataforma digital
H45: Pago de viáticos para asistentes
H46: Pago de traslados para asistentes
H47: Compra de Box lunch
H48: Compra de papelería
H49: Adquisición de uniformes
H50: Renta de vestuario
H51: Renta de material didáctico y/o deportivo
H52: Diseño y producción de lonas
H53: Renta de equipo de audio y/o video
H54: Renta de mobiliario
H55: N/A
A56: 5. En la pestaña correspondiente a "Equipamiento específico (DIS)", se despliegan las siguientes opciones. Favor de no escribir, únicamente seleccionar del desplegable:
B58: Material didáctico concreto | F58: Especializados en atención educativa | H58: Para la identificación de BAP | L58: Braille | S58: Software
B59: Esquemas o mapas en relieve | D59: 2do | F59: Especializados en discapacidad | H59: Para la determinación de apoyos específicos | L59: Lectura fácil | S59: Hardware
B60: Regletas y punzón | D60: 3ro | F60: Especializados en ciencia | H60: Instrumentos de evaluación en línea | L60: Audiolibro | S60: Equipo de cómputo
B61: Caja aritmética | D61: 4to | F61: Especializados en artes | L61: Videos con animaciones | S61: Cañón
B62: Ábaco Cramer | F62: En formatos accesibles | L62: Videos con interpretación en LSM | S62: Impresora
B63: Tableros de comunicación | F63: De literatura infantil | L63: Videos con closed caption | S63: Enmicadora
B64: Regletas cuisenaire | F64: De literatura juvenil | L64: Tecnología de bajo costo | S64: Tableta electrónica
B65: Juegos de estrategia adaptados | F65: Otro (especifique) | L65: Otro (especifique) | S65: Equipo para producciones audiovisuales de NNAJ
B66: Material para ciencia | S66: Reproductor de audio
B67: Equipo deportivo | S67: Reproductor de video
B68: Instrumentos musicales | S68: Equipo de asistencia tecnológica
B69: Paquetes con diversos materiales | H69: Para el desplazamiento | S69: Tecnología adaptada
B70: Otro (especifique) | H70: Para la orientación | S70: Impresora en Braille
H71: Para la comunicación | S71: Máquina Perkins
S72: Calculadora parlante
S73: Magnificador de pantalla
S74: Contratación de plataforma digital
S75: Material para robótica
S76: Otro (especifique)
A77: 6. En la pestaña correspondiente a "Equipamiento específico (AS)", se despliegan las siguientes opciones. Favor de no escribir, únicamente seleccionar del desplegable:
B79: Juegos de estrategia | F79: Especializados en atención educativa | H79: Inteligencia | J79: Software
B80: Material para ciencia | D80: 2do | F80: Especializados en aptitudes sobresalientes | H80: Creatividad | J80: Hardware
B81: Material para artes | D81: 3ro | F81: Especializados en ciencia | H81: Habilidades sociales | J81: Equipo de cómputo
B82: Equipo deportivo | D82: 4to | F82: Especializados en artes | H82: Habilidades emocionales | J82: Cañón
B83: Instrumentos musicales | F83: De literatura infantil | H83: Insumos de papelería para reproducción | J83: Impresora
B84: Paquetes con diversos materiales | F84: De literatura juvenil | H84: Instrumentos de evaluación en línea | J84: Tableta electrónica
B85: Otro (especifique) | F85: Otro (especifique) | J85: Equipo para producciones audiovisuales realizado por NNAJ
J86: Reproductor de audio
J87: Reproductor de video
J88: Material para robótica
J89: Enmicadora
J90: Contratación de plataforma digital
J91: Otro (especifique)
A93: 7. La cantidad a distribuir se refiere al total de material que se va a adquirir y distribuir, es decir 15 regletas, 10 equipos deportivos, etc.
A96: 8. El trimestre se refiere a cuándo se empezará la actividad y cuándo se concluye. Favor de seleccionarlo del desplegable y, si la actividad se realizará en un solo trimestre, se escribe lo mismo en las dos celdas.
A99: 9. Se solicita que, en la medida de lo posible, se diversifique el propósito educativo reportado para cada actividad/adquisición.
A102: 10. Para recabar las firmas de "Autorización", si en su entidad no hay subsistemas, podrá eliminar una de las tablas correspondientes a las firmas de los Responsables de Educación Especial.
A105: 11. Se recomienda que, en caso de no requerir todas las tablas que aparecen a continuación, sea porque no va a realizar acciones en ese criterio de gasto, o no se va a beneficiar a todos los tipos de servicios que se presentan, imprima únicamente lo necesario (es decir, las tablas que contengan algún tipo de información).
A108: 12. En caso de requerir mayor número de filas para reportar más actividades, podrá hacerlo siguiendo la ruta: Inicio / Celdas / Insertar filas. O bien, haciendo click derecho en el encabezado de la fila.
A111: 13. Solicitamos su apoyo para que este formato no sea desbloqueado, agregado o eliminado columnas, ni fórmulas; de lo contrario, se le solicitará que se vuelva a recabar la información en un formato en limpio.
A114: 14. Favor de no eliminar esta pestaña.

Sheet Priorización 2024
E1: Subsecretaría de Educación Básica Dirección General de Desarrollo Curricular Dirección de Fortalecimiento Curricular para la Formación Personal y Social en la Educación Básica Educación Especial
A7: Situación de lo programado en 2023 para los logros del diagnóstico de servicios de educación especial en la entidad
A9: Fortalecimiento 2024
A10: Criterios de selección y priorización de los servicios de educación especial. (Puede seleccionar más de una opción)
A12: Seleccione los criterios de priorización
A13: Servicios de nueva creación
A14: Servicios con mayores necesidades de acuerdo con los criterios establecidos en el diagnóstico.
A15: Servicios que atienden a población con discapacidad y/o con aptitudes sobresalientes que se encuentren en doble situación de vulnerabilidad, como indígena, afrodescendiente y migrante.
A16: Servicios que brinden actualización a docentes de escuelas de Educación Básica (Componente 1).
A17: [Seleccione]
A19: Describa los criterios de dicha priorización
A20: 1. Servicios de nueva creación: contamos con dos servicios de USAER de nueva creación, los cuales requieren equipamiento y fortalecimiento académico. 2. Servicios con mayores necesidades de acuerdo con los criterios establecidos en el diagnóstico: en coordinación con los supervisores de las zonas escolares se realiza un análisis de los centros que han sido menos beneficiados por el programa, priorizándolos en el presente ejercicio. 3. Servicios que brinden actualización a docentes de escuelas de Educación Básica: Los servicios de Educación Especial en el estado se encuentran muy dispersos geográficamente y debido a los frecuentes cambios de adscripción, los agentes educativos requieren de actualización constante y pertienente a las necesidades de la población atendida.
A28: Describa de qué manera se satisfacen las necesidades identificadas en su diagnóstico con las acciones programadas para beneficiar a población con discapacidad | D28: Con la distribución de acciones diseñada para este ejercicio, se busca que todos los agentes que participan en el proceso de enseñanza aprendizaje se fortalezcan, de tal manera que el primer frente es conformado con acciones que fortalecen la función de los agentes educativos, con diplomados, cursos/talleres y conferencias acerca de temáticas que se detectaron como áreas de mejora en el diagnóstico del presente año. Entre ellas, las temática de autismo, la neuroeducación, así como las metodologías específicas pertinentes para la atención de cada uno de ellos; otro aspecto que se torna importante es el abordaje del plan y programas de estudio vigentes, ello se ha convertido en un reto importante para los docentes en general, así mismo, para los docentes de educación especial quienes tienen como reto el realizar una metodología diversificada y pertinente a las características y necesidades educativas específicas de los alumnos en el entorno en donde se desenvuelven. El tema de la enseñanza y aprendizaje en el aspecto lógico matemático ha sido un área que denota oportunidad de mejora en nuestros agentes educativos, por ello también se propone una temática que aborde y favorezca a los docentes. Por último, la parte de los trastornos psicosociales se ha mostrado presente en los entornos de la entidad y las comunidades atendidas y el abordaje pertinente, resulta básico dado que son manifestaciones que requieren técnicas precisas que sólo a través de una capacitación pertinente se logra atender de una manera adecuada. Por otra parte, la atención directa a los alumnos es importante, en este sentido, la atención complementaria colabora en la minimización y/o derribo de las BAP que enfrentan los alumnos atendidos; por ello se programaron acciones que beneficien a los alumnos directamente, en el ámbito físico, cultural y social como el encuentro deportivo y la feria inclusiva, los cuales buscan la convivencia entre pares de los alumnos, el desarrollo de sus capacidades y por supuesto la convivencia entre la comunidad escolar. En cuanto a la atención pertinente se refiere, no se pueden dejar de lado los medios para llevarlo a cabo, y los centros educativos presentan año con año necesidades de equipamiento que coadyuven en proceso de adaptación y aprendizaje de los alumnos, equipando los talleres de formación laboral, las aulas y los materiales necesarios para una atención óptima de los alumnos.
A43: Describa de qué manera se satisfacen las necesidades identificadas en su diagnóstico con las acciones programadas para beneficiar a población con aptitudes sobresalientes | D43: Los alumnos con Aptitudes sobresalientes AS representan un gran reto a todas las figuras que se encargan de la detección, diagnóstico, atención y enriquecimiento, por ello, se proponen actividades para fortalecer a los agentes educativos como un diplomado para la detección y atención de alumnos AS, un intercambio de experiencias exitosas en el proceso de detección y atención de dichos alumnos, un curso de enriquecimiento escolar, un taller de enriquecimiento a través del arte, la ciencia y el manejo de las emociones, tratando de abordar desde diferentes dimensiones el desarrollo y atención adecuada de estos alumnos. En las actividades complementarias se proponen dos actividades que creemos enriquecerán a los alumnos y el desarrollo de sus capacidades con una feria de enriquecimiento y unas caravanas de la ciencia, buscando impactar en la práctica dentro de la escuela y de igual manera en la comunidad en donde se desenvuelven. Por último y abonando también la parte del equipamiento, se busca dotar de instrumentos para la detección y atención a los alumnos.

Sheet Estrategia 2024
S1: Subsecretaría de Educación Básica Dirección General de Desarrollo Curricular Dirección de Fortalecimiento Curricular para la Formación Personal y Social en la Educación Básica Educación Especial
A6: Esquema de la distribución presupuestal que se planea ejercer en cada uno de los criterios de los 3 componentes. Favor de llenar sólo la información del monto asignado por Convenio, los GOL, la distribución por tipo de población y la planeación por tipo de población (fondo de celda color lavanda), el resto se calcula solo.
H8: Monto asignado por Convenio Marco | P8: 11765685
B12: POR TIPO DE GASTO | E12: Monto para acciones sustantivas: | S12: Monto para Gastos de Operación Local:
E14: =P8-S14 -> 11412714.45 | L14: =IFERROR((E14/P8),0) -> 0.97 | S14: 352970.55 | X14: =IFERROR((S14/P8),0) -> 0.03
S16: =IF(X14>3%,"El porcentaje es mayor que el permitido en RO","El porcentaje esta dentro de lo permitido en RO") -> El porcentaje esta dentro de lo permitido en RO
B19: POR POBLACIÓN
D20: Para discapacidad: | K20: Para aptitudes sobresalientes: | T20: =+P22+H22 -> 1
E22: 6847628.67 | H22: =IFERROR((E22/E14),0) -> 0.6 | I22: % | M22: 4565085.78 | P22: =IFERROR((M22/E14),0) -> 0.4
T23: =IF((H22+P22)=100%,"La distribución es correcta","verificar porcentajes para que sume a 100%") -> La distribución es correcta
B27: POR COMPONENTE EN DIS | D27: Acciones planeadas para beneficiar a población con discapacidad | S27: =+H33+P33+Z33 -> 1 | T27: =IF((H33+P33+Z33)>100%,"El porcentaje excede el 100%","verificar porcentajes para que sume a 100%") -> verificar porcentajes para que sume a 100%
D29: Acciones académicas para agentes educativos en temas de discapacidad (hasta 50%) | K29: Acciones de atención complementaria para estudiantes con discapacidad (hasta 50%) | T29: Equipamiento específico en beneficio de estudiantes con discapacidad (hasta 80%)
D31: Monto disponible | E31: =E22*0.5 -> 3423814.335 | H31: hasta 50% | K31: Monto disponible | M31: =E22*0.5 -> 3423814.335 | P31: hasta 50% | T31: Monto disponible | V31: =E22*0.8 -> 5478102.936 | Z31: hasta 80%
D33: Monto comprometido | E33: =SUM(H57:J58) -> 1022950 | H33: =IFERROR((E33/E22),0) -> 0.1493874813 | I33: % | K33: Monto comprometido | M33: =SUM(H62:J63) -> 1161443.54 | P33: =IFERROR((M33/E22),0) -> 0.1696125178 | T33: Monto comprometido | V33: =SUM(H67:J77) -> 4663235.13 | Z33: =IFERROR((V33/E22),0) -> 0.6810000008
D34: =IF(H33>50%,"El porcentaje es mayor que el permitido en RO","El porcentaje esta dentro de lo permitido en RO") -> El porcentaje esta dentro de lo permitido en RO | K34: =IF(P33>50%,"El porcentaje es mayor que el permitido en RO","El porcentaje esta dentro de lo permitido en RO") -> El porcentaje esta dentro de lo permitido en RO | T34: =IF(Z33>80%,"El porcentaje es mayor que el permitido en RO","El porcentaje esta dentro de lo permitido en RO") -> El porcentaje esta dentro de lo permitido en RO
B36: POR COMPONENTE EN AS
D37: Acciones planeadas para beneficiar a población con aptitudes sobresalientes | S37: =+H43+P43+Z43 -> 1 | T37: =IF((H43+P43+Z43)>100%,"El porcentaje excede el 100%","verificar porcentajes para que sume a 100%") -> verificar porcentajes para que sume a 100%
D39: Acciones académicas para agentes educativos en temas de aptitudes sobresalientes (hasta 50%) | K39: Acciones de atención complementaria para estudiantes con aptitudes sobresalientes (hasta 50%) | T39: Equipamiento específico en beneficio de estudiantes con aptitudes sobresalientes (hasta 80%)
D41: Monto disponible | E41: =M22*0.5 -> 2282542.89 | H41: hasta 50% | K41: Monto disponible | M41: =M22*0.5 -> 2282542.89 | P41: hasta 50% | T41: Monto disponible | V41: =M22*0.8 -> 3652068.624 | Z41: hasta 80%
D43: Monto comprometido | E43: =SUM(W57:Y58) -> 1002770 | H43: =IFERROR((E43/M22),0) -> 0.2196607136 | I43: % | K43: Monto comprometido | M43: =SUM(W62:Y63) -> 1069697.26 | P43: =IFERROR((M43/M22),0) -> 0.2343213932 | T43: Monto comprometido | V43: =SUM(W67:Y71) -> 2492618.52 | Z43: =IFERROR((V43/M22),0) -> 0.5460178932
D44: =IF(H43>50%,"El porcentaje es mayor que el permitido en RO","El porcentaje esta dentro de lo permitido en RO") -> El porcentaje esta dentro de lo permitido en RO | K44: =IF(P43>50%,"El porcentaje es mayor que el permitido en RO","El porcentaje esta dentro de lo permitido en RO") -> El porcentaje esta dentro de lo permitido en RO | T44: =IF(Z43>80%,"El porcentaje es mayor que el permitido en RO","El porcentaje esta dentro de lo permitido en RO") -> El porcentaje esta dentro de lo permitido en RO
B48: BALANCE FINAL | D48: Remanente de DIS | G48: =+E22-E33-M33-V33 -> 0 | K48: Remanente de AS | O48: =+M22-E43-M43-V43 -> 0 | U48: =+E14-O48-G48 -> 11412714.45
D49: =IF(G48=0,"Su distribución coincide con el subsidio para DIS","revise su planeación") -> Su distribución coincide con el subsidio para DIS | K49: =IF(O48=0,"Su distribución coincide con el subsidio para AS","revise su planeación") -> Su distribución coincide con el subsidio para AS | U49: =IF((U48-E14)=0,"Su distribución coincide con el subsidio total","revise su planeación") -> Su distribución coincide con el subsidio total
A53: Planeación de acciones para beneficio de estudiantes con discapacidad | R53: Planeación de acciones académicas en temas de aptitudes sobresalientes
A55: Componente 1. Acciones académicas para agentes educativos en temas de discapacidad | R55: Componente 1. Acciones académicas para agentes educativos en temas de aptitudes sobresalientes
A56: Criterio | G56: Monto comprometido | L56: % respecto al monto autorizado | R56: Criterio | V56: Monto comprometido | AA56: % respecto al monto autorizado
A57: 1.1 Acciones de actualización y fortalecimiento académico de agentes educativos en temas de discapacidad. | G57: $ | H57: 1022950 | L57: =IFERROR((H57/$E$31),0) -> 0.2987749626 | R57: 1.1 Acciones de actualización y fortalecimiento académico de agentes educativos en temas de aptitudes sobresalientes. | V57: $ | W57: 880670 | AA57: =IFERROR((W57/$E$41),0) -> 0.3858284564
A58: 1.2 Encuentros, cursos, talleres y/o reuniones entre madres y padres de familia o tutores de estudiantes con discapacidad para la conformación y operación de sus redes de apoyo. | D58: 1.2 Acciones orientadas a sensibilizar, promover, difundir y, desarrollar en la comunidad escolar una cultura inclusiva | G58: $ | H58: 0 | L58: =IFERROR((H58/$E$31),0) -> 0 | R58: 1.2 Encuentros, cursos, talleres y/o reuniones entre madres y padres de familia o tutores de estudiantes con aptitudes sobresalientes para la conformación y operación de sus redes de apoyo. | S58: 1.2 Acciones orientadas a sensibilizar, promover, difundir y, desarrollar en la comunidad escolar una cultura inclusiva | V58: $ | W58: 122100 | AA58: =IFERROR((W58/$E$41),0) -> 0.05349297073
A60: Componente 2. Acciones de atención complementaria para estudiantes con discapacidad | R60: Componente 2. Acciones de atención complementaria para estudiantes con aptitudes sobresalientes
A61: Criterio | G61: Monto comprometido | L61: % respecto al monto autorizado | R61: Criterio | V61: Monto comprometido | AA61: % respecto al monto autorizado
A62: 2.1 Acciones orientadas a la intervención directa y la atención complementaria: académica, artística, deportiva, rehabilitadora, desarrollo de habilidades socioafectivas y/o que contribuyan en el diagnóstico de las y los estudiantes con discapacidad. | G62: $ | H62: 0 | L62: =IFERROR((H62/$M$31),0) -> 0 | R62: 2.1 Acciones orientadas a la intervención directa y la atención complementaria: académica, artística, deportiva, rehabilitadora, desarrollo de habilidades socioafectivas y/o que contribuyan en el diagnóstico de las y los estudiantes con aptitudes sobresalientes. | V62: $ | W62: 1069697.26 | AA62: =IFERROR((W62/$M$41),0) -> 0.4686427864
A63: 2.2 Acciones orientadas a que las y los estudiantes con discapacidad pongan en práctica las habilidades académicas, artísticas, deportivas, para la vida y/o laborales y que promuevan la sensibilización, promoción, difusión y desarrollo en la comunidad escolar una cultura inclusiva, a través de campañas, ferias y eventos. | D63: 1.2 Acciones orientadas a sensibilizar, promover, difundir y, desarrollar en la comunidad escolar una cultura inclusiva | G63: $ | H63: 1161443.54 | L63: =IFERROR((H63/$M$31),0) -> 0.3392250357 | R63: 2.2 Acciones orientadas a que las y los estudiantes con aptitudes sobresalientes, pongan en práctica las habilidades académicas, artísticas, deportivas, para la vida y/o laborales y que promuevan la sensibilización, promoción, difusión y desarrollo en la comunidad escolar una cultura inclusiva, a través de campañas, ferias y eventos. | S63: 1.2 Acciones orientadas a sensibilizar, promover, difundir y, desarrollar en la comunidad escolar una cultura inclusiva | V63: $ | AA63: =IFERROR((W63/$M$41),0) -> 0
A65: Componente 3. Equipamiento específico en beneficio de estudiantes con discapacidad | R65: Componente 3. Equipamiento específico en beneficio de estudiantes con aptitudes sobresalientes
A66: Criterio | G66: Monto comprometido | L66: % respecto al monto autorizado | N66: Límite permitido por RO | R66: Criterio | V66: Monto comprometido | AA66: % respecto al monto autorizado | AC66: Límite permitido por RO
A67: 3.1 Dotar de material didáctico especializado para estudiantes con discapacidad. | G67: $ | H67: 686043.12 | L67: =IFERROR((H67/$V$31),0) -> 0.1252337037 | N67: =+$V$31*0.4 -> 2191241.174 | R67: 3.11 Dotar de material didáctico especializado para estudiantes con aptitudes sobresalientes. | V67: $ | W67: 677638.02 | AA67: =IFERROR((W67/$V$41),0) -> 0.1855490928 | AC67: =+$V$41*0.4 -> 1460827.45
A68: 3.2 Dotar de material bibliográfico para estudiantes con discapacidad. | G68: $ | H68: 34200 | L68: 0.006243037124 | N68: =+$V$31*0.3 -> 1643430.881 | R68: 3.12 Dotar de material bibliográfico para estudiantes con aptitudes sobresalientes. | V68: $ | W68: 719360 | AA68: =IFERROR((W68/$V$41),0) -> 0.1969732976 | AC68: =+$V$41*0.3 -> 1095620.587
A69: 3.3 Dotar de pruebas estandarizadas para estudiantes con discapacidad. | G69: $ | H69: 0 | L69: 0 | N69: =+$V$31*0.05 -> 273905.1468 | R69: 3.13 Dotar de pruebas estandarizadas para la identificación de las y los estudiantes con aptitudes sobresalientes. | V69: $ | W69: 0 | AA69: =IFERROR((W69/$V$41),0) -> 0 | AC69: =+$V$41*0.05 -> 182603.4312
A70: 3.4 Diseño, producción e impresión de material en formatos adaptados para favorecer la accesibilidad de estudiantes con discapacidad. | G70: $ | H70: 0 | L70: 0 | N70: =+$V$31*0.1 -> 547810.2936 | R70: 3.14 Dotar de equipo tecnológico y/o multimedia para estudiantes con aptitudes sobresalientes. | V70: $ | W70: 1095620.5 | AA70: =IFERROR((W70/$V$41),0) -> 0.2999999761 | AC70: =+$V$41*0.3 -> 1095620.587
A71: 3.5 Dotar de equipo adaptado, tecnológico y/o multimedia para estudiantes con discapacidad. | G71: $ | H71: 1643430 | L71: 0.2999998392 | N71: =+$V$31*0.3 -> 1643430.881 | R71: 3.15 Dotar de insumos y materiales consumibles no perecederos que se requieren para apoyar las actividades curriculares y extracurriculares de las y los estudiantes con aptitudes sobresalientes. | V71: $ | W71: 0 | AA71: =IFERROR((W71/$V$41),0) -> 0 | AC71: =+$V$41*0.05 -> 182603.4312
A72: 3.6 Adquirir equipamiento, herramientas, utensilios, enseres domésticos y aparatos electrónicos que se requieren para impartir talleres laborales que se ofertan en los CAM laboral y con Formación para el Trabajo. | G72: $ | H72: 1308924.8 | L72: 0.2389376058 | N72: =+$V$31*0.4 -> 2191241.174
A74: 3.7 Dotar de insumos y materiales consumibles no perecederos que se requieren en los talleres laborales que se ofertan en los CAM laboral y con Formación para el Trabajo para apoyar las actividades de las y los estudiantes con discapacidad. | G74: $ | H74: 0 | L74: =IFERROR((H74/$V$31),0) -> 0 | N74: =+$V$31*0.05 -> 273905.1468
A75: 3.8 Adquirir ayudas técnicas para la accesibilidad y movilidad que mejoren las condiciones para el desplazamiento, orientación y comunicación de la o el estudiante con discapacidad. | G75: $ | H75: 0 | L75: =IFERROR((H75/$V$31),0) -> 0 | N75: =+$V$31*0.3 -> 1643430.881
A76: 3.9 Dotar de mobiliario ordinario y/o adaptado para las y los estudiantes con discapacidad. | G76: $ | H76: 550637.21 | L76: =IFERROR((H76/$V$31),0) -> 0.1005160393 | N76: =+$V$31*0.3 -> 1643430.881
A77: 3.10 Adquirir equipamiento y materiales para aulas multisensoriales. | G77: $ | H77: 440000 | L77: =IFERROR((H77/$V$31),0) -> 0.08031977587 | N77: =+$V$31*0.3 -> 1643430.881

Sheet Servicios EE 2024
O1: Subsecretaría de Educación Básica Dirección General de Desarrollo Curricular Dirección de Fortalecimiento Curricular para la Formación Personal y Social en la Educación Básica Educación Especial
A6: Información cuantitativa respecto al número de servicios de educación especial que existen en su entidad y los que serán beneficiados en este año fiscal. En caso de no contar con algún tipo de servicio poner "0".
A8: Total de servicios de educación especial en la entidad
A9: Servicios de educación especial públicos que existen en la entidad | B9: USAER | C9: CAM Básico | D9: CAM Laboral | E9: CAPEP | F9: CRIE | G9: UOP | H9: UAEBH | I9: Otro | J9: Total
B10: 81 | C10: 0 | D10: 2 | E10: 0 | F10: 0 | G10: 0 | H10: 0 | I10: 1 | J10: =SUM(B10,C10,C12,D10,E10,F10,G10,H10,I10) -> 112
C11: Con FpT | I11: (especifique)
C12: 28 | I12: Centro de Iniciación a la Ciencia y Tecnología
A13: Focalización para población con discapacidad | M13: Focalización para población con aptitudes sobresalientes
A14: Servicios de educación especial focalizados en el componente 1. Acciones académicas para agentes educativos en temas de discapacidad | M14: Servicios de educación especial focalizados en el componente 1. Acciones académicas para agentes educativos en temas de aptitudes sobresalientes
A15: Servicios focalizados para beneficiar a través del PFSEE en el año 2024 en el componente 1 | B15: USAER | C15: CAM Básico | D15: CAM Laboral | E15: CAPEP | F15: CRIE | G15: UOP | H15: UAEBH | I15: Otro | J15: Total | K15: % | M15: Servicios focalizados para beneficiar a través del PFSEE en el año 2024 en el componente 1 | N15: USAER | O15: CAPEP | P15: CRIE | Q15: UOP | R15: UAEBH | S15: Otro | T15: Total | U15: %
B16: 81 | C16: 0 | D16: 2 | E16: 0 | F16: 0 | G16: 0 | H16: 0 | I16: 0 | J16: =SUM(B16,C16,C18,D16,E16,F16,G16,H16,I16) -> 111 | K16: =IFERROR((J16/J10),0) -> 0.9910714286 | N16: 81 | O16: 0 | P16: 0 | Q16: 0 | R16: 0 | S16: 1 | T16: =SUM(N16,O16,P16,Q16,R16,S16) -> 82 | U16: =IFERROR(T16/((B10+E10+F10+G10+H10+I10)),0) -> 1
C17: Con FpT | I17: (especifique) | S17: (especifique)
C18: 28 | I18: N/A | S18: Centro de Iniciación a la Ciencia y Tecnología
A19: Servicios de educación especial focalizados en el componente 2. Acciones de atención complementaria para estudiantes con discapacidad | M19: Servicios de educación especial focalizados en el componente 2. Acciones de atención complementaria para estudiantes con aptitudes sobresalientes
A20: Servicios focalizados para beneficiar a través del PFSEE en el año 2024 en el componente 2 | B20: USAER | C20: CAM Básico | D20: CAM Laboral | E20: CAPEP | F20: CRIE | G20: UOP | H20: UAEBH | I20: Otro | J20: Total | K20: % | M20: Servicios focalizados para beneficiar a través del PFSEE en el año 2024 en el componente 2 | N20: USAER | O20: CAPEP | P20: CRIE | Q20: UOP | R20: UAEBH | S20: Otro | T20: Total | U20: %
B21: 0 | C21: 0 | D21: 2 | E21: 0 | F21: 0 | G21: 0 | H21: 0 | I21: 0 | J21: =SUM(B21,C21,C23,D21,E21,F21,G21,H21,I21) -> 30 | K21: =IFERROR((J21/J10),0) -> 0.2678571429 | N21: 81 | O21: 0 | P21: 0 | Q21: 0 | R21: 0 | S21: 0 | T21: =SUM(N21,O21,P21,Q21,R21,S21) -> 81 | U21: =IFERROR(T21/((B10+E10+F10+G10+H10+I10)),0) -> 0.987804878
C22: Con FpT | I22: (especifique) | S22: (especifique)
C23: 28 | I23: N/A | S23: N/A
A24: Servicios de educación especial focalizados en el componente 3. Equipamiento específico en beneficio de estudiantes con discapacidad | M24: Servicios de educación especial focalizados en el componente 3. Equipamiento específico en beneficio de estudiantes con aptitudes sobresalientes
A25: Servicios focalizados para beneficiar a través del PFSEE en el año 2024 en el componente 3 | B25: USAER | C25: CAM Básico | D25: CAM Laboral | E25: CAPEP | F25: CRIE | G25: UOP | H25: UAEBH | I25: Otro | J25: Total | K25: % | M25: Servicios focalizados para beneficiar a través del PFSEE en el año 2024 en el componente 3 | N25: USAER | O25: CAPEP | P25: CRIE | Q25: UOP | R25: UAEBH | S25: Otro | T25: Total | U25: %
B26: 81 | C26: 0 | D26: 2 | E26: 0 | F26: 0 | G26: 0 | H26: 0 | I26: 0 | J26: =SUM(B26,C26,C28,D26,E26,F26,G26,H26,I26) -> 111 | K26: =IFERROR((J26/J10),0) -> 0.9910714286 | N26: 81 | O26: 0 | P26: 0 | Q26: 0 | R26: 0 | S26: 0 | T26: =SUM(N26,O26,P26,Q26,R26,S26) -> 81 | U26: =IFERROR(T26/(B10+E10+F10+G10+H10+I10),0) -> 0.987804878
C27: Con FpT | I27: (especifique) | S27: (especifique)
C28: 28 | I28: N/A | S28: N/A
A30: *Con FpT: Con Formación para el Trabajo
A32: Para el llenado de esta hoja de Excel considerar los siguientes puntos:
A33: a) En la tabla superior se reporta la totalidad de servicios y en las siguientes tres, únicamente los que serán beneficiados por el PFSEE en este 2024, por criterio general de gasto.
A34: b) En "CAM Básico" se reportan los centros que ofrecen educación básica, que no cuentan con formación para el trabajo.
A35: c) En "Con FpT" se reportan los CAM Básicos que además de la educación básica, cuentan con talleres de formación para el trabajo.
A36: d) En "CAM Laboral" se reportan únicamente los centros dedicados a la formación laboral o para el trabajo.
A37: e) Cuidar de no repetir los datos, pues entre lo reportado en CAM Básico, Con FpT y CAM Laboral, debe sumar la totalidad de los CAM en su entidad.
A38: f) Si en su entidad cuenta con otro tipo de servicio no considerado en la tabla, reportar la cantidad en "Otro" y anotar su nombre en el apartado "(especifique)".

Sheet Población total en la entidad
AE1: Subsecretaría de Educación Básica Dirección General de Desarrollo Curricular Dirección de Fortalecimiento Curricular para la Formación Personal y Social en la Educación Básica Educación Especial
A6: Información cuantitativa respecto a la población que atienden los servicios de educación especial, en su entidad, por sexo y tipo de condición:
A7: Población total atendida por los servicios de educación especial
A8: Condición | B8: Población atendida por condición y por SEE | Q8: Población total atendida | T8: De la población total reportada por condición, especifique si se trata de alguna de las siguientes poblaciones.
B9: USAER | E9: CAM básico | H9: CAM básico con FpT | K9: CAM laboral | N9: Otro | Q9: M | R9: H | S9: TOTAL | T9: Población indígena | W9: Población afrodescendiente | Z9: Población migrante | AD9: Estudiantes atendidos
B10: M | C10: H | D10: TOTAL | E10: M | F10: H | G10: TOTAL | H10: M | I10: H | J10: TOTAL | K10: M | L10: H | M10: TOTAL | N10: M | O10: H | P10: TOTAL | T10: M | U10: H | V10: TOTAL | W10: M | X10: H | Y10: TOTAL | Z10: M | AA10: H | AB10: TOTAL | AD10: CAPEP | AH10: UAEBH
A11: Ceguera | B11: 7 | C11: 13 | D11: =SUM(B11:C11) -> 20 | E11: 0 | F11: 0 | G11: =SUM(E11:F11) -> 0 | H11: 5 | I11: 5 | J11: =SUM(H11:I11) -> 10 | K11: 0 | L11: 1 | M11: =SUM(K11:L11) -> 1 | N11: 0 | O11: 0 | P11: =SUM(N11:O11) -> 0 | Q11: =SUM(B11,E11,H11,K11,N11) -> 12 | R11: =SUM(C11,F11,I11,L11,O11) -> 19 | S11: =SUM(Q11,R11) -> 31 | T11: 0 | U11: 0 | V11: =SUM(T11,U11) -> 0 | W11: 0 | X11: 0 | Y11: =SUM(W11,X11) -> 0 | Z11: 0 | AA11: 0 | AB11: =SUM(Z11,AA11) -> 0 | AD11: M | AE11: H | AF11: TOTAL | AH11: M | AI11: H | AJ11: TOTAL
A12: Baja Visión | B12: 33 | C12: 60 | D12: =SUM(B12:C12) -> 93 | E12: 0 | F12: 0 | G12: =SUM(E12:F12) -> 0 | H12: 3 | I12: 2 | J12: =SUM(H12:I12) -> 5 | K12: 0 | L12: 0 | M12: =SUM(K12:L12) -> 0 | N12: 0 | O12: 0 | P12: =SUM(N12:O12) -> 0 | Q12: =SUM(B12,E12,H12,K12,N12) -> 36 | R12: =SUM(C12,F12,I12,L12,O12) -> 62 | S12: =SUM(Q12,R12) -> 98 | T12: 0 | U12: 0 | V12: =SUM(T12,U12) -> 0 | W12: 0 | X12: 0 | Y12: =SUM(W12,X12) -> 0 | Z12: 0 | AA12: 0 | AB12: =SUM(Z12,AA12) -> 0 | AD12: 0 | AE12: 0 | AF12: =SUM(AD12,AE12) -> 0 | AH12: 0 | AI12: 0 | AJ12: =SUM(AH12,AI12) -> 0
A13: Sordera | B13: 8 | C13: 13 | D13: 21 | E13: 0 | F13: 0 | G13: 0 | H13: 5 | I13: 7 | J13: 12 | K13: 1 | L13: 1 | M13: 2 | N13: 0 | O13: 0 | P13: 0 | Q13: 14 | R13: 21 | S13: 35 | T13: 0 | U13: 0 | V13: 0 | W13: 0 | X13: 0 | Y13: 0 | Z13: 0 | AA13: 0 | AB13: 0 | AD13: CRIE | AH13: UOP
A14: Hipoacusia | B14: 51 | C14: 59 | D14: 110 | E14: 0 | F14: 0 | G14: 0 | H14: 11 | I14: 7 | J14: 18 | K14: 0 | L14: 0 | M14: 0 | N14: 0 | O14: 0 | P14: 0 | Q14: 62 | R14: 66 | S14: 128 | T14: 0 | U14: 0 | V14: 0 | W14: 0 | X14: 0 | Y14: 0 | Z14: 0 | AA14: 0 | AB14: 0 | AD14: M | AE14: H | AF14: TOTAL | AH14: M | AI14: H | AJ14: TOTAL
A15: Sordoceguera | B15: 0 | C15: 0 | D15: 0 | E15: 0 | F15: 0 | G15: 0 | H15: 0 | I15: 0 | J15: 0 | K15: 0 | L15: 0 | M15: 0 | N15: 0 | O15: 0 | P15: 0 | Q15: 0 | R15: 0 | S15: 0 | T15: 0 | U15: 0 | V15: 0 | W15: 0 | X15: 0 | Y15: 0 | Z15: 0 | AA15: 0 | AB15: 0 | AD15: 0 | AE15: 0 | AF15: =SUM(AD15,AE15) -> 0 | AH15: 0 | AI15: 0 | AJ15: =SUM(AH15,AI15) -> 0
A16: Motriz | B16: 63 | C16: 93 | D16: 156 | E16: 0 | F16: 0 | G16: 0 | H16: 44 | I16: 63 | J16: 107 | K16: 1 | L16: 2 | M16: 3 | N16: 0 | O16: 0 | P16: 0 | Q16: 108 | R16: 158 | S16: 266 | T16: 0 | U16: 0 | V16: 0 | W16: 0 | X16: 0 | Y16: 0 | Z16: 0 | AA16: 0 | AB16: 0 | AD16: Personal docente y/o directivos atendidos
A17: Intelectual | B17: 265 | C17: 363 | D17: 628 | E17: 0 | F17: 0 | G17: 0 | H17: 355 | I17: 481 | J17: 836 | K17: 47 | L17: 48 | M17: 95 | N17: 0 | O17: 0 | P17: 0 | Q17: 667 | R17: 892 | S17: 1559 | T17: 0 | U17: 0 | V17: 0 | W17: 0 | X17: 0 | Y17: 0 | Z17: 0 | AA17: 0 | AB17: 0 | AD17: CRIE | AH17: UOP
A18: Psicosocial | B18: 3 | C18: 4 | D18: 7 | E18: 0 | F18: 0 | G18: 0 | H18: 6 | I18: 5 | J18: 11 | K18: 0 | L18: 2 | M18: 2 | N18: 0 | O18: 0 | P18: 0 | Q18: 9 | R18: 11 | S18: 20 | T18: 0 | U18: 0 | V18: 0 | W18: 0 | X18: 0 | Y18: 0 | Z18: 0 | AA18: 0 | AB18: 0 | AD18: M | AE18: H | AF18: TOTAL | AH18: M | AI18: H | AJ18: TOTAL
A19: Espectro autista | B19: 62 | C19: 390 | D19: 452 | E19: 0 | F19: 0 | G19: 0 | H19: 50 | I19: 161 | J19: 211 | K19: 1 | L19: 5 | M19: 6 | N19: 0 | O19: 0 | P19: 0 | Q19: 113 | R19: 556 | S19: 669 | T19: 0 | U19: 0 | V19: 0 | W19: 0 | X19: 0 | Y19: 0 | Z19: 0 | AA19: 0 | AB19: 0 | AD19: 0 | AE19: 0 | AF19: =SUM(AD19,AE19) -> 0 | AH19: 0 | AI19: 0 | AJ19: =SUM(AH19,AI19) -> 0
A20: Múltiple | B20: 32 | C20: 21 | D20: 53 | E20: 0 | F20: 0 | G20: 0 | H20: 80 | I20: 109 | J20: 189 | K20: 4 | L20: 4 | M20: 8 | N20: 0 | O20: 0 | P20: 0 | Q20: 116 | R20: 134 | S20: 250 | T20: 0 | U20: 0 | V20: 0 | W20: 0 | X20: 0 | Y20: 0 | Z20: 0 | AA20: 0 | AB20: 0 | AD20: Familias y/o público en general atendidos
A21: TDA TDA-H | B21: 133 | C21: 715 | D21: 848 | E21: 0 | F21: 0 | G21: 0 | H21: 7 | I21: 29 | J21: 36 | K21: 0 | L21: 4 | M21: 4 | N21: 0 | O21: 0 | P21: 0 | Q21: 140 | R21: 748 | S21: 888 | T21: 0 | U21: 0 | V21: 0 | W21: 0 | X21: 0 | Y21: 0 | Z21: 0 | AA21: 0 | AB21: 0 | AD21: CRIE | AH21: UOP
A22: AS Intelectual | B22: 179 | C22: 220 | D22: 399 | E22: =SUM(E11:E21) -> 0 | F22: =SUM(F11:F21) -> 0 | G22: =SUM(G11:G21) -> 0 | H22: 566 | I22: 869 | J22: 1435 | K22: 54 | L22: 67 | M22: =SUM(K22,L22) -> 121 | N22: 58 | O22: 109 | P22: 167 | Q22: =SUM(B22,N22) -> 237 | R22: 329 | S22: 566 | T22: 0 | U22: 0 | V22: 0 | W22: 0 | X22: 0 | Y22: 0 | Z22: 0 | AA22: 0 | AB22: 0 | AD22: M | AE22: H | AF22: TOTAL | AH22: M | AI22: H | AJ22: TOTAL
A23: AS Creativa | B23: 208 | C23: 224 | D23: 432 | N23: 0 | O23: 0 | P23: 0 | Q23: 208 | R23: 224 | S23: 432 | T23: 0 | U23: 0 | V23: 0 | W23: 0 | X23: 0 | Y23: 0 | Z23: 0 | AA23: 0 | AB23: 0 | AD23: 0 | AE23: 0 | AF23: =SUM(AD23,AE23) -> 0 | AH23: 0 | AI23: 0 | AJ23: =SUM(AH23,AI23) -> 0
A24: AS Artística | B24: 86 | C24: 56 | D24: 142 | N24: 0 | O24: 0 | P24: 0 | Q24: 86 | R24: 56 | S24: 142 | T24: 0 | U24: 0 | V24: 0 | W24: 0 | X24: 0 | Y24: 0 | Z24: 0 | AA24: 0 | AB24: 0
A25: AS Psicomotriz | B25: 15 | C25: 37 | D25: 52 | N25: 0 | O25: 0 | P25: 0 | Q25: 15 | R25: 37 | S25: 52 | T25: 0 | U25: 0 | V25: 0 | W25: 0 | X25: 0 | Y25: 0 | Z25: 0 | AA25: 0 | AB25: 0 | AF25: Total de estudiantes atendidos
A26: AS Socioafectiva | B26: 34 | C26: 24 | D26: 58 | N26: 0 | O26: 0 | P26: 0 | Q26: 34 | R26: 24 | S26: 58 | T26: 0 | U26: 0 | V26: 0 | W26: 0 | X26: 0 | Y26: 0 | Z26: 0 | AA26: 0 | AB26: 0
A27: Totales | B27: =SUM(B11:B26) -> 1179 | C27: =SUM(C11:C26) -> 2292 | D27: =SUM(B27,C27) -> 3471 | N27: =SUM(N11:N26) -> 58 | O27: =SUM(O11:O26) -> 109 | P27: 167 | Q27: =SUM(B27,K22,H22,E22,N27) -> 1857 | R27: =SUM(C27,F22,I22,L22,O27) -> 3337 | S27: =SUM(Q27,R27) -> 5194 | T27: =SUM(T11:T26) -> 0 | U27: =SUM(U11:U26) -> 0 | V27: =SUM(T27,U27) -> 0 | W27: =SUM(W11:W26) -> 0 | X27: =SUM(X11:X26) -> 0 | Y27: =SUM(W27,X27) -> 0 | Z27: =SUM(Z11:Z26) -> 0 | AA27: =SUM(AA11:AA26) -> 0 | AB27: =SUM(Z27,AA27) -> 0 | AF27: M | AG27: H | AH27: Total
AF28: =SUM(Q27,AD12,AH12,AD15,AH15) -> 1857 | AG28: =SUM(R27,AE12,AI12,AE15,AI15) -> 3337 | AH28: =SUM(AF28,AG28) -> 5194
A30: AS: Aptitudes sobresalientes | G30: TDA: Trastorno por Déficit de Atención | J30: TDA: Trastorno por Déficit de Atención
G31: TDA-H: Trastorno por Déficit de Atención e Hiperactividad | J31: TDA-H: Trastorno por Déficit de Atención e Hiperactividad
A34: Personal total en los servicios de educación especial | X34: Personal docente: maestra(o) de grupo, docente de taller.
N35: Personal docente | Q35: Personal paradocente | T35: Personal administrativo | X35: Personal paradocente: equipo de apoyo, niñera, médica (o), enfermera (o).
N36: M | O36: H | P36: TOTAL | Q36: M | R36: H | S36: TOTAL | T36: M | U36: H | V36: TOTAL | X36: Personal administrativo: secretaria (o), asistente, chofer, limpieza.
B37: M | C37: H | D37: TOTAL | K37: USAER | N37: 485 | O37: 96 | P37: =SUM(N37:O37) -> 581 | Q37: 114 | R37: 13 | S37: =SUM(Q37:R37) -> 127 | T37: 69 | U37: 20 | V37: =SUM(T37:U37) -> 89
A38: Supervisores | B38: 9 | C38: 5 | D38: =SUM(B38:C38) -> 14 | K38: CAM básico | N38: 0 | O38: 0 | P38: =SUM(N38:O38) -> 0 | Q38: 0 | R38: 0 | S38: =SUM(Q38:R38) -> 0 | T38: 0 | U38: 0 | V38: =SUM(T38:U38) -> 0
A39: ATP | B39: 14 | C39: 5 | D39: =SUM(B39:C39) -> 19 | K39: CAM básico con FpT | N39: 262 | O39: 75 | P39: 337 | Q39: 143 | R39: 18 | S39: 161 | T39: 100 | U39: 50 | V39: 150
A40: Directivas (os) | B40: 81 | C40: 31 | D40: =SUM(B40:C40) -> 112 | K40: CAM laboral | N40: 23 | O40: 20 | P40: 43 | Q40: 6 | R40: 3 | S40: 9 | T40: 8 | U40: 18 | V40: 26
K41: CAPEP | N41: 0 | O41: 0 | P41: 0 | Q41: 0 | R41: 0 | S41: 0 | T41: 0 | U41: 0 | V41: 0
K42: CRIE | N42: 0 | O42: 0 | P42: 0 | Q42: 0 | R42: 0 | S42: 0 | T42: 0 | U42: 0 | V42: 0
K43: UOP | N43: 0 | O43: 0 | P43: 0 | Q43: 0 | R43: 0 | S43: 0 | T43: 0 | U43: 0 | V43: 0
K44: UAEBH | N44: 0 | O44: 0 | P44: 0 | Q44: 0 | R44: 0 | S44: 0 | T44: 0 | U44: 0 | V44: 0
J45: Otro | K45: Centro de Iniciación a la Ciencia y la Tecnología | N45: 4 | O45: 4 | P45: 8 | Q45: 0 | R45: 0 | S45: 0 | T45: 0 | U45: 2 | V45: 2

Sheet Población beneficiaria DIS
AE1: Subsecretaría de Educación Básica Dirección General de Desarrollo Curricular Dirección de Fortalecimiento Curricular para la Formación Personal y Social en la Educación Básica Educación Especial
A6: Información cuantitativa respecto a la población con discapacidad que atienden los servicios de educación especial focalizados, en su entidad, por sexo y tipo de condición:
A8: Población con discapacidad atendida por los servicios de educación especial focalizados en el componente 1 para beneficiar en 2024
A9: Condición | B9: Beneficiarias/os por condición y por SEE | Q9: Población total beneficiaria | T9: De la población total reportada por condición, especifique si se trata de alguna de las siguientes poblaciones.
B10: USAER | E10: CAM básico | H10: CAM básico con FpT | K10: CAM laboral | N10: Otro | Q10: M | R10: H | S10: TOTAL | T10: Población indígena | W10: Población afrodescendiente | Z10: Población migrante | AD10: Estudiantes focalizados discapacidad
B11: M | C11: H | D11: TOTAL | E11: M | F11: H | G11: TOTAL | H11: M | I11: H | J11: TOTAL | K11: M | L11: H | M11: TOTAL | N11: M | O11: H | P11: TOTAL | T11: M | U11: H | V11: TOTAL | W11: M | X11: H | Y11: TOTAL | Z11: M | AA11: H | AB11: TOTAL | AD11: CAPEP | AH11: UAEBH
A12: Ceguera | B12: 7 | C12: 13 | D12: =SUM(B12:C12) -> 20 | E12: 0 | F12: 0 | G12: =SUM(E12:F12) -> 0 | H12: 5 | I12: 5 | J12: =SUM(H12:I12) -> 10 | K12: 0 | L12: 1 | M12: =SUM(K12:L12) -> 1 | N12: 0 | O12: 0 | P12: =SUM(N12:O12) -> 0 | Q12: =SUM(B12,E12,H12,K12,N12) -> 12 | R12: =SUM(C12,F12,I12,L12,O12) -> 19 | S12: =SUM(Q12,R12) -> 31 | T12: 0 | U12: 0 | V12: =SUM(T12,U12) -> 0 | W12: 0 | X12: 0 | Y12: =SUM(W12,X12) -> 0 | Z12: 0 | AA12: 0 | AB12: =SUM(Z12,AA12) -> 0 | AD12: M | AE12: H | AF12: TOTAL | AH12: M | AI12: H | AJ12: TOTAL
A13: Baja Visión | B13: 33 | C13: 60 | D13: =SUM(B13:C13) -> 93 | E13: 0 | F13: 0 | G13: =SUM(E13:F13) -> 0 | H13: 3 | I13: 2 | J13: =SUM(H13:I13) -> 5 | K13: 0 | L13: 0 | M13: =SUM(K13:L13) -> 0 | N13: 0 | O13: 0 | P13: =SUM(N13:O13) -> 0 | Q13: =SUM(B13,E13,H13,K13,N13) -> 36 | R13: =SUM(C13,F13,I13,L13,O13) -> 62 | S13: =SUM(Q13,R13) -> 98 | T13: 0 | U13: 0 | V13: =SUM(T13,U13) -> 0 | W13: 0 | X13: 0 | Y13: =SUM(W13,X13) -> 0 | Z13: 0 | AA13: 0 | AB13: =SUM(Z13,AA13) -> 0 | AD13: 0 | AE13: 0 | AF13: =SUM(AD13,AE13) -> 0 | AH13: 0 | AI13: 0 | AJ13: =SUM(AH13,AI13) -> 0
A14: Sordera | B14: 8 | C14: 13 | D14: 21 | E14: 0 | F14: 0 | G14: 0 | H14: 5 | I14: 7 | J14: 12 | K14: 1 | L14: 1 | M14: 2 | N14: 0 | O14: 0 | P14: 0 | Q14: 14 | R14: 21 | S14: 35 | T14: 0 | U14: 0 | V14: 0 | W14: 0 | X14: 0 | Y14: 0 | Z14: 0 | AA14: 0 | AB14: 0 | AD14: CRIE | AH14: UOP
A15: Hipoacusia | B15: 51 | C15: 59 | D15: 110 | E15: 0 | F15: 0 | G15: 0 | H15: 11 | I15: 7 | J15: 18 | K15: 0 | L15: 0 | M15: 0 | N15: 0 | O15: 0 | P15: 0 | Q15: 62 | R15: 66 | S15: 128 | T15: 0 | U15: 0 | V15: 0 | W15: 0 | X15: 0 | Y15: 0 | Z15: 0 | AA15: 0 | AB15: 0 | AD15: M | AE15: H | AF15: TOTAL | AH15: M | AI15: H | AJ15: TOTAL
A16: Sordoceguera | B16: 0 | C16: 0 | D16: 0 | E16: 0 | F16: 0 | G16: 0 | H16: 0 | I16: 0 | J16: 0 | K16: 0 | L16: 0 | M16: 0 | N16: 0 | O16: 0 | P16: 0 | Q16: 0 | R16: 0 | S16: 0 | T16: 0 | U16: 0 | V16: 0 | W16: 0 | X16: 0 | Y16: 0 | Z16: 0 | AA16: 0 | AB16: 0 | AD16: 0 | AE16: 0 | AF16: =SUM(AD16,AE16) -> 0 | AH16: 0 | AI16: 0 | AJ16: =SUM(AH16,AI16) -> 0
A17: Motriz | B17: 63 | C17: 93 | D17: 156 | E17: 0 | F17: 0 | G17: 0 | H17: 44 | I17: 63 | J17: 107 | K17: 1 | L17: 2 | M17: 3 | N17: 0 | O17: 0 | P17: 0 | Q17: 108 | R17: 158 | S17: 266 | T17: 0 | U17: 0 | V17: 0 | W17: 0 | X17: 0 | Y17: 0 | Z17: 0 | AA17: 0 | AB17: 0 | AD17: Personal docente y/o directivos focalizados
A18: Intelectual | B18: 265 | C18: 363 | D18: 628 | E18: 0 | F18: 0 | G18: 0 | H18: 355 | I18: 481 | J18: 836 | K18: 47 | L18: 48 | M18: 95 | N18: 0 | O18: 0 | P18: 0 | Q18: 667 | R18: 892 | S18: 1559 | T18: 0 | U18: 0 | V18: 0 | W18: 0 | X18: 0 | Y18: 0 | Z18: 0 | AA18: 0 | AB18: 0 | AD18: CRIE | AH18: UOP
A19: Psicosocial | B19: 3 | C19: 4 | D19: 7 | E19: 0 | F19: 0 | G19: 0 | H19: 6 | I19: 5 | J19: 11 | K19: 0 | L19: 2 | M19: 2 | N19: 0 | O19: 0 | P19: 0 | Q19: 9 | R19: 11 | S19: 20 | T19: 0 | U19: 0 | V19: 0 | W19: 0 | X19: 0 | Y19: 0 | Z19: 0 | AA19: 0 | AB19: 0 | AD19: M | AE19: H | AF19: TOTAL | AH19: M | AI19: H | AJ19: TOTAL
A20: Espectro autista | B20: 62 | C20: 390 | D20: 452 | E20: 0 | F20: 0 | G20: 0 | H20: 50 | I20: 161 | J20: 211 | K20: 1 | L20: 5 | M20: 6 | N20: 0 | O20: 0 | P20: 0 | Q20: 113 | R20: 556 | S20: 669 | T20: 0 | U20: 0 | V20: 0 | W20: 0 | X20: 0 | Y20: 0 | Z20: 0 | AA20: 0 | AB20: 0 | AD20: 0 | AE20: 0 | AF20: =SUM(AD20,AE20) -> 0 | AH20: 0 | AI20: 0 | AJ20: =SUM(AH20,AI20) -> 0
A21: Múltiple | B21: 32 | C21: 21 | D21: 53 | E21: 0 | F21: 0 | G21: 0 | H21: 80 | I21: 109 | J21: 189 | K21: 4 | L21: 4 | M21: 8 | N21: 0 | O21: 0 | P21: 0 | Q21: 116 | R21: 134 | S21: 250 | T21: 0 | U21: 0 | V21: 0 | W21: 0 | X21: 0 | Y21: 0 | Z21: 0 | AA21: 0 | AB21: 0 | AD21: Familias y/o público en general focalizados
A22: TDA TDA-H | B22: 133 | C22: 715 | D22: 848 | E22: 0 | F22: 0 | G22: 0 | H22: 7 | I22: 29 | J22: 36 | K22: 0 | L22: 4 | M22: 4 | N22: 0 | O22: 0 | P22: 0 | Q22: 140 | R22: 748 | S22: 888 | T22: 0 | U22: 0 | V22: 0 | W22: 0 | X22: 0 | Y22: 0 | Z22: 0 | AA22: 0 | AB22: 0 | AD22: CRIE | AH22: UOP
A23: Totales | B23: =SUM(B12:B22) -> 657 | C23: =SUM(C12:C22) -> 1731 | D23: =SUM(B23:C23) -> 2388 | E23: =SUM(E12:E22) -> 0 | F23: =SUM(F12:F22) -> 0 | G23: =SUM(E23,F23) -> 0 | H23: =SUM(H12:H22) -> 566 | I23: =SUM(I12:I22) -> 869 | J23: =SUM(H23,I23) -> 1435 | K23: =SUM(K12:K22) -> 54 | L23: =SUM(L12:L22) -> 67 | M23: =SUM(K23:L23) -> 121 | N23: =SUM(N12:N22) -> 0 | O23: =SUM(O12:O22) -> 0 | P23: =SUM(N23:O23) -> 0 | Q23: =SUM(B23,E23,H23,K23,N23) -> 1277 | R23: =SUM(C23,F23,I23,L23,O23) -> 2667 | S23: =SUM(Q23,R23) -> 3944 | T23: =SUM(T12:T22) -> 0 | U23: =SUM(U12:U22) -> 0 | V23: =SUM(T23,U23) -> 0 | W23: =SUM(W12:W22) -> 0 | X23: =SUM(X12:X22) -> 0 | Y23: =SUM(W23,X23) -> 0 | Z23: =SUM(Z12:Z22) -> 0 | AA23: =SUM(AA12:AA22) -> 0 | AB23: =SUM(Z23,AA23) -> 0 | AD23: M | AE23: H | AF23: TOTAL | AH23: M | AI23: H | AJ23: TOTAL
AD24: 0 | AE24: 0 | AF24: =SUM(AD24,AE24) -> 0 | AH24: 0 | AI24: 0 | AJ24: =SUM(AH24,AI24) -> 0
A26: Verificar que la población reportada en CAPEP, CRIE, UOP y UAEBH con discapacidad, al sumarla con la reportada en AS sea correspondiente con lo registrado en la pestaña de Población total. | AF26: Total de estudiantes con discapacidad focalizados
AF28: M | AG28: H | AH28: Total
AF29: =SUM(Q23,AD13,AH13,AD16,AH16) -> 1277 | AG29: =SUM(R23,AE13,AI13,AE16,AI16) -> 2667 | AH29: =SUM(AF29,AG29) -> 3944
A30: Población con discapacidad atendida por los servicios de educación especial focalizados en el componente 2 para beneficiar en 2024
A31: Condición | B31: Beneficiarias/os por condición y por SEE | Q31: Población total beneficiaria | T31: De la población total reportada por condición, especifique si se trata de alguna de las siguientes poblaciones.
B32: USAER | E32: CAM básico | H32: CAM básico con FpT | K32: CAM laboral | N32: Otro | Q32: M | R32: H | S32: TOTAL | T32: Población indígena | W32: Población afrodescendiente | Z32: Población migrante | AD32: Estudiantes focalizados discapacidad
B33: M | C33: H | D33: TOTAL | E33: M | F33: H | G33: TOTAL | H33: M | I33: H | J33: TOTAL | K33: M | L33: H | M33: TOTAL | N33: M | O33: H | P33: TOTAL | T33: M | U33: H | V33: TOTAL | W33: M | X33: H | Y33: TOTAL | Z33: M | AA33: H | AB33: TOTAL | AD33: CAPEP | AH33: UAEBH
A34: Ceguera | B34: 0 | C34: 0 | D34: =SUM(B34:C34) -> 0 | E34: 0 | F34: 0 | G34: =SUM(E34:F34) -> 0 | H34: 5 | I34: 3 | J34: =SUM(H34:I34) -> 8 | K34: 0 | L34: 1 | M34: =SUM(K34:L34) -> 1 | N34: 0 | O34: 0 | P34: =SUM(N34:O34) -> 0 | Q34: =SUM(B34,E34,H34,K34,N34) -> 5 | R34: =SUM(C34,F34,I34,L34,O34) -> 4 | S34: =SUM(Q34,R34) -> 9 | T34: 0 | U34: 0 | V34: =SUM(T34,U34) -> 0 | W34: 0 | X34: 0 | Y34: =SUM(W34,X34) -> 0 | Z34: 0 | AA34: 0 | AB34: =SUM(Z34,AA34) -> 0 | AD34: M | AE34: H | AF34: TOTAL | AH34: M | AI34: H | AJ34: TOTAL
A35: Baja Visión | B35: 0 | C35: 0 | D35: =SUM(B35:C35) -> 0 | E35: 0 | F35: 0 | G35: =SUM(E35:F35) -> 0 | H35: 3 | I35: 1 | J35: =SUM(H35:I35) -> 4 | K35: 0 | L35: 0 | M35: =SUM(K35:L35) -> 0 | N35: 0 | O35: 0 | P35: =SUM(N35:O35) -> 0 | Q35: =SUM(B35,E35,H35,K35,N35) -> 3 | R35: =SUM(C35,F35,I35,L35,O35) -> 1 | S35: =SUM(Q35,R35) -> 4 | T35: 0 | U35: 0 | V35: =SUM(T35,U35) -> 0 | W35: 0 | X35: 0 | Y35: =SUM(W35,X35) -> 0 | Z35: 0 | AA35: 0 | AB35: =SUM(Z35,AA35) -> 0 | AD35: 0 | AE35: 0 | AF35: =SUM(AD35,AE35) -> 0 | AH35: 0 | AI35: 0 | AJ35: =SUM(AH35,AI35) -> 0
A36: Sordera | B36: 0 | C36: 0 | D36: 0 | E36: 0 | F36: 0 | G36: 0 | H36: 5 | I36: 4 | J36: 9 | K36: 1 | L36: 1 | M36: 2 | N36: 0 | O36: 0 | P36: 0 | Q36: 6 | R36: 5 | S36: 11 | T36: 0 | U36: 0 | V36: 0 | W36: 0 | X36: 0 | Y36: 0 | Z36: 0 | AA36: 0 | AB36: 0 | AD36: CRIE | AH36: UOP
A37: Hipoacusia | B37: 0 | C37: 0 | D37: 0 | E37: 0 | F37: 0 | G37: 0 | H37: 11 | I37: 4 | J37: 15 | K37: 0 | L37: 0 | M37: 0 | N37: 0 | O37: 0 | P37: 0 | Q37: 11 | R37: 4 | S37: 15 | T37: 0 | U37: 0 | V37: 0 | W37: 0 | X37: 0 | Y37: 0 | Z37: 0 | AA37: 0 | AB37: 0 | AD37: M | AE37: H | AF37: TOTAL | AH37: M | AI37: H | AJ37: TOTAL
A38: Sordoceguera | B38: 0 | C38: 0 | D38: 0 | E38: 0 | F38: 0 | G38: 0 | H38: 0 | I38: 0 | J38: 0 | K38: 0 | L38: 0 | M38: 0 | N38: 0 | O38: 0 | P38: 0 | Q38: 0 | R38: 0 | S38: 0 | T38: 0 | U38: 0 | V38: 0 | W38: 0 | X38: 0 | Y38: 0 | Z38: 0 | AA38: 0 | AB38: 0 | AD38: 0 | AE38: 0 | AF38: =SUM(AD38,AE38) -> 0 | AH38: 0 | AI38: 0 | AJ38: =SUM(AH38,AI38) -> 0
A39: Motriz | B39: 0 | C39: 0 | D39: 0 | E39: 0 | F39: 0 | G39: 0 | H39: 40 | I39: 63 | J39: 103 | K39: 1 | L39: 2 | M39: 3 | N39: 0 | O39: 0 | P39: 0 | Q39: 41 | R39: 65 | S39: 106 | T39: 0 | U39: 0 | V39: 0 | W39: 0 | X39: 0 | Y39: 0 | Z39: 0 | AA39: 0 | AB39: 0 | AD39: Personal docente y/o directivos focalizados
A40: Intelectual | B40: 0 | C40: 0 | D40: 0 | E40: 0 | F40: 0 | G40: 0 | H40: 223 | I40: 359 | J40: 582 | K40: 20 | L40: 21 | M40: 41 | N40: 0 | O40: 0 | P40: 0 | Q40: 243 | R40: 380 | S40: 623 | T40: 0 | U40: 0 | V40: 0 | W40: 0 | X40: 0 | Y40: 0 | Z40: 0 | AA40: 0 | AB40: 0 | AD40: CRIE | AH40: UOP
A41: Psicosocial | B41: 0 | C41: 0 | D41: 0 | E41: 0 | F41: 0 | G41: 0 | H41: 6 | I41: 5 | J41: 11 | K41: 0 | L41: 2 | M41: 2 | N41: 0 | O41: 0 | P41: 0 | Q41: 6 | R41: 7 | S41: 13 | T41: 0 | U41: 0 | V41: 0 | W41: 0 | X41: 0 | Y41: 0 | Z41: 0 | AA41: 0 | AB41: 0 | AD41: M | AE41: H | AF41: TOTAL | AH41: M | AI41: H | AJ41: TOTAL
A42: Espectro autista | B42: 0 | C42: 0 | D42: 0 | E42: 0 | F42: 0 | G42: 0 | H42: 40 | I42: 100 | J42: 140 | K42: 1 | L42: 5 | M42: 6 | N42: 0 | O42: 0 | P42: 0 | Q42: 41 | R42: 105 | S42: 146 | T42: 0 | U42: 0 | V42: 0 | W42: 0 | X42: 0 | Y42: 0 | Z42: 0 | AA42: 0 | AB42: 0 | AD42: 0 | AE42: 0 | AF42: =SUM(AD42,AE42) -> 0 | AH42: 0 | AI42: 0 | AJ42: =SUM(AH42,AI42) -> 0
A43: Múltiple | B43: 0 | C43: 0 | D43: 0 | E43: 0 | F43: 0 | G43: 0 | H43: 50 | I43: 30 | J43: 80 | K43: 4 | L43: 4 | M43: 8 | N43: 0 | O43: 0 | P43: 0 | Q43: 54 | R43: 34 | S43: 88 | T43: 0 | U43: 0 | V43: 0 | W43: 0 | X43: 0 | Y43: 0 | Z43: 0 | AA43: 0 | AB43: 0 | AD43: Familias y/o público en general focalizados
A44: TDA TDA-H | B44: 0 | C44: 0 | D44: 0 | E44: 0 | F44: 0 | G44: 0 | H44: 7 | I44: 20 | J44: 27 | K44: 0 | L44: 4 | M44: 4 | N44: 0 | O44: 0 | P44: 0 | Q44: 7 | R44: 24 | S44: 31 | T44: 0 | U44: 0 | V44: 0 | W44: 0 | X44: 0 | Y44: 0 | Z44: 0 | AA44: 0 | AB44: 0 | AD44: CRIE | AH44: UOP
A45: Totales | B45: =SUM(B34:B44) -> 0 | C45: =SUM(C34:C44) -> 0 | D45: =SUM(B45:C45) -> 0 | E45: =SUM(E34:E44) -> 0 | F45: =SUM(F34:F44) -> 0 | G45: =SUM(E45,F45) -> 0 | H45: =SUM(H34:H44) -> 390 | I45: =SUM(I34:I44) -> 589 | J45: =SUM(H45,I45) -> 979 | K45: =SUM(K34:K44) -> 27 | L45: =SUM(L34:L44) -> 40 | M45: =SUM(K45:L45) -> 67 | N45: =SUM(N34:N44) -> 0 | O45: =SUM(O34:O44) -> 0 | P45: =SUM(N45:O45) -> 0 | Q45: =SUM(B45,E45,H45,K45,N45) -> 417 | R45: =SUM(C45,F45,I45,L45,O45) -> 629 | S45: 1046 | T45: =SUM(T34:T44) -> 0 | U45: =SUM(U34:U44) -> 0 | V45: 0 | W45: =SUM(W34:W44) -> 0 | X45: =SUM(X34:X44) -> 0 | Y45: 0 | Z45: =SUM(Z34:Z44) -> 0 | AA45: =SUM(AA34:AA44) -> 0 | AB45: 0 | AD45: M | AE45: H | AF45: TOTAL | AH45: M | AI45: H | AJ45: TOTAL
AD46: 0 | AE46: 0 | AF46: =SUM(AD46,AE46) -> 0 | AH46: 0 | AI46: 0 | AJ46: =SUM(AH46,AI46) -> 0
A48: Verificar que la población reportada en CAPEP, CRIE, UOP y UAEBH con discapacidad, al sumarla con la reportada en AS sea correspondiente con lo registrado en la pestaña de Población total. | AF48: Total de estudiantes con discapacidad focalizados
AF50: M | AG50: H | AH50: Total
AF51: =SUM(Q45,AD35,AH35,AD38,AH38) -> 417 | AG51: =SUM(R45,AE35,AI35,AE38,AI38) -> 629 | AH51: =SUM(AF51,AG51) -> 1046
A53: Población con discapacidad atendida por los servicios de educación especial focalizados en el componente 3 para beneficiar en 2024
A54: Condición | B54: Beneficiarias/os por condición y por SEE | Q54: Población total beneficiaria | T54: De la población total reportada por condición, especifique si se trata de alguna de las siguientes poblaciones.
B55: USAER | E55: CAM básico | H55: CAM básico con FpT | K55: CAM laboral | N55: Otro | Q55: M | R55: H | S55: TOTAL | T55: Población indígena | W55: Población afrodescendiente | Z55: Población migrante | AD55: Estudiantes focalizados discapacidad
B56: M | C56: H | D56: TOTAL | E56: M | F56: H | G56: TOTAL | H56: M | I56: H | J56: TOTAL | K56: M | L56: H | M56: TOTAL | N56: M | O56: H | P56: TOTAL | T56: M | U56: H | V56: TOTAL | W56: M | X56: H | Y56: TOTAL | Z56: M | AA56: H | AB56: TOTAL | AD56: CAPEP | AH56: UAEBH
A57: Ceguera | B57: 7 | C57: 13 | D57: =SUM(B57:C57) -> 20 | E57: 0 | F57: 0 | G57: =SUM(E57:F57) -> 0 | H57: 5 | I57: 5 | J57: =SUM(H57:I57) -> 10 | K57: 0 | L57: 1 | M57: =SUM(K57:L57) -> 1 | N57: 0 | O57: 0 | P57: =SUM(N57:O57) -> 0 | Q57: =SUM(B57,E57,H57,K57,N57) -> 12 | R57: =SUM(C57,F57,I57,L57,O57) -> 19 | S57: =SUM(Q57,R57) -> 31 | T57: 0 | U57: 0 | V57: =SUM(T57,U57) -> 0 | W57: 0 | X57: 0 | Y57: =SUM(W57,X57) -> 0 | Z57: 0 | AA57: 0 | AB57: =SUM(Z57,AA57) -> 0 | AD57: M | AE57: H | AF57: TOTAL | AH57: M | AI57: H | AJ57: TOTAL
A58: Baja Visión | B58: 33 | C58: 60 | D58: =SUM(B58:C58) -> 93 | E58: 0 | F58: 0 | G58: =SUM(E58:F58) -> 0 | H58: 3 | I58: 2 | J58: =SUM(H58:I58) -> 5 | K58: 0 | L58: 0 | M58: =SUM(K58:L58) -> 0 | N58: 0 | O58: 0 | P58: =SUM(N58:O58) -> 0 | Q58: =SUM(B58,E58,H58,K58,N58) -> 36 | R58: =SUM(C58,F58,I58,L58,O58) -> 62 | S58: =SUM(Q58,R58) -> 98 | T58: 0 | U58: 0 | V58: =SUM(T58,U58) -> 0 | W58: 0 | X58: 0 | Y58: =SUM(W58,X58) -> 0 | Z58: 0 | AA58: 0 | AB58: =SUM(Z58,AA58) -> 0 | AD58: 0 | AE58: 0 | AF58: =SUM(AD58,AE58) -> 0 | AH58: 0 | AI58: 0 | AJ58: =SUM(AH58,AI58) -> 0
A59: Sordera | B59: 8 | C59: 13 | D59: 21 | E59: 0 | F59: 0 | G59: 0 | H59: 5 | I59: 7 | J59: 12 | K59: 1 | L59: 1 | M59: 2 | N59: 0 | O59: 0 | P59: 0 | Q59: 14 | R59: 21 | S59: 35 | T59: 0 | U59: 0 | V59: 0 | W59: 0 | X59: 0 | Y59: 0 | Z59: 0 | AA59: 0 | AB59: 0 | AD59: CRIE | AH59: UOP
A60: Hipoacusia | B60: 51 | C60: 59 | D60: 110 | E60: 0 | F60: 0 | G60: 0 | H60: 11 | I60: 7 | J60: 18 | K60: 0 | L60: 0 | M60: 0 | N60: 0 | O60: 0 | P60: 0 | Q60: 62 | R60: 66 | S60: 128 | T60: 0 | U60: 0 | V60: 0 | W60: 0 | X60: 0 | Y60: 0 | Z60: 0 | AA60: 0 | AB60: 0 | AD60: M | AE60: H | AF60: TOTAL | AH60: M | AI60: H | AJ60: TOTAL
A61: Sordoceguera | B61: 0 | C61: 0 | D61: 0 | E61: 0 | F61: 0 | G61: 0 | H61: 0 | I61: 0 | J61: 0 | K61: 0 | L61: 0 | M61: 0 | N61: 0 | O61: 0 | P61: 0 | Q61: 0 | R61: 0 | S61: 0 | T61: 0 | U61: 0 | V61: 0 | W61: 0 | X61: 0 | Y61: 0 | Z61: 0 | AA61: 0 | AB61: 0 | AD61: 0 | AE61: 0 | AF61: =SUM(AD61,AE61) -> 0 | AH61: 0 | AI61: 0 | AJ61: =SUM(AH61,AI61) -> 0
A62: Motriz | B62: 63 | C62: 93 | D62: 156 | E62: 0 | F62: 0 | G62: 0 | H62: 44 | I62: 63 | J62: 107 | K62: 1 | L62: 2 | M62: 3 | N62: 0 | O62: 0 | P62: 0 | Q62: 108 | R62: 158 | S62: 266 | T62: 0 | U62: 0 | V62: 0 | W62: 0 | X62: 0 | Y62: 0 | Z62: 0 | AA62: 0 | AB62: 0 | AD62: Personal docente y/o directivos focalizados
A63: Intelectual | B63: 265 | C63: 363 | D63: 628 | E63: 0 | F63: 0 | G63: 0 | H63: 355 | I63: 481 | J63: 836 | K63: 47 | L63: 48 | M63: 95 | N63: 0 | O63: 0 | P63: 0 | Q63: 667 | R63: 892 | S63: 1559 | T63: 0 | U63: 0 | V63: 0 | W63: 0 | X63: 0 | Y63: 0 | Z63: 0 | AA63: 0 | AB63: 0 | AD63: CRIE | AH63: UOP
A64: Psicosocial | B64: 3 | C64: 4 | D64: 7 | E64: 0 | F64: 0 | G64: 0 | H64: 6 | I64: 5 | J64: 11 | K64: 0 | L64: 2 | M64: 2 | N64: 0 | O64: 0 | P64: 0 | Q64: 9 | R64: 11 | S64: 20 | T64: 0 | U64: 0 | V64: 0 | W64: 0 | X64: 0 | Y64: 0 | Z64: 0 | AA64: 0 | AB64: 0 | AD64: M | AE64: H | AF64: TOTAL | AH64: M | AI64: H | AJ64: TOTAL
A65: Espectro autista | B65: 62 | C65: 390 | D65: 452 | E65: 0 | F65: 0 | G65: 0 | H65: 50 | I65: 161 | J65: 211 | K65: 1 | L65: 5 | M65: 6 | N65: 0 | O65: 0 | P65: 0 | Q65: 113 | R65: 556 | S65: 669 | T65: 0 | U65: 0 | V65: 0 | W65: 0 | X65: 0 | Y65: 0 | Z65: 0 | AA65: 0 | AB65: 0 | AD65: 0 | AE65: 0 | AF65: =SUM(AD65,AE65) -> 0 | AH65: 0 | AI65: 0 | AJ65: =SUM(AH65,AI65) -> 0
A66: Múltiple | B66: 32 | C66: 21 | D66: 53 | E66: 0 | F66: 0 | G66: 0 | H66: 80 | I66: 109 | J66: 189 | K66: 4 | L66: 4 | M66: 8 | N66: 0 | O66: 0 | P66: 0 | Q66: 116 | R66: 134 | S66: 250 | T66: 0 | U66: 0 | V66: 0 | W66: 0 | X66: 0 | Y66: 0 | Z66: 0 | AA66: 0 | AB66: 0 | AD66: Familias y/o público en general focalizados
A67: TDA TDA-H | B67: 133 | C67: 715 | D67: 848 | E67: 0 | F67: 0 | G67: 0 | H67: 7 | I67: 29 | J67: 36 | K67: 0 | L67: 4 | M67: 4 | N67: 0 | O67: 0 | P67: 0 | Q67: 140 | R67: 748 | S67: 888 | T67: 0 | U67: 0 | V67: 0 | W67: 0 | X67: 0 | Y67: 0 | Z67: 0 | AA67: 0 | AB67: 0 | AD67: CRIE | AH67: UOP
A68: Totales | B68: =SUM(B57:B67) -> 657 | C68: =SUM(C57:C67) -> 1731 | D68: =SUM(B68:C68) -> 2388 | E68: =SUM(E57:E67) -> 0 | F68: =SUM(F57:F67) -> 0 | G68: =SUM(E68,F68) -> 0 | H68: =SUM(H57:H67) -> 566 | I68: =SUM(I57:I67) -> 869 | J68: =SUM(H68,I68) -> 1435 | K68: =SUM(K57:K67) -> 54 | L68: =SUM(L57:L67) -> 67 | M68: =SUM(K68:L68) -> 121 | N68: =SUM(N57:N67) -> 0 | O68: =SUM(O57:O67) -> 0 | P68: =SUM(N68:O68) -> 0 | Q68: =SUM(B68,E68,H68,K68,N68) -> 1277 | R68: =SUM(C68,F68,I68,L68,O68) -> 2667 | S68: 3944 | T68: =SUM(T57:T67) -> 0 | U68: =SUM(U57:U67) -> 0 | V68: 0 | W68: =SUM(W57:W67) -> 0 | X68: =SUM(X57:X67) -> 0 | Y68: 0 | Z68: =SUM(Z57:Z67) -> 0 | AA68: =SUM(AA57:AA67) -> 0 | AB68: 0 | AD68: M | AE68: H | AF68: TOTAL | AH68: M | AI68: H | AJ68: TOTAL
AD69: 0 | AE69: 0 | AF69: =SUM(AD69,AE69) -> 0 | AH69: 0 | AI69: 0 | AJ69: =SUM(AH69,AI69) -> 0
A71: Verificar que la población reportada en CAPEP, CRIE, UOP y UAEBH con discapacidad, al sumarla con la reportada en AS sea correspondiente con lo registrado en la pestaña de Población total. | AF71: Total de estudiantes con discapacidad focalizados
AF73: M | AG73: H | AH73: Total
AF74: =SUM(Q68,AD58,AH58,AD61,AH61) -> 1277 | AG74: =SUM(R68,AE58,AI58,AE61,AI61) -> 2667 | AH74: =SUM(AF74,AG74) -> 3944
A75: TDA: Trastorno por Déficit de Atención
A76: TDA-H: Trastorno por Déficit de Atención e Hiperactividad

Sheet Población beneficiaria AS
V1: Subsecretaría de Educación Básica Dirección General de Desarrollo Curricular Dirección de Fortalecimiento Curricular para la Formación Personal y Social en la Educación Básica Educación Especial
A6: Información cuantitativa respecto a la población con aptitudes sobresalientes que atienden los servicios de educación especial focalizados, en su entidad, por sexo y tipo de condición:
A8: Población con aptitudes sobresalientes atendida por los servicios de educación especial focalizados en el componente 1 para beneficiar en 2024
A9: Condición | B9: Beneficiarias/os por condición y por SEE | H9: Población total beneficiaria | K9: De la población total reportada por condición, especifique si se trata de alguna de las siguientes poblaciones.
B10: USAER | E10: Otro | H10: M | I10: H | J10: TOTAL | K10: Población indígena | N10: Población afrodescendiente | Q10: Población migrante | U10: Estudiantes focalizados aptitudes sobresalientes
B11: M | C11: H | D11: TOTAL | E11: M | F11: H | G11: TOTAL | K11: M | L11: H | M11: TOTAL | N11: M | O11: H | P11: TOTAL | Q11: M | R11: H | S11: TOTAL | U11: CAPEP | Y11: UAEBH
A12: AS Intelectual | B12: 179 | C12: 220 | D12: =SUM(B12:C12) -> 399 | E12: 58 | F12: 109 | G12: =SUM(E12:F12) -> 167 | H12: =SUM(B12,E12) -> 237 | I12: 329 | J12: =SUM(H12:I12) -> 566 | K12: 0 | L12: 0 | M12: =SUM(K12:L12) -> 0 | N12: 0 | O12: 0 | P12: =SUM(N12:O12) -> 0 | Q12: 0 | R12: 0 | S12: =SUM(Q12:R12) -> 0 | U12: M | V12: H | W12: TOTAL | Y12: M | Z12: H | AA12: TOTAL
A13: AS Creativa | B13: 208 | C13: 224 | D13: 432 | E13: 0 | F13: 0 | G13: 0 | H13: 208 | I13: 224 | J13: 432 | K13: 0 | L13: 0 | M13: 0 | N13: 0 | O13: 0 | P13: 0 | Q13: 0 | R13: 0 | S13: 0 | U13: 0 | V13: 0 | W13: =SUM(U13,V13) -> 0 | Y13: 0 | Z13: 0 | AA13: =SUM(Y13,Z13) -> 0
A14: AS Artística | B14: 86 | C14: 56 | D14: 142 | E14: 0 | F14: 0 | G14: 0 | H14: 86 | I14: 56 | J14: 142 | K14: 0 | L14: 0 | M14: 0 | N14: 0 | O14: 0 | P14: 0 | Q14: 0 | R14: 0 | S14: 0 | U14: CRIE | Y14: UOP
A15: AS Psicomotriz | B15: 15 | C15: 37 | D15: 52 | E15: 0 | F15: 0 | G15: 0 | H15: 15 | I15: 37 | J15: 52 | K15: 0 | L15: 0 | M15: 0 | N15: 0 | O15: 0 | P15: 0 | Q15: 0 | R15: 0 | S15: 0 | U15: M | V15: H | W15: TOTAL | Y15: M | Z15: H | AA15: TOTAL
A16: AS Socioafectiva | B16: 34 | C16: 24 | D16: 58 | E16: 0 | F16: 0 | G16: 0 | H16: 34 | I16: 24 | J16: 58 | K16: 0 | L16: 0 | M16: 0 | N16: 0 | O16: 0 | P16: 0 | Q16: 0 | R16: 0 | S16: 0 | U16: 0 | V16: 0 | W16: =SUM(U16,V16) -> 0 | Y16: 0 | Z16: 0 | AA16: =SUM(Y16,Z16) -> 0
A17: Totales | B17: =SUM(B12:B16) -> 522 | C17: =SUM(C12:C16) -> 561 | D17: 1083 | E17: =SUM(E12:E16) -> 58 | F17: =SUM(F12:F16) -> 109 | G17: 167 | H17: =SUM(H12:H16) -> 580 | I17: =SUM(I12:I16) -> 670 | J17: 1250 | K17: =SUM(K12:K16) -> 0 | L17: =SUM(L12:L16) -> 0 | M17: 0 | N17: =SUM(N12:N16) -> 0 | O17: =SUM(O12:O16) -> 0 | P17: 0 | Q17: =SUM(Q12:Q16) -> 0 | R17: =SUM(R12:R16) -> 0 | S17: 0 | U17: Personal docente y/o directivos focalizados
U18: CRIE | Y18: UOP
U19: M | V19: H | W19: TOTAL | Y19: M | Z19: H | AA19: TOTAL
A20: Verificar que la población reportada en CAPEP, CRIE, UOP y UAEBH con discapacidad, al sumarla con la reportada en AS sea correspondiente con lo registrado en la pestaña de Población total. | U20: 0 | V20: 0 | W20: =SUM(U20,V20) -> 0 | Y20: 0 | Z20: 0 | AA20: =SUM(Y20,Z20) -> 0
U21: Familias y/o público en general focalizados
U22: CRIE | Y22: UOP
P23: Total de estudiantes con aptitudes sobresalientes focalizados | U23: M | V23: H | W23: TOTAL | Y23: M | Z23: H | AA23: TOTAL
U24: 0 | V24: 0 | W24: =SUM(U24,V24) -> 0 | Y24: 0 | Z24: 0 | AA24: =SUM(Y24,Z24) -> 0
P25: M | Q25: H | R25: Total
P26: =SUM(B17,E17,U13,U16,Y13,Y16) -> 580 | Q26: =SUM(C17,F17,V13,V16,Z13,Z16) -> 670 | R26: =SUM(D17,G17,W13,W16,AA13,AA16) -> 1250
A28: Población con aptitudes sobresalientes atendida por los servicios de educación especial focalizados en el componente 2 para beneficiar en 2024
A29: Condición | B29: Beneficiarias/os por condición y por SEE | H29: Población total beneficiaria | K29: De la población total reportada por condición, especifique si se trata de alguna de las siguientes poblaciones.
B30: USAER | E30: Otro | H30: M | I30: H | J30: TOTAL | K30: Población indígena | N30: Población afrodescendiente | Q30: Población migrante | U30: Estudiantes focalizados aptitudes sobresalientes
B31: M | C31: H | D31: TOTAL | E31: M | F31: H | G31: TOTAL | K31: M | L31: H | M31: TOTAL | N31: M | O31: H | P31: TOTAL | Q31: M | R31: H | S31: TOTAL | U31: CAPEP | Y31: UAEBH
A32: AS Intelectual | B32: 179 | C32: 220 | D32: =SUM(B32:C32) -> 399 | E32: 0 | F32: 0 | G32: =SUM(E32:F32) -> 0 | H32: =SUM(B32,E32) -> 179 | I32: 220 | J32: =SUM(H32:I32) -> 399 | K32: 0 | L32: 0 | M32: =SUM(K32:L32) -> 0 | N32: 0 | O32: 0 | P32: =SUM(N32:O32) -> 0 | Q32: 0 | R32: 0 | S32: =SUM(Q32:R32) -> 0 | U32: M | V32: H | W32: TOTAL | Y32: M | Z32: H | AA32: TOTAL
A33: AS Creativa | B33: 208 | C33: 224 | D33: 432 | E33: 0 | F33: 0 | G33: 0 | H33: 208 | I33: 224 | J33: 432 | K33: 0 | L33: 0 | M33: 0 | N33: 0 | O33: 0 | P33: 0 | Q33: 0 | R33: 0 | S33: 0 | U33: 0 | V33: 0 | W33: =SUM(U33,V33) -> 0 | Y33: 0 | Z33: 0 | AA33: =SUM(Y33,Z33) -> 0
A34: AS Artística | B34: 86 | C34: 56 | D34: 142 | E34: 0 | F34: 0 | G34: 0 | H34: 86 | I34: 56 | J34: 142 | K34: 0 | L34: 0 | M34: 0 | N34: 0 | O34: 0 | P34: 0 | Q34: 0 | R34: 0 | S34: 0 | U34: CRIE | Y34: UOP
A35: AS Psicomotriz | B35: 15 | C35: 37 | D35: 52 | E35: 0 | F35: 0 | G35: 0 | H35: 15 | I35: 37 | J35: 52 | K35: 0 | L35: 0 | M35: 0 | N35: 0 | O35: 0 | P35: 0 | Q35: 0 | R35: 0 | S35: 0 | U35: M | V35: H | W35: TOTAL | Y35: M | Z35: H | AA35: TOTAL
A36: AS Socioafectiva | B36: 34 | C36: 24 | D36: 58 | E36: 0 | F36: 0 | G36: 0 | H36: 34 | I36: 24 | J36: 58 | K36: 0 | L36: 0 | M36: 0 | N36: 0 | O36: 0 | P36: 0 | Q36: 0 | R36: 0 | S36: 0 | U36: 0 | V36: 0 | W36: =SUM(U36,V36) -> 0 | Y36: 0 | Z36: 0 | AA36: =SUM(Y36,Z36) -> 0
A37: Totales | B37: =SUM(B32:B36) -> 522 | C37: =SUM(C32:C36) -> 561 | D37: 1083 | E37: =SUM(E32:E36) -> 0 | F37: =SUM(F32:F36) -> 0 | G37: 0 | H37: =SUM(H32:H36) -> 522 | I37: =SUM(I32:I36) -> 561 | J37: 1083 | K37: =SUM(K32:K36) -> 0 | L37: =SUM(L32:L36) -> 0 | M37: 0 | N37: =SUM(N32:N36) -> 0 | O37: =SUM(O32:O36) -> 0 | P37: 0 | Q37: =SUM(Q32:Q36) -> 0 | R37: =SUM(R32:R36) -> 0 | S37: 0 | U37: Personal docente y/o directivos focalizados
U38: CRIE | Y38: UOP
U39: M | V39: H | W39: TOTAL | Y39: M | Z39: H | AA39: TOTAL
A40: Verificar que la población reportada en CAPEP, CRIE, UOP y UAEBH con discapacidad, al sumarla con la reportada en AS sea correspondiente con lo registrado en la pestaña de Población total. | U40: 0 | V40: 0 | W40: =SUM(U40,V40) -> 0 | Y40: 0 | Z40: 0 | AA40: =SUM(Y40,Z40) -> 0
U41: Familias y/o público en general focalizados
U42: CRIE | Y42: UOP
P43: Total de estudiantes con aptitudes sobresalientes focalizados | U43: M | V43: H | W43: TOTAL | Y43: M | Z43: H | AA43: TOTAL
U44: 0 | V44: 0 | W44: =SUM(U44,V44) -> 0 | Y44: 0 | Z44: 0 | AA44: =SUM(Y44,Z44) -> 0
P45: M | Q45: H | R45: Total
P46: =SUM(B37,E37,U33,U36,Y33,Y36) -> 522 | Q46: =SUM(C37,F37,V33,V36,Z33,Z36) -> 561 | R46: =SUM(D37,G37,W33,W36,AA33,AA36) -> 1083
A48: Población con aptitudes sobresalientes atendida por los servicios de educación especial focalizados en el componente 3 para beneficiar en 2024
A49: Condición | B49: Beneficiarias/os por condición y por SEE | H49: Población total beneficiaria | K49: De la población total reportada por condición, especifique si se trata de alguna de las siguientes poblaciones.
B50: USAER | E50: Otro | H50: M | I50: H | J50: TOTAL | K50: Población indígena | N50: Población afrodescendiente | Q50: Población migrante | U50: Estudiantes focalizados aptitudes sobresalientes
B51: M | C51: H | D51: TOTAL | E51: M | F51: H | G51: TOTAL | K51: M | L51: H | M51: TOTAL | N51: M | O51: H | P51: TOTAL | Q51: M | R51: H | S51: TOTAL | U51: CAPEP | Y51: UAEBH
A52: AS Intelectual | B52: 179 | C52: 220 | D52: =SUM(B52:C52) -> 399 | E52: 0 | F52: 0 | G52: =SUM(E52:F52) -> 0 | H52: =SUM(B52,E52) -> 179 | I52: 220 | J52: =SUM(H52:I52) -> 399 | K52: 0 | L52: 0 | M52: =SUM(K52:L52) -> 0 | N52: 0 | O52: 0 | P52: =SUM(N52:O52) -> 0 | Q52: 0 | R52: 0 | S52: =SUM(Q52:R52) -> 0 | U52: M | V52: H | W52: TOTAL | Y52: M | Z52: H | AA52: TOTAL
A53: AS Creativa | B53: 208 | C53: 224 | D53: 432 | E53: 0 | F53: 0 | G53: 0 | H53: 208 | I53: 224 | J53: 432 | K53: 0 | L53: 0 | M53: 0 | N53: 0 | O53: 0 | P53: 0 | Q53: 0 | R53: 0 | S53: 0 | U53: 0 | V53: 0 | W53: =SUM(U53,V53) -> 0 | Y53: 0 | Z53: 0 | AA53: =SUM(Y53,Z53) -> 0
A54: AS Artística | B54: 86 | C54: 56 | D54: 142 | E54: 0 | F54: 0 | G54: 0 | H54: 86 | I54: 56 | J54: 142 | K54: 0 | L54: 0 | M54: 0 | N54: 0 | O54: 0 | P54: 0 | Q54: 0 | R54: 0 | S54: 0 | U54: CRIE | Y54: UOP
A55: AS Psicomotriz | B55: 15 | C55: 37 | D55: 52 | E55: 0 | F55: 0 | G55: 0 | H55: 15 | I55: 37 | J55: 52 | K55: 0 | L55: 0 | M55: 0 | N55: 0 | O55: 0 | P55: 0 | Q55: 0 | R55: 0 | S55: 0 | U55: M | V55: H | W55: TOTAL | Y55: M | Z55: H | AA55: TOTAL
A56: AS Socioafectiva | B56: 34 | C56: 24 | D56: 58 | E56: 0 | F56: 0 | G56: 0 | H56: 34 | I56: 24 | J56: 58 | K56: 0 | L56: 0 | M56: 0 | N56: 0 | O56: 0 | P56: 0 | Q56: 0 | R56: 0 | S56: 0 | U56: 0 | V56: 0 | W56: =SUM(U56,V56) -> 0 | Y56: 0 | Z56: 0 | AA56: =SUM(Y56,Z56) -> 0
A57: Totales | B57: =SUM(B52:B56) -> 522 | C57: =SUM(C52:C56) -> 561 | D57: 1083 | E57: =SUM(E52:E56) -> 0 | F57: =SUM(F52:F56) -> 0 | G57: 0 | H57: =SUM(H52:H56) -> 522 | I57: =SUM(I52:I56) -> 561 | J57: 1083 | K57: =SUM(K52:K56) -> 0 | L57: =SUM(L52:L56) -> 0 | M57: 0 | N57: =SUM(N52:N56) -> 0 | O57: =SUM(O52:O56) -> 0 | P57: 0 | Q57: =SUM(Q52:Q56) -> 0 | R57: =SUM(R52:R56) -> 0 | S57: 0 | U57: Personal docente y/o directivos focalizados
U58: CRIE | Y58: UOP
U59: M | V59: H | W59: TOTAL | Y59: M | Z59: H | AA59: TOTAL
A60: Verificar que la población reportada en CAPEP, CRIE, UOP y UAEBH con discapacidad, al sumarla con la reportada en AS sea correspondiente con lo registrado en la pestaña de Población total. | U60: 0 | V60: 0 | W60: =SUM(U60,V60) -> 0 | Y60: 0 | Z60: 0 | AA60: =SUM(Y60,Z60) -> 0
U61: Familias y/o público en general focalizados
U62: CRIE | Y62: UOP
P63: Total de estudiantes con aptitudes sobresalientes focalizados | U63: M | V63: H | W63: TOTAL | Y63: M | Z63: H | AA63: TOTAL
U64: 0 | V64: 0 | W64: =SUM(U64,V64) -> 0 | Y64: 0 | Z64: 0 | AA64: =SUM(Y64,Z64) -> 0
P65: M | Q65: H | R65: Total
P66: =SUM(B57,E57,U53,U56,Y53,Y56) -> 522 | Q66: =SUM(C57,F57,V53,V56,Z53,Z56) -> 561 | R66: =SUM(D57,G57,W53,W56,AA53,AA56) -> 1083
A68: AS: Aptitudes sobresalientes

Sheet 1. Acciones académicas (DIS)
B1: Subsecretaría de Educación Básica Dirección General de Desarrollo Curricular Dirección de Fortalecimiento Curricular para la Formación Personal y Social en la Educación Básica Educación Especial
B6: Componente: 1. Acciones académicas para Agentes educativos en temas de discapacidad
B7: Para garantizar el cumplimiento de los objetivos del PFSEE las AEL podrán destinar hasta un 50% del recurso, de acuerdo con lo estipulado en las reglas de operación 2024.
B8: 1.1 Desarrollo de acciones de actualización y fortalecimiento académico de Agentes educativos en temas de discapacidad
B9: Recurso programado: | F9: ='Estrategia 2024'!H57 -> 1022950 | J9: SEE focalizados: | M9: USAER | N9: ='Servicios EE 2024'!B16 -> 81 | O9: CAM básico | P9: ='Servicios EE 2024'!C16 -> 0 | Q9: Básico FpT | R9: ='Servicios EE 2024'!C18 -> 28 | S9: CAM laboral | T9: ='Servicios EE 2024'!D16 -> 2 | U9: CAPEP | V9: ='Servicios EE 2024'!E16 -> 0 | W9: CRIE | X9: ='Servicios EE 2024'!F16 -> 0 | Y9: UOP | Z9: ='Servicios EE 2024'!G16 -> 0 | AA9: UAEBH | AB9: ='Servicios EE 2024'!H16 -> 0 | AC9: Otro | AD9: ='Servicios EE 2024'!I16 -> 0
B10: Remanente: | F10: =F9-SUM(A12:A63) -> 0
B13: Numero de actividad | D13: 1.1.1
A14: =T14 -> 522950 | B14: Tipo de actividad | D14: Trimestre de inicio | G14: 3ro | I14: Trimestre de término | M14: 3ro | O14: Presupuesto de la actividad | T14: 522950 | W14: Título de la actividad | AC14: Diplomado en Neuroeducación
B15: Diplomado | D15: USAER | G15: CAM básico | J15: CAM básico con FpT | M15: CAM laboral | P15: CAPEP | S15: CRIE | V15: UOP | Y15: UAEBH | AB15: Otro | AE15: Especifique producto o servicio en lo que se planea ejercer | AF15: Propósito de la actividad
D16: SEE: | E16: 81 | G16: SEE: | H16: 0 | J16: SEE: | K16: 0 | M16: SEE: | N16: 0 | P16: SEE: | Q16: 0 | S16: SEE: | T16: 0 | V16: SEE: | W16: 0 | Y16: SEE: | Z16: 0 | AB16: SEE: | AC16: 0
D17: M | E17: H | F17: T | G17: M | H17: H | I17: T | J17: M | K17: H | L17: T | M17: M | N17: H | O17: T | P17: M | Q17: H | R17: T | S17: M | T17: H | U17: T | V17: M | W17: H | X17: T | Y17: M | Z17: H | AA17: T | AB17: M | AC17: H | AD17: T
B18: Supervisores | D18: 2 | E18: 1 | F18: =SUM(D18,E18) -> 3 | G18: 0 | H18: 0 | I18: =SUM(G18,H18) -> 0 | J18: 0 | K18: 0 | L18: =SUM(J18,K18) -> 0 | M18: 0 | N18: 0 | O18: =SUM(M18,N18) -> 0 | P18: 0 | Q18: 0 | R18: =SUM(P18,Q18) -> 0 | S18: 0 | T18: 0 | U18: =SUM(S18,T18) -> 0 | V18: 0 | W18: 0 | X18: =SUM(V18,W18) -> 0 | Y18: 0 | Z18: 0 | AA18: =SUM(Y18,Z18) -> 0 | AB18: 0 | AC18: 0 | AD18: =SUM(AB18,AC18) -> 0 | AE18: Pago a conferencistas o talleristas | AF18: Contribuir a la profesionalización docente y a la mejora continua a través de la formación en neuroeducación de los docentes de educación especial.
B19: Directivas/os | D19: 30 | E19: 12 | F19: 42 | G19: 0 | H19: 0 | I19: 0 | J19: 0 | K19: 0 | L19: 0 | M19: 0 | N19: 0 | O19: 0 | P19: 0 | Q19: 0 | R19: 0 | S19: 0 | T19: 0 | U19: 0 | V19: 0 | W19: 0 | X19: 0 | Y19: 0 | Z19: 0 | AA19: 0 | AB19: 0 | AC19: 0 | AD19: 0 | AE19: Coffee break
B20: Docentes | D20: 46 | E20: 23 | F20: 69 | G20: 0 | H20: 0 | I20: 0 | J20: 0 | K20: 0 | L20: 0 | M20: 0 | N20: 0 | O20: 0 | P20: 0 | Q20: 0 | R20: 0 | S20: 0 | T20: 0 | U20: 0 | V20: 0 | W20: 0 | X20: 0 | Y20: 0 | Z20: 0 | AA20: 0 | AB20: 0 | AC20: 0 | AD20: 0
B21: Equipo de apoyo | D21: 16 | E21: 7 | F21: 23 | G21: 0 | H21: 0 | I21: 0 | J21: 0 | K21: 0 | L21: 0 | M21: 0 | N21: 0 | O21: 0 | P21: 0 | Q21: 0 | R21: 0 | S21: 0 | T21: 0 | U21: 0 | V21: 0 | W21: 0 | X21: 0 | Y21: 0 | Z21: 0 | AA21: 0 | AB21: 0 | AC21: 0 | AD21: 0
B22: Familias | D22: 0 | E22: 0 | F22: 0 | G22: 0 | H22: 0 | I22: 0 | J22: 0 | K22: 0 | L22: 0 | M22: 0 | N22: 0 | O22: 0 | P22: 0 | Q22: 0 | R22: 0 | S22: 0 | T22: 0 | U22: 0 | V22: 0 | W22: 0 | X22: 0 | Y22: 0 | Z22: 0 | AA22: 0 | AB22: 0 | AC22: 0 | AD22: 0
B23: Docentes de EB | D23: 0 | E23: 0 | F23: 0 | G23: 0 | H23: 0 | I23: 0 | J23: 0 | K23: 0 | L23: 0 | M23: 0 | N23: 0 | O23: 0 | P23: 0 | Q23: 0 | R23: 0 | S23: 0 | T23: 0 | U23: 0 | V23: 0 | W23: 0 | X23: 0 | Y23: 0 | Z23: 0 | AA23: 0 | AB23: 0 | AC23: 0 | AD23: 0
B24: Otros | D24: 11 | E24: 2 | F24: 13 | G24: 0 | H24: 0 | I24: 0 | J24: 0 | K24: 0 | L24: 0 | M24: 0 | N24: 0 | O24: 0 | P24: 0 | Q24: 0 | R24: 0 | S24: 0 | T24: 0 | U24: 0 | V24: 0 | W24: 0 | X24: 0 | Y24: 0 | Z24: 0 | AA24: 0 | AB24: 0 | AC24: 0 | AD24: 0
B25: TOTAL | D25: =SUM(D17:D24) -> 105 | E25: 45 | F25: 150 | G25: 0 | H25: 0 | I25: 0 | J25: 0 | K25: 0 | L25: 0 | M25: 0 | N25: 0 | O25: 0 | P25: 0 | Q25: 0 | R25: 0 | S25: 0 | T25: 0 | U25: 0 | V25: 0 | W25: 0 | X25: 0 | Y25: 0 | Z25: 0 | AA25: 0 | AB25: 0 | AC25: 0 | AD25: 0
B27: En caso de requerir alguna precisión o aclaración, describa brevemente:
B28: En equipo de apoyo estan considerados psicólogos, en otros: Asesores Técnicos Pedagógicos. Duración 120 horas: 40 hrs presencial (8 sesiones) y 80 hrs (60 días) de trabajo en plataforma interactiva autogestiva. Modalidad mixta.
B30: Numero de actividad | D30: 1.1.2
A31: =T31 -> 250000 | B31: Tipo de actividad | D31: Trimestre de inicio | G31: 4to | I31: Trimestre de término | M31: 4to | O31: Presupuesto de la actividad | T31: 250000 | W31: Título de la actividad | AC31: Conferencias en Educación Inclusiva
B32: Conferencia | D32: USAER | G32: CAM básico | J32: CAM básico con FpT | M32: CAM laboral | P32: CAPEP | S32: CRIE | V32: UOP | Y32: UAEBH | AB32: Otro | AE32: Especifique producto o servicio en lo que se planea ejercer | AF32: Propósito de la actividad
D33: SEE: | E33: 81 | G33: SEE: | H33: 0 | J33: SEE: | K33: 28 | M33: SEE: | N33: 2 | P33: SEE: | Q33: 0 | S33: SEE: | T33: 0 | V33: SEE: | W33: 0 | Y33: SEE: | Z33: 0 | AB33: SEE: | AC33: 0
D34: M | E34: H | F34: T | G34: M | H34: H | I34: T | J34: M | K34: H | L34: T | M34: M | N34: H | O34: T | P34: M | Q34: H | R34: T | S34: M | T34: H | U34: T | V34: M | W34: H | X34: T | Y34: M | Z34: H | AA34: T | AB34: M | AC34: H | AD34: T
B35: Supervisores | D35: 0 | E35: 0 | F35: 0 | G35: 0 | H35: 0 | I35: =SUM(G35,H35) -> 0 | J35: 0 | K35: 0 | L35: =SUM(J35,K35) -> 0 | M35: 0 | N35: 0 | O35: =SUM(M35,N35) -> 0 | P35: 0 | Q35: 0 | R35: =SUM(P35,Q35) -> 0 | S35: 0 | T35: 0 | U35: =SUM(S35,T35) -> 0 | V35: 0 | W35: 0 | X35: =SUM(V35,W35) -> 0 | Y35: 0 | Z35: 0 | AA35: =SUM(Y35,Z35) -> 0 | AB35: 0 | AC35: 0 | AD35: =SUM(AB35,AC35) -> 0 | AE35: Arrendamiento de salas / salones | AF35: Propiciar espacios de reflexión docente que impacten en la atención a la diversidad del alumnado que se atiende en educación especial y básica.
B36: Directivas/os | D36: 57 | E36: 24 | F36: =SUM(D36,E36) -> 81 | G36: 0 | H36: 0 | I36: 0 | J36: 22 | K36: 6 | L36: 28 | M36: 2 | N36: 0 | O36: 2 | P36: 0 | Q36: 0 | R36: 0 | S36: 0 | T36: 0 | U36: 0 | V36: 0 | W36: 0 | X36: 0 | Y36: 0 | Z36: 0 | AA36: 0 | AB36: 0 | AC36: 0 | AD36: 0 | AE36: Pago a conferencistas o talleristas
B37: Docentes | D37: 150 | E37: 50 | F37: 200 | G37: 0 | H37: 0 | I37: 0 | J37: 100 | K37: 44 | L37: 144 | M37: 0 | N37: 0 | O37: 0 | P37: 0 | Q37: 0 | R37: 0 | S37: 0 | T37: 0 | U37: 0 | V37: 0 | W37: 0 | X37: 0 | Y37: 0 | Z37: 0 | AA37: 0 | AB37: 0 | AC37: 0 | AD37: 0 | AE37: Renta de mobiliario
B38: Equipo de apoyo | D38: 50 | E38: 20 | F38: 70 | G38: 0 | H38: 0 | I38: 0 | J38: 20 | K38: 10 | L38: 30 | M38: 0 | N38: 0 | O38: 0 | P38: 0 | Q38: 0 | R38: 0 | S38: 0 | T38: 0 | U38: 0 | V38: 0 | W38: 0 | X38: 0 | Y38: 0 | Z38: 0 | AA38: 0 | AB38: 0 | AC38: 0 | AD38: 0 | AE38: Renta de equipo de audio y/o video
B39: Familias | D39: 0 | E39: 0 | F39: 0 | G39: 0 | H39: 0 | I39: 0 | J39: 0 | K39: 0 | L39: 0 | M39: 0 | N39: 0 | O39: 0 | P39: 0 | Q39: 0 | R39: 0 | S39: 0 | T39: 0 | U39: 0 | V39: 0 | W39: 0 | X39: 0 | Y39: 0 | Z39: 0 | AA39: 0 | AB39: 0 | AC39: 0 | AD39: 0 | AE39: Coffee break
B40: Docentes de EB | D40: 50 | E40: 50 | F40: 100 | G40: 0 | H40: 0 | I40: 0 | J40: 0 | K40: 0 | L40: 0 | M40: 0 | N40: 0 | O40: 0 | P40: 0 | Q40: 0 | R40: 0 | S40: 0 | T40: 0 | U40: 0 | V40: 0 | W40: 0 | X40: 0 | Y40: 0 | Z40: 0 | AA40: 0 | AB40: 0 | AC40: 0 | AD40: 0 | AE40: Reproducción de materiales
B41: Otros | D41: 14 | E41: 5 | F41: 19 | G41: 0 | H41: 0 | I41: 0 | J41: 0 | K41: 0 | L41: 0 | M41: 0 | N41: 0 | O41: 0 | P41: 0 | Q41: 0 | R41: 0 | S41: 0 | T41: 0 | U41: 0 | V41: 0 | W41: 0 | X41: 0 | Y41: 0 | Z41: 0 | AA41: 0 | AB41: 0 | AC41: 0 | AD41: 0
B42: TOTAL | D42: =SUM(D34:D41) -> 321 | E42: 149 | F42: 470 | G42: 0 | H42: 0 | I42: 0 | J42: 142 | K42: 60 | L42: 202 | M42: 2 | N42: 0 | O42: 2 | P42: 0 | Q42: 0 | R42: 0 | S42: 0 | T42: 0 | U42: 0 | V42: 0 | W42: 0 | X42: 0 | Y42: 0 | Z42: 0 | AA42: 0 | AB42: 0 | AC42: 0 | AD42: 0
B44: En caso de requerir alguna precisión o aclaración, describa brevemente:
B45: Se realizará una jornada académica con duración de 2 días, 10 horas en total, durante los cuales se llevarán a cabo las siguientes conferencias: "La didáctica de las matemáticas en personas con discapacidad intelectual", "La evaluación y atención de los alumnos con trastorno del espectro autista" y "Trastornos psicosociales y discapacidad".
B47: Numero de actividad | D47: 1.1.3
A48: =T48 -> 250000 | B48: Tipo de actividad | D48: Trimestre de inicio | G48: 4to | I48: Trimestre de término | M48: 4to | O48: Presupuesto de la actividad | T48: 250000 | W48: Título de la actividad | AC48: Talleres: Educación Inclusiva
B49: Taller | D49: USAER | G49: CAM básico | J49: CAM básico con FpT | M49: CAM laboral | P49: CAPEP | S49: CRIE | V49: UOP | Y49: UAEBH | AB49: Otro | AE49: Especifique producto o servicio en lo que se planea ejercer | AF49: Propósito de la actividad
D50: SEE: | E50: 81 | G50: SEE: | H50: 0 | J50: SEE: | K50: 28 | M50: SEE: | N50: 2 | P50: SEE: | Q50: 0 | S50: SEE: | T50: 0 | V50: SEE: | W50: 0 | Y50: SEE: | Z50: 0 | AB50: SEE: | AC50: 0
D51: M | E51: H | F51: T | G51: M | H51: H | I51: T | J51: M | K51: H | L51: T | M51: M | N51: H | O51: T | P51: M | Q51: H | R51: T | S51: M | T51: H | U51: T | V51: M | W51: H | X51: T | Y51: M | Z51: H | AA51: T | AB51: M | AC51: H | AD51: T
B52: Supervisores | D52: 0 | E52: 0 | F52: 0 | G52: 0 | H52: 0 | I52: 0 | J52: 0 | K52: 0 | L52: =SUM(J52,K52) -> 0 | M52: 0 | N52: 0 | O52: =SUM(M52,N52) -> 0 | P52: 0 | Q52: 0 | R52: =SUM(P52,Q52) -> 0 | S52: 0 | T52: 0 | U52: =SUM(S52,T52) -> 0 | V52: 0 | W52: 0 | X52: =SUM(V52,W52) -> 0 | Y52: 0 | Z52: 0 | AA52: =SUM(Y52,Z52) -> 0 | AB52: 0 | AC52: 0 | AD52: =SUM(AB52,AC52) -> 0 | AE52: Arrendamiento de salas / salones | AF52: Capacitar a los maestros para diseñar e implementar estrategias didácticas acordes a la población que se atienden.
B53: Directivas/os | D53: 57 | E53: 24 | F53: =SUM(D53,E53) -> 81 | G53: 0 | H53: 0 | I53: =SUM(G53,H53) -> 0 | J53: 22 | K53: 6 | L53: 28 | M53: 2 | N53: 0 | O53: 2 | P53: 0 | Q53: 0 | R53: 0 | S53: 0 | T53: 0 | U53: 0 | V53: 0 | W53: 0 | X53: 0 | Y53: 0 | Z53: 0 | AA53: 0 | AB53: 0 | AC53: 0 | AD53: 0 | AE53: Reproducción de materiales
B54: Docentes | D54: 150 | E54: 50 | F54: 200 | G54: 0 | H54: 0 | I54: 0 | J54: 100 | K54: 44 | L54: 144 | M54: 0 | N54: 0 | O54: 0 | P54: 0 | Q54: 0 | R54: 0 | S54: 0 | T54: 0 | U54: 0 | V54: 0 | W54: 0 | X54: 0 | Y54: 0 | Z54: 0 | AA54: 0 | AB54: 0 | AC54: 0 | AD54: 0 | AE54: Pago a conferencistas o talleristas
B55: Equipo de apoyo | D55: 50 | E55: 20 | F55: =SUM(D55,E55) -> 70 | G55: 0 | H55: 0 | I55: 0 | J55: 20 | K55: 10 | L55: 30 | M55: 0 | N55: 0 | O55: 0 | P55: 0 | Q55: 0 | R55: 0 | S55: 0 | T55: 0 | U55: 0 | V55: 0 | W55: 0 | X55: 0 | Y55: 0 | Z55: 0 | AA55: 0 | AB55: 0 | AC55: 0 | AD55: 0 | AE55: Coffee break
B56: Familias | D56: 0 | E56: 0 | F56: =SUM(D56,E56) -> 0 | G56: 0 | H56: 0 | I56: 0 | J56: 0 | K56: 0 | L56: 0 | M56: 0 | N56: 0 | O56: 0 | P56: 0 | Q56: 0 | R56: 0 | S56: 0 | T56: 0 | U56: 0 | V56: 0 | W56: 0 | X56: 0 | Y56: 0 | Z56: 0 | AA56: 0 | AB56: 0 | AC56: 0 | AD56: 0 | AE56: Renta de equipo de audio y/o video
B57: Docentes de EB | D57: 50 | E57: 50 | F57: =SUM(D57,E57) -> 100 | G57: 0 | H57: 0 | I57: 0 | J57: 0 | K57: 0 | L57: 0 | M57: 0 | N57: 0 | O57: 0 | P57: 0 | Q57: 0 | R57: 0 | S57: 0 | T57: 0 | U57: 0 | V57: 0 | W57: 0 | X57: 0 | Y57: 0 | Z57: 0 | AA57: 0 | AB57: 0 | AC57: 0 | AD57: 0 | AE57: Renta de mobiliario
B58: Otros | D58: 14 | E58: 5 | F58: =SUM(D58,E58) -> 19 | G58: 0 | H58: 0 | I58: 0 | J58: 0 | K58: 0 | L58: 0 | M58: 0 | N58: 0 | O58: 0 | P58: 0 | Q58: 0 | R58: 0 | S58: 0 | T58: 0 | U58: 0 | V58: 0 | W58: 0 | X58: 0 | Y58: 0 | Z58: 0 | AA58: 0 | AB58: 0 | AC58: 0 | AD58: 0
B59: TOTAL | D59: =SUM(D51:D58) -> 321 | E59: 149 | F59: 470 | G59: 0 | H59: 0 | I59: 0 | J59: 142 | K59: 60 | L59: 202 | M59: 2 | N59: 0 | O59: 2 | P59: 0 | Q59: 0 | R59: 0 | S59: 0 | T59: 0 | U59: 0 | V59: 0 | W59: 0 | X59: 0 | Y59: 0 | Z59: 0 | AA59: 0 | AB59: 0 | AC59: 0 | AD59: 0
B61: En caso de requerir alguna precisión o aclaración, describa brevemente:
B62: Se realizará una jornada académica de 2 días, 6 horas en total, durante los cuales se llevarán a cabo los siguientes talleres: "Manejo de las matemáticas en personas con discapacidad intelectual", " Estrategias de intervención en alumnos con trastornos del espectro autista" y "La Intervención pedagógica en alumnos con trastornos psicosociales y discapacidad".

Sheet 1. Acciones académicas (AS)
B1: Subsecretaría de Educación Básica Dirección General de Desarrollo Curricular Dirección de Fortalecimiento Curricular para la Formación Personal y Social en la Educación Básica Educación Especial
B6: Componente: 1. Acciones académicas para Agentes educativos en temas de aptitudes sobresalientes
B7: Para garantizar el cumplimiento de los objetivos del PFSEE las AEL podrán destinar hasta un 50% del recurso, de acuerdo con lo estipulado en las reglas de operación 2024.
B8: 1.1 Desarrollo de acciones de actualización y fortalecimiento académico de Agentes educativos en temas de aptitudes sobresalientes
B9: Recurso programado: | F9: ='Estrategia 2024'!W57 -> 880670 | J9: SEE focalizados: | M9: USAER | N9: ='Servicios EE 2024'!N16 -> 81 | O9: CAPEP | P9: ='Servicios EE 2024'!O16 -> 0 | Q9: CRIE | R9: ='Servicios EE 2024'!P16 -> 0 | S9: UOP | T9: ='Servicios EE 2024'!Q16 -> 0 | U9: UAEBH | V9: ='Servicios EE 2024'!R16 -> 0 | W9: Otro | X9: ='Servicios EE 2024'!S16 -> 1
B10: Remanente: | F10: =F9-SUM(A13:A62) -> 0
B12: Numero de actividad | D12: 1.1.1
A13: =T13 -> 240000 | B13: Tipo de actividad | D13: Trimestre de inicio | G13: 3ro | I13: Trimestre de término | M13: 4to | O13: Presupuesto de la actividad | T13: 240000 | W13: Título de la actividad | AA13: Diplomado en atención a niños con aptitudes sobresalientes
B14: Diplomado | D14: USAER | G14: CAPEP | J14: CRIE | M14: UOP | P14: UAEBH | S14: Otro | V14: Especifique producto o servicio en lo que se planea ejercer | Z14: Propósito de la actividad
D15: SEE: | E15: 81 | G15: SEE: | H15: 0 | J15: SEE: | K15: 0 | M15: SEE: | N15: 0 | P15: SEE: | Q15: 0 | S15: SEE: | T15: 0
D16: M | E16: H | F16: T | G16: M | H16: H | I16: T | J16: M | K16: H | L16: T | M16: M | N16: H | O16: T | P16: M | Q16: H | R16: T | S16: M | T16: H | U16: T
B17: Supervisores | D17: 0 | E17: 0 | F17: =SUM(D17,E17) -> 0 | G17: 0 | H17: 0 | I17: =SUM(G17,H17) -> 0 | J17: 0 | K17: 0 | L17: =SUM(J17,K17) -> 0 | M17: 0 | N17: 0 | O17: =SUM(M17,N17) -> 0 | P17: 0 | Q17: 0 | R17: =SUM(P17,Q17) -> 0 | S17: 0 | T17: 0 | U17: =SUM(S17,T17) -> 0 | V17: Reproducción de materiales | Z17: Que los participantes desarrollen las competencias para la identificación, atención y evaluación de los alumnos con aptitudes sobresalientes, mediante la diversificación de su práctica docente y directiva.
B18: Directivas/os | D18: 7 | E18: 7 | F18: =SUM(D18,E18) -> 14 | G18: 0 | H18: 0 | I18: 0 | J18: 0 | K18: 0 | L18: 0 | M18: 0 | N18: 0 | O18: 0 | P18: 0 | Q18: 0 | R18: 0 | S18: 0 | T18: 0 | U18: 0 | V18: Coffee break
B19: Docentes | D19: 64 | E19: 63 | F19: =SUM(D19,E19) -> 127 | G19: 0 | H19: 0 | I19: 0 | J19: 0 | K19: 0 | L19: 0 | M19: 0 | N19: 0 | O19: 0 | P19: 0 | Q19: 0 | R19: 0 | S19: 0 | T19: 0 | U19: 0 | V19: Compra de papelería
B20: Equipo de apoyo | D20: 7 | E20: 7 | F20: 14 | G20: 0 | H20: 0 | I20: 0 | J20: 0 | K20: 0 | L20: 0 | M20: 0 | N20: 0 | O20: 0 | P20: 0 | Q20: 0 | R20: 0 | S20: 0 | T20: 0 | U20: 0 | V20: Compra de recusos didácticos
B21: Familias | D21: 0 | E21: 0 | F21: 0 | G21: 0 | H21: 0 | I21: 0 | J21: 0 | K21: 0 | L21: 0 | M21: 0 | N21: 0 | O21: 0 | P21: 0 | Q21: 0 | R21: 0 | S21: 0 | T21: 0 | U21: 0
B22: Docentes de EB | D22: 25 | E22: 25 | F22: 50 | G22: 0 | H22: 0 | I22: 0 | J22: 0 | K22: 0 | L22: 0 | M22: 0 | N22: 0 | O22: 0 | P22: 0 | Q22: 0 | R22: 0 | S22: 0 | T22: 0 | U22: 0
B23: Otros | D23: 3 | E23: 2 | F23: 5 | G23: 0 | H23: 0 | I23: 0 | J23: 0 | K23: 0 | L23: 0 | M23: 0 | N23: 0 | O23: 0 | P23: 0 | Q23: 0 | R23: 0 | S23: 0 | T23: 0 | U23: 0
B24: TOTAL | D24: =SUM(D16:D23) -> 106 | E24: 104 | F24: 210 | G24: 0 | H24: 0 | I24: 0 | J24: 0 | K24: 0 | L24: 0 | M24: 0 | N24: 0 | O24: 0 | P24: 0 | Q24: 0 | R24: 0 | S24: 0 | T24: 0 | U24: 0
B26: En caso de requerir alguna precisión o aclaración, describa brevemente:
B27: Equipo de apoyo se contemplan psicólogos o maestros de comunicación. Otros se refiere a Asesores Técnico Pedagógico . Duración 120 horas (17 sesiones presenciales 5 h, 7 sesiones de aplicación práctica). Se replica la acción debido a la necesidad de capacitar a docentes que quedaron fuera durante el ejercicio 2023, es decir que son docentes que no se han beneficiado con este diplomado.
B29: Numero de actividad | D29: 1.1.2
A30: =T30 -> 92850 | B30: Tipo de actividad | D30: Trimestre de inicio | G30: 3ro | I30: Trimestre de término | M30: 4to | O30: Presupuesto de la actividad | T30: 92850 | W30: Título de la actividad | AA30: Taller Enriquecimiento a través del Arte
B31: Taller | D31: USAER | G31: CAPEP | J31: CRIE | M31: UOP | P31: UAEBH | S31: Otro | V31: Especifique producto o servicio en lo que se planea ejercer | Z31: Propósito de la actividad
D32: SEE: | E32: 81 | G32: SEE: | H32: 0 | J32: SEE: | K32: 0 | M32: SEE: | N32: 0 | P32: SEE: | Q32: 0 | S32: SEE: | T32: 0
D33: M | E33: H | F33: T | G33: M | H33: H | I33: T | J33: M | K33: H | L33: T | M33: M | N33: H | O33: T | P33: M | Q33: H | R33: T | S33: M | T33: H | U33: T
B34: Supervisores | D34: 0 | E34: 0 | F34: =SUM(D34,E34) -> 0 | G34: 0 | H34: 0 | I34: =SUM(G34,H34) -> 0 | J34: 0 | K34: 0 | L34: =SUM(J34,K34) -> 0 | M34: 0 | N34: 0 | O34: =SUM(M34,N34) -> 0 | P34: 0 | Q34: 0 | R34: =SUM(P34,Q34) -> 0 | S34: 0 | T34: 0 | U34: =SUM(S34,T34) -> 0 | V34: Compra de recursos didácticos | Z34: Que los maestros cuenten con los elementos teóricos y metodológicos en la implementación de actividades de enriquecimiento a través de las artes plásticas en la escuela, para dar respuesta a las potencialidades y necesidades de los alumnos con aptitudes sobresalientes.
B35: Directivas/os | D35: 0 | E35: 0 | F35: 0 | G35: 0 | H35: 0 | I35: 0 | J35: 0 | K35: 0 | L35: 0 | M35: 0 | N35: 0 | O35: 0 | P35: 0 | Q35: 0 | R35: 0 | S35: 0 | T35: 0 | U35: 0 | V35: Pago a conferencistas o talleristas
B36: Docentes | D36: 150 | E36: 30 | F36: 180 | G36: 0 | H36: 0 | I36: 0 | J36: 0 | K36: 0 | L36: 0 | M36: 0 | N36: 0 | O36: 0 | P36: 0 | Q36: 0 | R36: 0 | S36: 0 | T36: 0 | U36: 0
B37: Equipo de apoyo | D37: 0 | E37: 0 | F37: 0 | G37: 0 | H37: 0 | I37: 0 | J37: 0 | K37: 0 | L37: 0 | M37: 0 | N37: 0 | O37: 0 | P37: 0 | Q37: 0 | R37: 0 | S37: 0 | T37: 0 | U37: 0
B38: Familias | D38: 0 | E38: 0 | F38: 0 | G38: 0 | H38: 0 | I38: 0 | J38: 0 | K38: 0 | L38: 0 | M38: 0 | N38: 0 | O38: 0 | P38: 0 | Q38: 0 | R38: 0 | S38: 0 | T38: 0 | U38: 0
B39: Docentes de EB | D39: 0 | E39: 0 | F39: 0 | G39: 0 | H39: 0 | I39: 0 | J39: 0 | K39: 0 | L39: 0 | M39: 0 | N39: 0 | O39: 0 | P39: 0 | Q39: 0 | R39: 0 | S39: 0 | T39: 0 | U39: 0
B40: Otros | D40: 0 | E40: 0 | F40: 0 | G40: 0 | H40: 0 | I40: 0 | J40: 0 | K40: 0 | L40: 0 | M40: 0 | N40: 0 | O40: 0 | P40: 0 | Q40: 0 | R40: 0 | S40: 0 | T40: 0 | U40: 0
B41: TOTAL | D41: =SUM(D33:D40) -> 150 | E41: 30 | F41: 180 | G41: 0 | H41: 0 | I41: 0 | J41: 0 | K41: 0 | L41: 0 | M41: 0 | N41: 0 | O41: 0 | P41: 0 | Q41: 0 | R41: 0 | S41: 0 | T41: 0 | U41: 0
B43: En caso de requerir alguna precisión o aclaración, describa brevemente:
B44: Asistirán agentes educativos distintos al taller enriquecimiento a través de la ciencia. Duración 10 horas (Dos jornadas de trabajo).
B46: Numero de actividad | D46: 1.1.3
A47: =T47 -> 547820 | B47: Tipo de actividad | D47: Trimestre de inicio | G47: 2do | I47: Trimestre de término | M47: 3ro | O47: Presupuesto de la actividad | T47: 547820 | W47: Título de la actividad | AA47: Taller Enriquecimiento através de la ciencia
B48: Taller | D48: USAER | G48: CAPEP | J48: CRIE | M48: UOP | P48: UAEBH | S48: Otro | V48: Especifique producto o servicio en lo que se planea ejercer | Z48: Propósito de la actividad
D49: SEE: | E49: 81 | G49: SEE: | H49: 0 | J49: SEE: | K49: 0 | M49: SEE: | N49: 0 | P49: SEE: | Q49: 0 | S49: SEE: | T49: 0
D50: M | E50: H | F50: T | G50: M | H50: H | I50: T | J50: M | K50: H | L50: T | M50: M | N50: H | O50: T | P50: M | Q50: H | R50: T | S50: M | T50: H | U50: T
B51: Supervisores | D51: 0 | E51: 0 | F51: =SUM(D51,E51) -> 0 | G51: 0 | H51: 0 | I51: =SUM(G51,H51) -> 0 | J51: 0 | K51: 0 | L51: =SUM(J51,K51) -> 0 | M51: 0 | N51: 0 | O51: =SUM(M51,N51) -> 0 | P51: 0 | Q51: 0 | R51: =SUM(P51,Q51) -> 0 | S51: 0 | T51: 0 | U51: =SUM(S51,T51) -> 0 | V51: Pago a conferencistas o talleristas | Z51: Que los maestros cuenten con los elementos teóricos y metodológicos en la implementación de actividades de enriquecimiento a través de la ciencia en la escuela, para dar respuesta a las potencialidades y necesidades de los alumnos con aptitudes sobresalientes.
B52: Directivas/os | D52: 0 | E52: 0 | F52: 0 | G52: 0 | H52: 0 | I52: 0 | J52: 0 | K52: 0 | L52: 0 | M52: 0 | N52: 0 | O52: 0 | P52: 0 | Q52: 0 | R52: 0 | S52: 0 | T52: 0 | U52: 0 | V52: Compra de recursos didácticos
B53: Docentes | D53: 150 | E53: 30 | F53: 180 | G53: 0 | H53: 0 | I53: 0 | J53: 0 | K53: 0 | L53: 0 | M53: 0 | N53: 0 | O53: 0 | P53: 0 | Q53: 0 | R53: 0 | S53: 0 | T53: 0 | U53: 0
B54: Equipo de apoyo | D54: 0 | E54: 0 | F54: 0 | G54: 0 | H54: 0 | I54: 0 | J54: 0 | K54: 0 | L54: 0 | M54: 0 | N54: 0 | O54: 0 | P54: 0 | Q54: 0 | R54: 0 | S54: 0 | T54: 0 | U54: 0
B55: Familias | D55: 0 | E55: 0 | F55: 0 | G55: 0 | H55: 0 | I55: 0 | J55: 0 | K55: 0 | L55: 0 | M55: 0 | N55: 0 | O55: 0 | P55: 0 | Q55: 0 | R55: 0 | S55: 0 | T55: 0 | U55: 0
B56: Docentes de EB | D56: 0 | E56: 0 | F56: 0 | G56: 0 | H56: 0 | I56: 0 | J56: 0 | K56: 0 | L56: 0 | M56: 0 | N56: 0 | O56: 0 | P56: 0 | Q56: 0 | R56: 0 | S56: 0 | T56: 0 | U56: 0
B57: Otros | D57: 0 | E57: 0 | F57: 0 | G57: 0 | H57: 0 | I57: 0 | J57: 0 | K57: 0 | L57: 0 | M57: 0 | N57: 0 | O57: 0 | P57: 0 | Q57: 0 | R57: 0 | S57: 0 | T57: 0 | U57: 0
B58: TOTAL | D58: =SUM(D50:D57) -> 150 | E58: 30 | F58: 180 | G58: 0 | H58: 0 | I58: 0 | J58: 0 | K58: 0 | L58: 0 | M58: 0 | N58: 0 | O58: 0 | P58: 0 | Q58: 0 | R58: 0 | S58: 0 | T58: 0 | U58: 0
B60: En caso de requerir alguna precisión o aclaración, describa brevemente:
B61: Asistirán agentes educativos distintos al taller enriquecimiento a través del arte. Duración 10 horas (dos jornadas).
B63: 1.2 Encuentros, cursos, talleres y/o reuniones entre madres y padres de familia o tutores de estudiantes con aptitudes sobresalientes para la conformación y la operación de sus redes de apoyo
B64: Recurso programado: | F64: ='Estrategia 2024'!W58 -> 122100 | J64: SEE focalizados: | M64: USAER | N64: ='Servicios EE 2024'!N$16 -> 81 | O64: CAPEP | P64: ='Servicios EE 2024'!O$16 -> 0 | Q64: CRIE | R64: ='Servicios EE 2024'!P$16 -> 0 | S64: UOP | T64: ='Servicios EE 2024'!Q$16 -> 0 | U64: UAEBH | V64: ='Servicios EE 2024'!R$16 -> 0 | W64: Otro | X64: ='Servicios EE 2024'!S$16 -> 1
B65: Remanente: | F65: =F64-SUM(A66:A80) -> 0
A67: =T68 -> 122100 | B67: Numero de actividad | D67: 1.2.1
B68: Tipo de actividad | D68: Trimestre de inicio | G68: 3ro | I68: Trimestre de término | M68: 3ro | O68: Presupuesto de la actividad | T68: 122100 | W68: Título de la actividad | AA68: Manejo de las emociones en mi hijo con aptitudes sobresalientes
B69: Taller | D69: USAER | G69: CAPEP | J69: CRIE | M69: UOP | P69: UAEBH | S69: Otro | V69: Producto o servicio en lo que se planea ejercer | AC69: Propósito de la actividad
D70: SEE: | E70: 81 | G70: SEE: | H70: 0 | J70: SEE: | K70: 0 | M70: SEE: | N70: 0 | P70: SEE: | Q70: 0 | S70: SEE: | T70: 1 | V70: Arrendamiento de salas / salones | AC70: Que los padres de alumnos con aptitudes sobresalientes conozcan estrategias para el manejo de las emociones en sus hijos.
D71: M | E71: H | F71: T | G71: M | H71: H | I71: T | J71: M | K71: H | L71: T | M71: M | N71: H | O71: T | P71: M | Q71: H | R71: T | S71: M | T71: H | U71: T | V71: Reproducción de materiales
B72: Familias | D72: 120 | E72: 60 | F72: =SUM(D72,E72) -> 180 | G72: 0 | H72: 0 | I72: =SUM(G72,H72) -> 0 | J72: 0 | K72: 0 | L72: =SUM(J72,K72) -> 0 | M72: 0 | N72: 0 | O72: 0 | P72: 0 | Q72: 0 | R72: =SUM(P72,Q72) -> 0 | S72: 10 | T72: 10 | U72: =SUM(S72,T72) -> 20 | V72: Compra de papelería
B74: En caso de requerir alguna precisión o aclaración, describa brevemente:
B75: Desarrollo de conferencia con especialista y posteriormente panel con alumnos con aptitudes sobresalientes egresados de los SEE beneficiados con el programa, duración 5 horas.

Sheet 2. Atención complementaria(DIS)
B1: Subsecretaría de Educación Básica Dirección General de Desarrollo Curricular Dirección de Fortalecimiento Curricular para la Formación Personal y Social en la Educación Básica Educación Especial
B6: Componente: 2. Acciones de atención complementaria para estudiantes con discapacidad
B7: Para garantizar el cumplimiento de los objetivos del PFSEE las AEL podrán destinar hasta un 50% del recurso, de acuerdo con lo estipulado en las reglas de operación 2024.
B8: 2.2 Acciones orientadas a que las y los estudiantes con discapacidad pongan en práctica las habilidades académicas, artísticas, deportivas, para la vida y/o laborales y que promuevan la sensibilización, promoción, difusión y desarrollo en la comunidad escolar una cultura inclusiva, a través de campañas, ferias y eventos
B9: Recurso programado: | D9: ='Estrategia 2024'!H63 -> 1161443.54 | H9: SEE focalizados: | K9: USAER | L9: ='Servicios EE 2024'!B$21 -> 0 | M9: CAM básico | N9: ='Servicios EE 2024'!C$21 -> 0 | O9: Básico FpT | P9: ='Servicios EE 2024'!C$23 -> 28 | Q9: CAM laboral | R9: ='Servicios EE 2024'!D$21 -> 2 | S9: CAPEP | T9: ='Servicios EE 2024'!E$21 -> 0 | U9: CRIE | V9: ='Servicios EE 2024'!F$21 -> 0 | W9: UOP | X9: ='Servicios EE 2024'!G$21 -> 0 | Y9: UAEBH | Z9: ='Servicios EE 2024'!H$21 -> 0 | AA9: Otro | AB9: ='Servicios EE 2024'!I$21 -> 0
B10: Remanente | D10: =D9-SUM(A13:A40) -> 0
B12: Numero de actividad | D12: 2.2.1
A13: =R13 -> 1088743.54 | B13: Tipo de actividad | D13: Trimestre de inicio | G13: 3ro | I13: Trimestre de término | L13: 4to | N13: Presupuesto de la actividad | R13: 1088743.54 | V13: Título de la actividad | AC13: Encuentro deportivo
B14: Evento | D14: USAER | G14: CAM básico | J14: CAM básico con FpT | M14: CAM laboral | P14: CAPEP | S14: CRIE | V14: UOP | Y14: UAEBH | AB14: Otro | AE14: Especifique producto o servicio en lo que se planea ejercer | AM14: Propósito de la actividad
D15: SEE: | E15: 0 | G15: SEE: | H15: 0 | J15: SEE: | K15: 28 | M15: SEE: | N15: 2 | P15: SEE: | Q15: 0 | S15: SEE: | T15: 0 | V15: SEE: | W15: 0 | Y15: SEE: | Z15: 0 | AB15: SEE: | AC15: 0
D16: M | E16: H | F16: T | G16: M | H16: H | I16: T | J16: M | K16: H | L16: T | M16: M | N16: H | O16: T | P16: M | Q16: H | R16: T | S16: M | T16: H | U16: T | V16: M | W16: H | X16: T | Y16: M | Z16: H | AA16: T | AB16: M | AC16: H | AD16: T
B17: Estudiantes beneficiados | D17: 0 | E17: 0 | F17: =SUM(D17,E17) -> 0 | G17: 0 | H17: 0 | I17: =SUM(G17,H17) -> 0 | J17: 135 | K17: 134 | L17: =SUM(J17,K17) -> 269 | M17: 21 | N17: 20 | O17: =SUM(M17,N17) -> 41 | P17: 0 | Q17: 0 | R17: =SUM(P17,Q17) -> 0 | S17: 0 | T17: 0 | U17: 0 | V17: 0 | W17: 0 | X17: 0 | Y17: 0 | Z17: 0 | AA17: =SUM(Y17,Z17) -> 0 | AB17: 0 | AC17: 0 | AD17: =SUM(AB17,AC17) -> 0 | AE17: Compra de material deportivo y/o artístico | AM17: Propiciar una convivencia que demuestre las habilidades psicomotrices adquiridas por los alumnos en las disciplinas de futbol, básquetbol, cachibol y atletismo.
AE18: Pago de viáticos para asistentes
B19: En caso de requerir alguna precisión o aclaración, describa brevemente: | AE19: Pago de traslados para asistentes
B20: Actividad deportiva donde participan 21 alumnos por zona en Durango, 20 alumnos por centro de trabajo en Región Laguna; traslado, hospeda y alimentación de alumnos de zonas foráneas. Se formarán equipos para participar en las disciplinas de futbol, basquetbol, atletismo y cachibol. Jornada de un día durante 5 horas. | AE20: Compra de Box lunch
AE21: Adquisición de uniformes
AE22: Diseño y producción de lonas
B26: Numero de actividad | D26: 2.2.2
A27: =R27 -> 72700 | B27: Tipo de actividad | D27: Trimestre de inicio | G27: 4to | I27: Trimestre de término | L27: 4to | N27: Presupuesto de la actividad | R27: 72700 | V27: Título de la actividad | AC27: Feria inclusiva
B28: Feria | D28: USAER | G28: CAM básico | J28: CAM básico con FpT | M28: CAM laboral | P28: CAPEP | S28: CRIE | V28: UOP | Y28: UAEBH | AB28: Otro | AE28: Especifique producto o servicio en lo que se planea ejercer | AM28: Propósito de la actividad
D29: SEE: | E29: 0 | G29: SEE: | H29: 0 | J29: SEE: | K29: 8 | M29: SEE: | N29: 2 | P29: SEE: | Q29: 0 | S29: SEE: | T29: 0 | V29: SEE: | W29: 0 | Y29: SEE: | Z29: 0 | AB29: SEE: | AC29: 0
D30: M | E30: H | F30: T | G30: M | H30: H | I30: T | J30: M | K30: H | L30: T | M30: M | N30: H | O30: T | P30: M | Q30: H | R30: T | S30: M | T30: H | U30: T | V30: M | W30: H | X30: T | Y30: M | Z30: H | AA30: T | AB30: M | AC30: H | AD30: T
B31: Estudiantes beneficiados | D31: 0 | E31: 0 | F31: =SUM(D31,E31) -> 0 | G31: 0 | H31: 0 | I31: =SUM(G31,H31) -> 0 | J31: 307 | K31: 513 | L31: =SUM(J31,K31) -> 820 | M31: 54 | N31: 67 | O31: =SUM(M31,N31) -> 121 | P31: 0 | Q31: 0 | R31: =SUM(P31,Q31) -> 0 | S31: 0 | T31: 0 | U31: =SUM(S31,T31) -> 0 | V31: 0 | W31: 0 | X31: =SUM(V31,W31) -> 0 | Y31: 0 | Z31: 0 | AA31: =SUM(Y31,Z31) -> 0 | AB31: 0 | AC31: 0 | AD31: =SUM(AB31,AC31) -> 0 | AE31: Pago de traslados para asistentes | AM31: Propiciar el intercambio de habilidades artísticas a través de un evento cultural en conjunto con la presentación de productos que se elaboran en los CAM, para promover la inclusión social y laboral de los alumnos con discapacidad.
AE32: Diseño y producción de lonas
B33: En caso de requerir alguna precisión o aclaración, describa brevemente: | AE33: Renta de equipo de audio y/o video
B34: Actividad artística donde participan los 5 CAM de la Ciudad de Durango y 5 CAM de región Laguna, con 2 números artísticos por Centro de Trabajo, en los stand se llevará a cabo un muestreo de las actividades y/o productos que elaboran dentro de la institución. Jornada de un día durante 5 horas. | AE34: Renta de mobiliario

Sheet 2. Atención complementaria(AS)
B1: Subsecretaría de Educación Básica Dirección General de Desarrollo Curricular Dirección de Fortalecimiento Curricular para la Formación Personal y Social en la Educación Básica Educación Especial
B6: Componente: 2. Atención complementaria a estudiantes con aptitudes sobresalientes
B7: Para garantizar el cumplimiento de los objetivos del PFSEE las AEL podrán destinar hasta un 50% del recurso, de acuerdo con lo estipulado en las reglas de operación 2024
B8: 2.1 Acciones orientadas a la intervención directa y la atención complementaria: académica, artística, deportiva, rehabilitadora, desarrollo de habilidades socioafectivas y/o que contribuyan en el diagnóstico de las y los estudiantes con aptitudes sobresalientes
B9: Recurso programado: | D9: ='Estrategia 2024'!W62 -> 1069697.26 | H9: SEE focalizados: | J9: USAER | K9: ='Servicios EE 2024'!N21 -> 81 | L9: CAPEP | M9: ='Servicios EE 2024'!O21 -> 0 | N9: CRIE | O9: ='Servicios EE 2024'!P21 -> 0 | P9: UOP | Q9: ='Servicios EE 2024'!Q21 -> 0 | R9: UAEBH | S9: ='Servicios EE 2024'!R21 -> 0 | T9: Otro | U9: ='Servicios EE 2024'!S21 -> 0
B10: Remanente | D10: =D9-SUM(A13:A53) -> 0
B12: Numero de actividad | D12: 2.1.1
A13: =R13 -> 95248.22 | B13: Tipo de actividad | D13: Trimestre de inicio | G13: 3ro | I13: Trimestre de término | L13: 3ro | N13: Presupuesto de la actividad | R13: 95248.22 | V13: Título de la actividad | W13: Caravanas de la ciencia
B14: Académica | D14: USAER | G14: CAPEP | J14: CRIE | M14: UOP | P14: UAEBH | S14: Otro | V14: Especifique producto o servicio en lo que se planea ejercer | X14: Propósito de la actividad
D15: SEE: | E15: 81 | G15: SEE: | H15: 0 | J15: SEE: | K15: 0 | M15: SEE: | N15: 0 | P15: SEE: | Q15: 0 | S15: SEE: | T15: 0
D16: M | E16: H | F16: T | G16: M | H16: H | I16: T | J16: M | K16: H | L16: T | M16: M | N16: H | O16: T | P16: M | Q16: H | R16: T | S16: M | T16: H | U16: T
B17: Estudiantes beneficiados | D17: 420 | E17: 420 | F17: =SUM(D17,E17) -> 840 | G17: 0 | H17: 0 | I17: =SUM(G17,H17) -> 0 | J17: 0 | K17: 0 | L17: =SUM(J17,K17) -> 0 | M17: 0 | N17: 0 | O17: 0 | P17: 0 | Q17: 0 | R17: =SUM(P17,Q17) -> 0 | S17: 0 | T17: 0 | U17: =SUM(S17,T17) -> 0 | V17: Compra de Box lunch | X17: Motivar el interés y la curiosidad por la ciencia, a través de demostraciones, experimentos y actividades lúdicas implementadas dentro de su contexto escolar para facilitar la detección de alumnos que muestren una inclinación natural por comprender y aprender sobre temas científicos
V18: Pago de traslados para asistentes
B19: En caso de requerir alguna precisión o aclaración, describa brevemente:
B20: Se realizará una jornada de 5 horas (1 día) en una sede de cada zona escolar, donde se llevará a cabo un taller con los alumnos para que realicen prácticas y experimentos relacionados con diversas ramas de la ciencia: química, física, biología y matemáticas. Para colaborar en el proceso de diagnóstico de alumnos.
B26: Numero de actividad | D26: 2.1.2
A27: =R27 -> 500000 | B27: Tipo de actividad | D27: Trimestre de inicio | G27: 4to | I27: Trimestre de término | L27: 4to | N27: Presupuesto de la actividad | R27: 500000 | V27: Título de la actividad | W27: Talleres de enriquecimiento extracurricular de ciencias.
B28: Académica | D28: USAER | G28: CAPEP | J28: CRIE | M28: UOP | P28: UAEBH | S28: Otro | V28: Especifique producto o servicio en lo que se planea ejercer | X28: Propósito de la actividad
D29: SEE: | E29: 65 | G29: SEE: | H29: 0 | J29: SEE: | K29: 0 | M29: SEE: | N29: 0 | P29: SEE: | Q29: 0 | S29: SEE: | T29: 0
D30: M | E30: H | F30: T | G30: M | H30: H | I30: T | J30: M | K30: H | L30: T | M30: M | N30: H | O30: T | P30: M | Q30: H | R30: T | S30: M | T30: H | U30: T
B31: Estudiantes beneficiados | D31: 200 | E31: 200 | F31: =SUM(D31,E31) -> 400 | G31: 0 | H31: 0 | I31: =SUM(G31,H31) -> 0 | J31: 0 | K31: 0 | L31: =SUM(J31,K31) -> 0 | M31: 0 | N31: 0 | O31: =SUM(M31,N31) -> 0 | P31: 0 | Q31: 0 | R31: =SUM(P31,Q31) -> 0 | S31: 0 | T31: 0 | U31: =SUM(S31,T31) -> 0 | V31: Pago a especialistas | X31: Potenciar las aptitudes sobresalientes de los alumnos ofreciéndoles un entorno estimulante y desafiante que les permita desarrollar todo su potencial en los campos del pensamiento científico.
B33: En caso de requerir alguna precisión o aclaración, describa brevemente:
B34: Implementación de talleres de ciencias en 3 grupos, jornadas de 3 horas. Durante 15 sábados.
B40: Numero de actividad | D40: 2.1.3
A41: =R41 -> 474449.04 | B41: Tipo de actividad | D41: Trimestre de inicio | G41: 4to | I41: Trimestre de término | L41: 4to | N41: Presupuesto de la actividad | R41: 474449.04 | V41: Título de la actividad | W41: Talleres de enriquecimiento extracurricular de danza.
B42: Artística | D42: USAER | G42: CAPEP | J42: CRIE | M42: UOP | P42: UAEBH | S42: Otro | V42: Especifique producto o servicio en lo que se planea ejercer | X42: Propósito de la actividad
D43: SEE: | E43: 46 | G43: SEE: | H43: 0 | J43: SEE: | K43: 0 | M43: SEE: | N43: 0 | P43: SEE: | Q43: 0 | S43: SEE: | T43: 0
D44: M | E44: H | F44: T | G44: M | H44: H | I44: T | J44: M | K44: H | L44: T | M44: M | N44: H | O44: T | P44: M | Q44: H | R44: T | S44: M | T44: H | U44: T
B45: Estudiantes beneficiados | D45: 100 | E45: 50 | F45: 150 | G45: 0 | H45: 0 | I45: =SUM(G45,H45) -> 0 | J45: 0 | K45: 0 | L45: 0 | M45: 0 | N45: 0 | O45: 0 | P45: 0 | Q45: 0 | R45: 0 | S45: 0 | T45: 0 | U45: =SUM(S45,T45) -> 0 | V45: Pago a especialistas | X45: Perfeccionar las habilidades técnicas de los alumnos con aptitudes sobresalientes en la danza folklórica.
B47: En caso de requerir alguna precisión o aclaración, describa brevemente:
B48: Implementación de talleres de danza, jornadas de 3 horas, durante 15 sábados en tres grupos de trabajo. Se implementa el siguiente nivel del taller de danza, para dar seguimiento y fortalecer las habilidades adquiridas.

Sheet 3. Equipamiento espec. (DIS)
AV1: Subsecretaría de Educación Básica Dirección General de Desarrollo Curricular Dirección de Fortalecimiento Curricular para la Formación Personal y Social en la Educación Básica Educación Especial
A6: Componente: 3. Equipamiento específico en beneficio de estudiantes con discapacidad
A7: Para garantizar el cumplimiento de los objetivos del PFSEE las AEL podrán destinar hasta un 80% del recurso, de acuerdo con lo estipulado en las reglas de operación 2024
A9: 3.1 Dotar de material didáctico especializado para estudiantes con discapacidad
A10: Recurso programado: | C10: ='Estrategia 2024'!H67 -> 686043.12
A11: Remanente | C11: =C10-AV32 -> 0
C13: Focalizados USAER | F13: ='Servicios EE 2024'!B26 -> 81 | H13: Focalizados CAM básico | K13: ='Servicios EE 2024'!C26 -> 0 | M13: Focalizados CAM b con FpT | P13: ='Servicios EE 2024'!C28 -> 28 | R13: Focalizados CAM laboral | U13: ='Servicios EE 2024'!D26 -> 2 | W13: Focalizados CAPEP | Z13: ='Servicios EE 2024'!E26 -> 0 | AB13: Focalizados CRIE | AE13: ='Servicios EE 2024'!F26 -> 0 | AG13: Focalizados UOP | AJ13: ='Servicios EE 2024'!G26 -> 0 | AL13: Focalizados UAEBH | AO13: ='Servicios EE 2024'!H26 -> 0 | AQ13: Focalizados Otro | AT13: ='Servicios EE 2024'!I26 -> 0
A14: Tipo de materiales (seleccione) | B14: Material a adquirir | C14: Cantidad a distribuir | D14: USAER | H14: Cantidad a distribuir | I14: CAM básico | M14: Cantidad a distribuir | N14: CAM básico con FpT | R14: Cantidad a distribuir | S14: CAM laboral | W14: Cantidad a distribuir | X14: CAPEP | AB14: Cantidad a distribuir | AC14: CRIE | AG14: Cantidad a distribuir | AH14: UOP | AL14: Cantidad a distribuir | AM14: UAEBH | AQ14: Cantidad a distribuir | AR14: Otro | AV14: Presupuesto | AW14: Trimestre de inicio | AX14: Trimestre de término | AY14: Propósito educativo (específico del material a adquirir)
D15: SEE | E15: Estudiantes | I15: SEE | J15: Estudiantes | N15: SEE | O15: Estudiantes | S15: SEE | T15: Estudiantes | X15: SEE | Y15: Estudiantes | AC15: SEE | AD15: Estudiantes | AH15: SEE | AI15: Estudiantes | AM15: SEE | AN15: Estudiantes | AR15: SEE | AS15: Estudiantes
E16: M | F16: H | G16: T | J16: M | K16: H | L16: T | O16: M | P16: H | Q16: T | T16: M | U16: H | V16: T | Y16: M | Z16: H | AA16: T | AD16: M | AE16: H | AF16: T | AI16: M | AJ16: H | AK16: T | AN16: M | AO16: H | AP16: T | AS16: M | AT16: H | AU16: T
A17: Paquetes con diversos materiales | B17: Paquete para DV: 2 alfabeto braille, 2 paquete de fracciones en braille, 3 memorama en braille, 3 lotería braille, 3 mapa en relieve de México, 3 mapa en relieve de Durango, 3 mapamundis en relieve, juegos de mesa: 1 juego gato adaptado y un juego parchis adaptado para discapacidad visual. | C17: 2 | D17: 2 | E17: 1 | F17: 5 | G17: =SUM(E17,F17) -> 6 | H17: 0 | I17: 0 | J17: 0 | K17: 0 | L17: =SUM(J17,K17) -> 0 | M17: 3 | N17: 3 | O17: 3 | P17: 2 | Q17: =SUM(O17,P17) -> 5 | R17: 0 | S17: 0 | T17: 0 | U17: 0 | V17: =SUM(T17,U17) -> 0 | W17: 0 | X17: 0 | Y17: 0 | Z17: 0 | AA17: =SUM(Y17,Z17) -> 0 | AB17: 0 | AC17: 0 | AD17: 0 | AE17: 0 | AF17: =SUM(AD17,AE17) -> 0 | AG17: 0 | AH17: 0 | AI17: 0 | AJ17: 0 | AK17: =SUM(AI17,AJ17) -> 0 | AL17: 0 | AM17: 0 | AN17: 0 | AO17: 0 | AP17: =SUM(AN17,AO17) -> 0 | AQ17: 0 | AR17: 0 | AS17: 0 | AT17: 0 | AU17: =SUM(AS17,AT17) -> 0 | AV17: 65500 | AW17: 3ro | AX17: 4to | AY17: Favorecer el desarrollo de habilidades de pensamiento matemático, lenguaje y conocimiento del medio en alumnos con discapacidad visual.
A18: Paquetes con diversos materiales | B18: Paquete de Juguetes Montessori: 3 Cajas de clasificación cognitiva, 5 juegos de ensamble de madera de diversos campos semánticos: animales, figuras geométricas, verduras, transportes, profesiones. | C18: 0 | D18: 0 | E18: 0 | F18: 0 | G18: =SUM(E18,F18) -> 0 | H18: 0 | I18: 0 | J18: 0 | K18: 0 | L18: =SUM(J18,K18) -> 0 | M18: 5 | N18: 5 | O18: 104 | P18: 159 | Q18: =SUM(O18,P18) -> 263 | R18: 0 | S18: 0 | T18: 0 | U18: 0 | V18: =SUM(T18,U18) -> 0 | W18: 0 | X18: 0 | Y18: 0 | Z18: 0 | AA18: =SUM(Y18,Z18) -> 0 | AB18: 0 | AC18: 0 | AD18: 0 | AE18: 0 | AF18: =SUM(AD18,AE18) -> 0 | AG18: 0 | AH18: 0 | AI18: 0 | AJ18: 0 | AK18: =SUM(AI18,AJ18) -> 0 | AL18: 0 | AM18: 0 | AN18: 0 | AO18: 0 | AP18: =SUM(AN18,AO18) -> 0 | AQ18: 0 | AR18: 0 | AS18: 0 | AT18: 0 | AU18: =SUM(AS18,AT18) -> 0 | AV18: 61750 | AW18: 3ro | AX18: 4to | AY18: Favorcer el desarrollo de la psicomotricidad fina y gruesa, el pensamiento matemático y el conocimiento del mundo en alumnos de CAM
A19: Paquetes con diversos materiales | B19: Material para TEA: 3 tarjetas de horario visual, 3 calendario de anticipación, 3 temporalizadores | C19: 0 | D19: 0 | E19: 0 | F19: 0 | G19: 0 | H19: 0 | I19: 0 | J19: 0 | K19: 0 | L19: 0 | M19: 3 | N19: 3 | O19: 6 | P19: 30 | Q19: 36 | R19: 0 | S19: 0 | T19: 0 | U19: 0 | V19: 0 | W19: 0 | X19: 0 | Y19: 0 | Z19: 0 | AA19: 0 | AB19: 0 | AC19: 0 | AD19: 0 | AE19: 0 | AF19: 0 | AG19: 0 | AH19: 0 | AI19: 0 | AJ19: 0 | AK19: 0 | AL19: 0 | AM19: 0 | AN19: 0 | AO19: 0 | AP19: 0 | AQ19: 0 | AR19: 0 | AS19: 0 | AT19: 0 | AU19: 0 | AV19: 11400 | AW19: 3ro | AX19: 4to | AY19: Favorecer la adaptación a la jornada y rutina diara escolar, así como habilidades para el desarrollo de pensamiento matemático, comunicación y conocimiento del mundo en alumnos con TEA
A20: Paquetes con diversos materiales | B20: Paquete deportivo: 1 twister, 2 set de 3 postes de agilidad y entrenamiento deportivo 1.20m, 3 balones sonoros: 1 de futbol, 1 basquetbol, 1 voleibol, 1 kit de pelotas sensoriales: pelota de yoga de 75 cm con 2 mm de espesor, 1 paracaídas. | C20: 0 | D20: 0 | E20: 0 | F20: 0 | G20: 0 | H20: 0 | I20: 0 | J20: 0 | K20: 0 | L20: 0 | M20: 2 | N20: 2 | O20: 22 | P20: 33 | Q20: 55 | R20: 0 | S20: 0 | T20: 0 | U20: 0 | V20: 0 | W20: 0 | X20: 0 | Y20: 0 | Z20: 0 | AA20: 0 | AB20: 0 | AC20: 0 | AD20: 0 | AE20: 0 | AF20: 0 | AG20: 0 | AH20: 0 | AI20: 0 | AJ20: 0 | AK20: 0 | AL20: 0 | AM20: 0 | AN20: 0 | AO20: 0 | AP20: 0 | AQ20: 0 | AR20: 0 | AS20: 0 | AT20: 0 | AU20: 0 | AV20: 10400 | AW20: 3ro | AX20: 4to | AY20: Favorecer el desarrollo de psicomotricidad gruesa.
A21: Paquetes con diversos materiales | B21: Paquete construcción: 3 Juegos de construcción con bolas y varillas magnéticas de 50 piezas, 3 kit de bloques de construcción LEGO primaria, 3 kit de bloques de construcción LEGO preescolar, 3 kits de bloques magnéticos de construcción en 3D, 1 arenal sensorial. | C21: 0 | D21: 0 | E21: 0 | F21: 0 | G21: 0 | H21: 0 | I21: 0 | J21: 0 | K21: 0 | L21: 0 | M21: 6 | N21: 6 | O21: 224 | P21: 374 | Q21: 598 | R21: 0 | S21: 0 | T21: 0 | U21: 0 | V21: 0 | W21: 0 | X21: 0 | Y21: 0 | Z21: 0 | AA21: 0 | AB21: 0 | AC21: 0 | AD21: 0 | AE21: 0 | AF21: 0 | AG21: 0 | AH21: 0 | AI21: 0 | AJ21: 0 | AK21: 0 | AL21: 0 | AM21: 0 | AN21: 0 | AO21: 0 | AP21: 0 | AQ21: 0 | AR21: 0 | AS21: 0 | AT21: 0 | AU21: 0 | AV21: 223200 | AW21: 3ro | AX21: 4to | AY21: Favorcer el desarrollo de la psicomotricidad fina y gruesa, el pensamiento matemático y el conocimiento del mundo en alumnos de CAM
A22: Paquetes con diversos materiales | B22: Paquete Juegos de estrategia: 1 Jenga gigante, 2 dados de foamy de 50 cm, 1 Adigma, 1 desafío pin-pong, 1 apilamiento de tazas, 1 adivina quién, 1 gato, 1 parchis, 1 acrobat, 2 reloj de arena, 2 temporalizador de 60 min. | C22: 0 | D22: 0 | E22: 0 | F22: 0 | G22: 0 | H22: 0 | I22: 0 | J22: 0 | K22: 0 | L22: 0 | M22: 5 | N22: 5 | O22: 178 | P22: 297 | Q22: 475 | R22: 0 | S22: 0 | T22: 0 | U22: 0 | V22: 0 | W22: 0 | X22: 0 | Y22: 0 | Z22: 0 | AA22: 0 | AB22: 0 | AC22: 0 | AD22: 0 | AE22: 0 | AF22: 0 | AG22: 0 | AH22: 0 | AI22: 0 | AJ22: 0 | AK22: 0 | AL22: 0 | AM22: 0 | AN22: 0 | AO22: 0 | AP22: 0 | AQ22: 0 | AR22: 0 | AS22: 0 | AT22: 0 | AU22: 0 | AV22: 48800 | AW22: 3ro | AX22: 4to | AY22: Mejorar las habilidades cognitivas como la planificación, la toma de decisiones, el razonamiento lógico y la resolución de problemas en alumnos con discapacidad.
A23: Paquetes con diversos materiales | B23: Paquete sensorial: 1 Geoplano, 1 pizarrón magnético, 1 alfabeto de imán, 1 números de imán, 1 máquina de burbujas, 1 lotería de sonidos, 1 memoria electrónica de mano con luces y sonido. | C23: 0 | D23: 0 | E23: 0 | F23: 0 | G23: =SUM(E23,F23) -> 0 | H23: 0 | I23: 0 | J23: 0 | K23: 0 | L23: =SUM(J23,K23) -> 0 | M23: 3 | N23: 3 | O23: 66 | P23: 104 | Q23: =SUM(O23,P23) -> 170 | R23: 0 | S23: 0 | T23: 0 | U23: 0 | V23: =SUM(T23,U23) -> 0 | W23: 0 | X23: 0 | Y23: 0 | Z23: 0 | AA23: =SUM(Y23,Z23) -> 0 | AB23: 0 | AC23: 0 | AD23: 0 | AE23: 0 | AF23: =SUM(AD23,AE23) -> 0 | AG23: 0 | AH23: 0 | AI23: 0 | AJ23: 0 | AK23: =SUM(AI23,AJ23) -> 0 | AL23: 0 | AM23: 0 | AN23: 0 | AO23: 0 | AP23: =SUM(AN23,AO23) -> 0 | AQ23: 0 | AR23: 0 | AS23: 0 | AT23: 0 | AU23: =SUM(AS23,AT23) -> 0 | AV23: 22650 | AW23: 3ro | AX23: 4to | AY23: Favorcer el desarrollo de la psicomotricidad fina y gruesa, el pensamiento matemático y el conocimiento del mundo en alumnos de CAM
A24: Tableros de comunicación | B24: Tableros de madera o plástico grueso con estuche para diferentes campos y contextos | C24: 50 | D24: 5 | E24: 2 | F24: 28 | G24: =SUM(E24,F24) -> 30 | H24: 0 | I24: 0 | J24: 0 | K24: 0 | L24: =SUM(J24,K24) -> 0 | M24: 21 | N24: 4 | O24: 85 | P24: 142 | Q24: =SUM(O24,P24) -> 227 | R24: 0 | S24: 0 | T24: 0 | U24: 0 | V24: =SUM(T24,U24) -> 0 | W24: 0 | X24: 0 | Y24: 0 | Z24: 0 | AA24: =SUM(Y24,Z24) -> 0 | AB24: 0 | AC24: 0 | AD24: 0 | AE24: 0 | AF24: =SUM(AD24,AE24) -> 0 | AG24: 0 | AH24: 0 | AI24: 0 | AJ24: 0 | AK24: =SUM(AI24,AJ24) -> 0 | AL24: 0 | AM24: 0 | AN24: 0 | AO24: 0 | AP24: =SUM(AN24,AO24) -> 0 | AQ24: 0 | AR24: 0 | AS24: 0 | AT24: 0 | AU24: =SUM(AS24,AT24) -> 0 | AV24: 42600 | AW24: 3ro | AX24: 4to | AY24: Favorecer el desarrollo de habilidades de comunicación en alumnos con discapacidad.
A25: Regletas y punzón | B25: Regleta y punzón metálicos tamaño carta resistentes | C25: 8 | D25: 2 | E25: 0 | F25: 3 | G25: 3 | H25: 0 | I25: 0 | J25: 0 | K25: 0 | L25: 0 | M25: 1 | N25: 1 | O25: 1 | P25: 0 | Q25: 1 | R25: 0 | S25: 0 | T25: 0 | U25: 0 | V25: 0 | W25: 0 | X25: 0 | Y25: 0 | Z25: 0 | AA25: 0 | AB25: 0 | AC25: 0 | AD25: 0 | AE25: 0 | AF25: 0 | AG25: 0 | AH25: 0 | AI25: 0 | AJ25: 0 | AK25: 0 | AL25: 0 | AM25: 0 | AN25: 0 | AO25: 0 | AP25: 0 | AQ25: 0 | AR25: 0 | AS25: 0 | AT25: 0 | AU25: 0 | AV25: 14000 | AW25: 3ro | AX25: 4to | AY25: Favorecer el desarrollo de procesos de lectura y escritura en alumnos con DV
A26: Ábaco Cramer | B26: Ábaco de material resistente con estuche | C26: 6 | D26: 2 | E26: 0 | F26: 3 | G26: 3 | H26: 0 | I26: 0 | J26: 0 | K26: 0 | L26: 0 | M26: 4 | N26: 2 | O26: 1 | P26: 1 | Q26: 2 | R26: 0 | S26: 0 | T26: 0 | U26: 0 | V26: 0 | W26: 0 | X26: 0 | Y26: 0 | Z26: 0 | AA26: 0 | AB26: 0 | AC26: 0 | AD26: 0 | AE26: 0 | AF26: 0 | AG26: 0 | AH26: 0 | AI26: 0 | AJ26: 0 | AK26: 0 | AL26: 0 | AM26: 0 | AN26: 0 | AO26: 0 | AP26: 0 | AQ26: 0 | AR26: 0 | AS26: 0 | AT26: 0 | AU26: 0 | AV26: 27040 | AW26: 3ro | AX26: 4to | AY26: Favorecer el desarrollo de pensamiento matemático en alumnos con DV
A27: Regletas cuisenaire | B27: Regletas de material resistente | C27: 18 | D27: 18 | E27: 176 | F27: 458 | G27: 634 | H27: 0 | I27: 0 | J27: 0 | K27: 0 | L27: 0 | M27: 5 | N27: 1 | O27: 28 | P27: 43 | Q27: 71 | R27: 0 | S27: 0 | T27: 0 | U27: 0 | V27: 0 | W27: 0 | X27: 0 | Y27: 0 | Z27: 0 | AA27: 0 | AB27: 0 | AC27: 0 | AD27: 0 | AE27: 0 | AF27: 0 | AG27: 0 | AH27: 0 | AI27: 0 | AJ27: 0 | AK27: 0 | AL27: 0 | AM27: 0 | AN27: 0 | AO27: 0 | AP27: 0 | AQ27: 0 | AR27: 0 | AS27: 0 | AT27: 0 | AU27: 0 | AV27: 13455 | AW27: 3ro | AX27: 4to | AY27: Favorecer el desarrollo de pensamiento matemático en alumnos con Discapacidad
A28: Caja aritmética | B28: Caja de madera resistente | C28: 9 | D28: 6 | E28: 2 | F28: 7 | G28: 9 | H28: 0 | I28: 0 | J28: 0 | K28: 0 | L28: 0 | M28: 5 | N28: 3 | O28: 3 | P28: 2 | Q28: 5 | R28: 0 | S28: 0 | T28: 0 | U28: 0 | V28: 0 | W28: 0 | X28: 0 | Y28: 0 | Z28: 0 | AA28: 0 | AB28: 0 | AC28: 0 | AD28: 0 | AE28: 0 | AF28: 0 | AG28: 0 | AH28: 0 | AI28: 0 | AJ28: 0 | AK28: 0 | AL28: 0 | AM28: 0 | AN28: 0 | AO28: 0 | AP28: 0 | AQ28: 0 | AR28: 0 | AS28: 0 | AT28: 0 | AU28: 0 | AV28: 24000 | AW28: 3ro | AX28: 4to | AY28: Favorecer el desarrollo de pensamiento matemático en alumnos con DV
A29: Material didáctico concreto | B29: Lámpara de lava | C29: 0 | D29: 0 | E29: 0 | F29: 0 | G29: 0 | H29: 0 | I29: 0 | J29: 0 | K29: 0 | L29: 0 | M29: 15 | N29: 3 | O29: 142 | P29: 242 | Q29: 384 | R29: 0 | S29: 0 | T29: 0 | U29: 0 | V29: 0 | W29: 0 | X29: 0 | Y29: 0 | Z29: 0 | AA29: 0 | AB29: 0 | AC29: 0 | AD29: 0 | AE29: 0 | AF29: 0 | AG29: 0 | AH29: 0 | AI29: 0 | AJ29: 0 | AK29: 0 | AL29: 0 | AM29: 0 | AN29: 0 | AO29: 0 | AP29: 0 | AQ29: 0 | AR29: 0 | AS29: 0 | AT29: 0 | AU29: 0 | AV29: 60900 | AW29: 3ro | AX29: 4to | AY29: Favorecer la estimulación sensorial
A30: Paquetes con diversos materiales | B30: Paquete lectoescritura de 5 silabarios, 5 alfabeto móvil, 5 juegos de números móviles de plástico, 5 tarjetas de abecedario por asociación. | C30: 16 | D30: 16 | E30: 176 | F30: 427 | G30: 603 | H30: 0 | I30: 0 | J30: 0 | K30: 0 | L30: 0 | M30: 0 | N30: 0 | O30: 0 | P30: 0 | Q30: 0 | R30: 0 | S30: 0 | T30: 0 | U30: 0 | V30: 0 | W30: 0 | X30: 0 | Y30: 0 | Z30: 0 | AA30: 0 | AB30: 0 | AC30: 0 | AD30: 0 | AE30: 0 | AF30: 0 | AG30: 0 | AH30: 0 | AI30: 0 | AJ30: 0 | AK30: 0 | AL30: 0 | AM30: 0 | AN30: 0 | AO30: 0 | AP30: 0 | AQ30: 0 | AR30: 0 | AS30: 0 | AT30: 0 | AU30: 0 | AV30: 58848.12 | AW30: 3ro | AX30: 4to | AY30: Desarrollar habilidades de lectoescritura en alumnos con discapacidad.
A31: Material didáctico concreto | B31: Lupa | C31: 0 | D31: 0 | E31: 0 | F31: 0 | G31: 0 | H31: 0 | I31: 0 | J31: 0 | K31: 0 | L31: 0 | M31: 5 | N31: 4 | O31: 3 | P31: 2 | Q31: 5 | R31: 0 | S31: 0 | T31: 0 | U31: 0 | V31: 0 | W31: 0 | X31: 0 | Y31: 0 | Z31: 0 | AA31: 0 | AB31: 0 | AC31: 0 | AD31: 0 | AE31: 0 | AF31: 0 | AG31: 0 | AH31: 0 | AI31: 0 | AJ31: 0 | AK31: 0 | AL31: 0 | AM31: 0 | AN31: 0 | AO31: 0 | AP31: 0 | AQ31: 0 | AR31: 0 | AS31: 0 | AT31: 0 | AU31: 0 | AV31: 1500 | AW31: 3ro | AX31: 4to | AY31: Favorecer el acceso a diversos formatos para alumnos con debilidad visual
A32: Total | C32: =SUM(C17:C31) -> 109 | D32: 51 | E32: 357 | F32: 931 | G32: 1288 | H32: 0 | I32: 0 | J32: 0 | K32: 0 | L32: 0 | M32: 83 | N32: 45 | O32: 866 | P32: 1431 | Q32: 2297 | R32: 0 | S32: 0 | T32: 0 | U32: 0 | V32: 0 | W32: 0 | X32: 0 | Y32: 0 | Z32: 0 | AA32: 0 | AB32: 0 | AC32: 0 | AD32: 0 | AE32: 0 | AF32: 0 | AG32: 0 | AH32: =SUM(AH17:AH31) -> 0 | AI32: 0 | AJ32: 0 | AK32: 0 | AL32: 0 | AM32: 0 | AN32: 0 | AO32: 0 | AP32: 0 | AQ32: 0 | AR32: 0 | AS32: 0 | AT32: 0 | AU32: 0 | AV32: 686043.12
A34: En caso de requerir alguna precisión o aclaración, describa brevemente:
A37: 3.2 Dotar de material bibliográfico para estudiantes con discapacidad
A38: Recurso programado: | C38: ='Estrategia 2024'!H68 -> 34200
A39: Remanente | C39: =C38-AV53 -> 0
C41: Focalizados USAER | F41: ='Servicios EE 2024'!B26 -> 81 | H41: Focalizados CAM básico | K41: ='Servicios EE 2024'!C26 -> 0 | M41: Focalizados CAM b con FpT | P41: ='Servicios EE 2024'!C28 -> 28 | R41: Focalizados CAM laboral | U41: ='Servicios EE 2024'!D26 -> 2 | W41: Focalizados CAPEP | Z41: ='Servicios EE 2024'!E26 -> 0 | AB41: Focalizados CRIE | AE41: ='Servicios EE 2024'!F26 -> 0 | AG41: Focalizados UOP | AJ41: ='Servicios EE 2024'!G26 -> 0 | AL41: Focalizados UAEBH | AO41: ='Servicios EE 2024'!H26 -> 0 | AQ41: Focalizados Otro | AT41: ='Servicios EE 2024'!I26 -> 0
A42: Tipo de libros (seleccione) | C42: Cantidad a distribuir | D42: USAER | H42: Cantidad a distribuir | I42: CAM básico | M42: Cantidad a distribuir | N42: CAM básico con FpT | R42: Cantidad a distribuir | S42: CAM laboral | W42: Cantidad a distribuir | X42: CAPEP | AB42: Cantidad a distribuir | AC42: CRIE | AG42: Cantidad a distribuir | AH42: UOP | AL42: Cantidad a distribuir | AM42: UAEBH | AQ42: Cantidad a distribuir | AR42: Otro | AV42: Presupuesto | AW42: Trimestre de inicio | AX42: Trimestre de término | AY42: Propósito educativo (específico de la bibliografía a adquirir)
D43: SEE | E43: Estudiantes | I43: SEE | J43: Estudiantes | N43: SEE | O43: Estudiantes | S43: SEE | T43: Estudiantes | X43: SEE | Y43: Estudiantes | AC43: SEE | AD43: Estudiantes | AH43: SEE | AI43: Estudiantes | AM43: SEE | AN43: Estudiantes | AR43: SEE | AS43: Estudiantes
E44: M | F44: H | G44: T | J44: M | K44: H | L44: T | O44: M | P44: H | Q44: T | T44: M | U44: H | V44: T | Y44: M | Z44: H | AA44: T | AD44: M | AE44: H | AF44: T | AI44: M | AJ44: H | AK44: T | AN44: M | AO44: H | AP44: T | AS44: M | AT44: H | AU44: T
A45: Especializados en atención educativa | C45: 2 | D45: 1 | E45: 1 | F45: 21 | G45: =SUM(E45,F45) -> 22 | H45: 0 | I45: 0 | J45: 0 | K45: 0 | L45: =SUM(J45,K45) -> 0 | M45: 0 | N45: 0 | O45: 0 | P45: 0 | Q45: =SUM(O45,P45) -> 0 | R45: 0 | S45: 0 | T45: 0 | U45: 0 | V45: =SUM(T45,U45) -> 0 | W45: 0 | X45: 0 | Y45: 0 | Z45: 0 | AA45: =SUM(Y45,Z45) -> 0 | AB45: 0 | AC45: 0 | AD45: 0 | AE45: 0 | AF45: =SUM(AD45,AE45) -> 0 | AG45: 0 | AH45: 0 | AI45: 0 | AJ45: 0 | AK45: =SUM(AI45,AJ45) -> 0 | AL45: 0 | AM45: 0 | AN45: 0 | AO45: 0 | AP45: =SUM(AN45,AO45) -> 0 | AQ45: 0 | AR45: 0 | AS45: 0 | AT45: 0 | AU45: =SUM(AS45,AT45) -> 0 | AV45: 5400 | AW45: 3ro | AX45: 4to | AY45: Proporcionar recursos y herramientas específicas para mejorar la atención educativa, el desarrollo personal de los estudiantes.
A46: Especializados en discapacidad | C46: 2 | D46: 1 | E46: 4 | F46: 14 | G46: =SUM(E46,F46) -> 18 | H46: 0 | I46: 0 | J46: 0 | K46: 0 | L46: =SUM(J46,K46) -> 0 | M46: 0 | N46: 0 | O46: 0 | P46: 0 | Q46: =SUM(O46,P46) -> 0 | R46: 0 | S46: 0 | T46: 0 | U46: 0 | V46: =SUM(T46,U46) -> 0 | W46: 0 | X46: 0 | Y46: 0 | Z46: 0 | AA46: =SUM(Y46,Z46) -> 0 | AB46: 0 | AC46: 0 | AD46: 0 | AE46: 0 | AF46: =SUM(AD46,AE46) -> 0 | AG46: 0 | AH46: 0 | AI46: 0 | AJ46: 0 | AK46: =SUM(AI46,AJ46) -> 0 | AL46: 0 | AM46: 0 | AN46: 0 | AO46: 0 | AP46: =SUM(AN46,AO46) -> 0 | AQ46: 0 | AR46: 0 | AS46: 0 | AT46: 0 | AU46: =SUM(AS46,AT46) -> 0 | AV46: 3800 | AW46: 3ro | AX46: 4to | AY46: Ofrecer a los docentes estrategias y técnicas adicionales para abordar las necesidades individuales de los estudiantes en el aula.
A47: Especializados en atención educativa | C47: 2 | D47: 1 | E47: 4 | F47: 11 | G47: 15 | H47: 0 | I47: 0 | J47: 0 | K47: 0 | L47: 0 | M47: 0 | N47: 0 | O47: 0 | P47: 0 | Q47: 0 | R47: 0 | S47: 0 | T47: 0 | U47: 0 | V47: 0 | W47: 0 | X47: 0 | Y47: 0 | Z47: 0 | AA47: 0 | AB47: 0 | AC47: 0 | AD47: 0 | AE47: 0 | AF47: 0 | AG47: 0 | AH47: 0 | AI47: 0 | AJ47: 0 | AK47: 0 | AL47: 0 | AM47: 0 | AN47: 0 | AO47: 0 | AP47: 0 | AQ47: 0 | AR47: 0 | AS47: 0 | AT47: 0 | AU47: 0 | AV47: 16200 | AW47: 3ro | AX47: 4to | AY47: Mejorar las habilidades de lenguaje y expresión oral, al exponerse a una variedad de estilos de escritura y estructura lingüística.
A48: Especializados en atención educativa | C48: 2 | D48: 1 | E48: 11 | F48: 20 | G48: 31 | H48: 0 | I48: 0 | J48: 0 | K48: 0 | L48: 0 | M48: 0 | N48: 0 | O48: 0 | P48: 0 | Q48: 0 | R48: 0 | S48: 0 | T48: 0 | U48: 0 | V48: 0 | W48: 0 | X48: 0 | Y48: 0 | Z48: 0 | AA48: 0 | AB48: 0 | AC48: 0 | AD48: 0 | AE48: 0 | AF48: 0 | AG48: 0 | AH48: 0 | AI48: 0 | AJ48: 0 | AK48: 0 | AL48: 0 | AM48: 0 | AN48: 0 | AO48: 0 | AP48: 0 | AQ48: 0 | AR48: 0 | AS48: 0 | AT48: 0 | AU48: 0 | AV48: 2400 | AW48: 3ro | AX48: 4to | AY48: Ofrecer estrategias para apoyar el desarrollo de habilidades sociales y emocionales como la comunicación, la interaccción social y la autorregulación emocional en alumnos con autismo.
A49: En formatos accesibles | C49: 2 | D49: 2 | E49: 2 | F49: 5 | G49: 7 | H49: 0 | I49: 0 | J49: 0 | K49: 0 | L49: 0 | M49: 0 | N49: 0 | O49: 0 | P49: 0 | Q49: 0 | R49: 0 | S49: 0 | T49: 0 | U49: 0 | V49: 0 | W49: 0 | X49: 0 | Y49: 0 | Z49: 0 | AA49: 0 | AB49: 0 | AC49: 0 | AD49: 0 | AE49: 0 | AF49: 0 | AG49: 0 | AH49: 0 | AI49: 0 | AJ49: 0 | AK49: 0 | AL49: 0 | AM49: 0 | AN49: 0 | AO49: 0 | AP49: 0 | AQ49: 0 | AR49: 0 | AS49: 0 | AT49: 0 | AU49: 0 | AV49: 6400 | AW49: 3ro | AX49: 4to | AY49: Proporcionar a los estudiantes con discapacidad visual acceso a material educativo que le permita participar plenamente en actividades educativas.
C50: 0 | D50: 0 | E50: 0 | F50: 0 | G50: 0 | H50: 0 | I50: 0 | J50: 0 | K50: 0 | L50: 0 | M50: 0 | N50: 0 | O50: 0 | P50: 0 | Q50: 0 | R50: 0 | S50: 0 | T50: 0 | U50: 0 | V50: 0 | W50: 0 | X50: 0 | Y50: 0 | Z50: 0 | AA50: 0 | AB50: 0 | AC50: 0 | AD50: 0 | AE50: 0 | AF50: 0 | AG50: 0 | AH50: 0 | AI50: 0 | AJ50: 0 | AK50: 0 | AL50: 0 | AM50: 0 | AN50: 0 | AO50: 0 | AP50: 0 | AQ50: 0 | AR50: 0 | AS50: 0 | AT50: 0 | AU50: 0
C51: 0 | D51: 0 | E51: 0 | F51: 0 | G51: 0 | H51: 0 | I51: 0 | J51: 0 | K51: 0 | L51: 0 | M51: 0 | N51: 0 | O51: 0 | P51: 0 | Q51: 0 | R51: 0 | S51: 0 | T51: 0 | U51: 0 | V51: 0 | W51: 0 | X51: 0 | Y51: 0 | Z51: 0 | AA51: 0 | AB51: 0 | AC51: 0 | AD51: 0 | AE51: 0 | AF51: 0 | AG51: 0 | AH51: 0 | AI51: 0 | AJ51: 0 | AK51: 0 | AL51: 0 | AM51: 0 | AN51: 0 | AO51: 0 | AP51: 0 | AQ51: 0 | AR51: 0 | AS51: 0 | AT51: 0 | AU51: 0
C52: 0 | D52: 0 | E52: 0 | F52: 0 | G52: 0 | H52: 0 | I52: 0 | J52: 0 | K52: 0 | L52: 0 | M52: 0 | N52: 0 | O52: 0 | P52: 0 | Q52: 0 | R52: 0 | S52: 0 | T52: 0 | U52: 0 | V52: 0 | W52: 0 | X52: 0 | Y52: 0 | Z52: 0 | AA52: 0 | AB52: 0 | AC52: 0 | AD52: 0 | AE52: 0 | AF52: 0 | AG52: 0 | AH52: 0 | AI52: 0 | AJ52: 0 | AK52: 0 | AL52: 0 | AM52: 0 | AN52: 0 | AO52: 0 | AP52: 0 | AQ52: 0 | AR52: 0 | AS52: 0 | AT52: 0 | AU52: 0
A53: Total | C53: =SUM(C45:C52) -> 10 | D53: 6 | E53: 22 | F53: 71 | G53: 93 | H53: 0 | I53: 0 | J53: 0 | K53: 0 | L53: 0 | M53: 0 | N53: 0 | O53: 0 | P53: 0 | Q53: 0 | R53: 0 | S53: 0 | T53: 0 | U53: 0 | V53: 0 | W53: 0 | X53: 0 | Y53: 0 | Z53: 0 | AA53: 0 | AB53: 0 | AC53: 0 | AD53: 0 | AE53: 0 | AF53: 0 | AG53: 0 | AH53: 0 | AI53: 0 | AJ53: 0 | AK53: 0 | AL53: 0 | AM53: 0 | AN53: 0 | AO53: 0 | AP53: 0 | AQ53: 0 | AR53: 0 | AS53: 0 | AT53: 0 | AU53: 0 | AV53: 34200
A55: En caso de requerir alguna precisión o aclaración, describa brevemente:
A56: Son paquetes de libros a distribuir.
A58: 3.5 Dotar de equipo adaptado, tecnológico y/o multimedia para estudiantes con discapacidad
A59: Recurso programado: | C59: ='Estrategia 2024'!H71 -> 1643430
A60: Remanente | C60: =C59-AV77 -> 0
C62: Focalizados USAER | F62: ='Servicios EE 2024'!B26 -> 81 | H62: Focalizados CAM básico | K62: ='Servicios EE 2024'!C26 -> 0 | M62: Focalizados CAM b con FpT | P62: ='Servicios EE 2024'!C28 -> 28 | R62: Focalizados CAM laboral | U62: ='Servicios EE 2024'!D26 -> 2 | W62: Focalizados CAPEP | Z62: ='Servicios EE 2024'!E26 -> 0 | AB62: Focalizados CRIE | AE62: ='Servicios EE 2024'!F26 -> 0 | AG62: Focalizados UOP | AJ62: ='Servicios EE 2024'!G26 -> 0 | AL62: Focalizados UAEBH | AO62: ='Servicios EE 2024'!H26 -> 0 | AQ62: Focalizados Otro | AT62: ='Servicios EE 2024'!I26 -> 0
A63: Tipo de equipo (seleccione) | B63: Características generales de los equipos | C63: Cantidad a distribuir | D63: USAER | H63: Cantidad a distribuir | I63: CAM básico | M63: Cantidad a distribuir | N63: CAM básico con FpT | R63: Cantidad a distribuir | S63: CAM laboral | W63: Cantidad a distribuir | X63: CAPEP | AB63: Cantidad a distribuir | AC63: CRIE | AG63: Cantidad a distribuir | AH63: UOP | AL63: Cantidad a distribuir | AM63: UAEBH | AQ63: Cantidad a distribuir | AR63: Otro | AV63: Presupuesto | AW63: Trimestre de inicio | AX63: Trimestre de término | AY63: Propósito educativo (específico de los materiales)
D64: SEE | E64: Estudiantes | I64: SEE | J64: Estudiantes | N64: SEE | O64: Estudiantes | S64: SEE | T64: Estudiantes | X64: SEE | Y64: Estudiantes | AC64: SEE | AD64: Estudiantes | AH64: SEE | AI64: Estudiantes | AM64: SEE | AN64: Estudiantes | AR64: SEE | AS64: Estudiantes
E65: M | F65: H | G65: T | J65: M | K65: H | L65: T | O65: M | P65: H | Q65: T | T65: M | U65: H | V65: T | Y65: M | Z65: H | AA65: T | AD65: M | AE65: H | AF65: T | AI65: M | AJ65: H | AK65: T | AN65: M | AO65: H | AP65: T | AS65: M | AT65: H | AU65: T
A66: Cañón | B66: Proyector lcd, 3400 lúmenes, brillo de proyector, lámpara UHE 210 vatios, tecnología de proyección 3LCD, resolución de proyección XGA (1024 x 768), resolución de contraste 15000:1 dinámico | C66: 19 | D66: 16 | E66: 138 | F66: 344 | G66: =SUM(E66,F66) -> 482 | H66: 0 | I66: 0 | J66: 0 | K66: 0 | L66: =SUM(J66,K66) -> 0 | M66: 13 | N66: 12 | O66: 269 | P66: 468 | Q66: =SUM(O66,P66) -> 737 | R66: 0 | S66: 0 | T66: 0 | U66: 0 | V66: =SUM(T66,U66) -> 0 | W66: 0 | X66: 0 | Y66: 0 | Z66: 0 | AA66: =SUM(Y66,Z66) -> 0 | AB66: 0 | AC66: 0 | AD66: 0 | AE66: 0 | AF66: =SUM(AD66,AE66) -> 0 | AG66: 0 | AH66: 0 | AI66: 0 | AJ66: 0 | AK66: =SUM(AI66,AJ66) -> 0 | AL66: 0 | AM66: 0 | AN66: 0 | AO66: 0 | AP66: =SUM(AN66,AO66) -> 0 | AQ66: 0 | AR66: 0 | AS66: 0 | AT66: 0 | AU66: =SUM(AS66,AT66) -> 0 | AV66: 422560.47 | AW66: 3ro | AX66: 4to | AY66: Facilitar las actividades académicas a favor de alumnos con discapacidad.
A67: Equipo de cómputo | B67: Laptop, procesador intel core i5-1235 U 12 th gen (12 MB CACHÉ, 10 core 12 threads 4.40 Ghz turbo). Sistema operativo windows 11 home single en español. Microsoft office profesional 2021 en español. Adaptador de C.A.65 watt. Memoria ram 8 gb DDR4 3200 mhz. pantalla 16 pulgadas fhd (1920 x 1200) 60 hz led antirreflejo. teclado en español, tarjeta inalámbrica wifi 6E AX211, 2X2, 802.11ax, bluetooth. | C67: 8 | D67: 8 | E67: 45 | F67: 139 | G67: =SUM(E67,F67) -> 184 | H67: 0 | I67: 0 | J67: 0 | K67: 0 | L67: =SUM(J67,K67) -> 0 | M67: 3 | N67: 3 | O67: 37 | P67: 63 | Q67: =SUM(O67,P67) -> 100 | R67: 1 | S67: 1 | T67: 33 | U67: 33 | V67: =SUM(T67,U67) -> 66 | W67: 0 | X67: 0 | Y67: 0 | Z67: 0 | AA67: =SUM(Y67,Z67) -> 0 | AB67: 0 | AC67: 0 | AD67: 0 | AE67: 0 | AF67: =SUM(AD67,AE67) -> 0 | AG67: 0 | AH67: 0 | AI67: 0 | AJ67: 0 | AK67: =SUM(AI67,AJ67) -> 0 | AL67: 0 | AM67: 0 | AN67: 0 | AO67: 0 | AP67: =SUM(AN67,AO67) -> 0 | AQ67: 0 | AR67: 0 | AS67: 0 | AT67: 0 | AU67: =SUM(AS67,AT67) -> 0 | AV67: 372000 | AW67: 3ro | AX67: 4to | AY67: Favorecer el desarrollo de habilidades digitales en los alumnos mediante TICS y comunucación.
A68: Equipo de cómputo | B68: Pc escritorio: Intel®️ Core™️ i5 14500T vPro®️ (24MB cache, 14 cores, 20 threads, up to 4.8 GHz) Windows 11 Pro, inglés, español, francés y portugués de Brasil Intel®️ Graphics 8 GB: 1 x 8 GB, DDR5 256 GB, M.2 2230, PCIe NVMe, SSD, Class 35 23.8 pulgadas pantalla. | C68: 1 | D68: 1 | E68: 2 | F68: 8 | G68: 10 | H68: 0 | I68: 0 | J68: 0 | K68: 0 | L68: 0 | M68: 10 | N68: 10 | O68: 175 | P68: 251 | Q68: 426 | R68: 0 | S68: 0 | T68: 0 | U68: 0 | V68: 0 | W68: 0 | X68: 0 | Y68: 0 | Z68: 0 | AA68: 0 | AB68: 0 | AC68: 0 | AD68: 0 | AE68: 0 | AF68: 0 | AG68: 0 | AH68: 0 | AI68: 0 | AJ68: 0 | AK68: 0 | AL68: 0 | AM68: 0 | AN68: 0 | AO68: 0 | AP68: 0 | AQ68: 0 | AR68: 0 | AS68: 0 | AT68: 0 | AU68: 0 | AV68: 258000 | AW68: 3ro | AX68: 4to | AY68: Fortalecer procesos de aprendizaje de los alumnos con uso de programas especiales
A69: Impresora | B69: Multifuncional de inyección de tinta continua, volumen de impresión mensual 500 páginas aproximadamente, velocidad de impresión en negro 10 ppm, velocidad de impresión a color 5 ppm, interface ethernet integrada. | C69: 13 | D69: 13 | E69: 89 | F69: 248 | G69: 337 | H69: 0 | I69: 0 | J69: 0 | K69: 0 | L69: 0 | M69: 15 | N69: 15 | O69: 264 | P69: 391 | Q69: 655 | R69: 1 | S69: 1 | T69: 33 | U69: 33 | V69: 66 | W69: 0 | X69: 0 | Y69: 0 | Z69: 0 | AA69: 0 | AB69: 0 | AC69: 0 | AD69: 0 | AE69: 0 | AF69: 0 | AG69: 0 | AH69: 0 | AI69: 0 | AJ69: 0 | AK69: 0 | AL69: 0 | AM69: 0 | AN69: 0 | AO69: 0 | AP69: 0 | AQ69: 0 | AR69: 0 | AS69: 0 | AT69: 0 | AU69: 0 | AV69: 290000 | AW69: 3ro | AX69: 4to | AY69: Favorecer el desarrollo de habilidades cognitivas y sensoperceptuales en alumnos con discapacidad y trastornos (TEA y TDAH)
A70: Enmicadora | B70: Enmicadora térmica fusión ancho 22 cm carta, 3.5 milésimas, dimensiones 14, 2L, x 12,6 w x 41, 4h centímetros. | C70: 1 | D70: 1 | E70: 11 | F70: 24 | G70: 35 | H70: 0 | I70: 0 | J70: 0 | K70: 0 | L70: 0 | M70: 6 | N70: 6 | O70: 123 | P70: 199 | Q70: 322 | R70: 0 | S70: 0 | T70: 0 | U70: 0 | V70: 0 | W70: 0 | X70: 0 | Y70: 0 | Z70: 0 | AA70: 0 | AB70: 0 | AC70: 0 | AD70: 0 | AE70: 0 | AF70: 0 | AG70: 0 | AH70: 0 | AI70: 0 | AJ70: 0 | AK70: 0 | AL70: 0 | AM70: 0 | AN70: 0 | AO70: 0 | AP70: 0 | AQ70: 0 | AR70: 0 | AS70: 0 | AT70: 0 | AU70: 0 | AV70: 12600 | AW70: 3ro | AX70: 4to | AY70: Apoyar el desarrollo de habilidades manuales de los alumnos y la protección de materiales.
A71: Reproductor de video | B71: Smart tv, 50 pulgadas, diseño flat-FHD, resolución: 1920 x 1080, 16-7 70 hz, white color enhancer, mega contraste, connect share, POP integrado IP video close. | C71: 0 | D71: 0 | E71: 0 | F71: 0 | G71: =SUM(E71,F71) -> 0 | H71: 0 | I71: 0 | J71: 0 | K71: 0 | L71: =SUM(J71,K71) -> 0 | M71: 4 | N71: 4 | O71: 58 | P71: 74 | Q71: =SUM(O71,P71) -> 132 | R71: 0 | S71: 0 | T71: 0 | U71: 0 | V71: =SUM(T71,U71) -> 0 | W71: 0 | X71: 0 | Y71: 0 | Z71: 0 | AA71: =SUM(Y71,Z71) -> 0 | AB71: 0 | AC71: 0 | AD71: 0 | AE71: 0 | AF71: =SUM(AD71,AE71) -> 0 | AG71: 0 | AH71: 0 | AI71: 0 | AJ71: 0 | AK71: =SUM(AI71,AJ71) -> 0 | AL71: 0 | AM71: 0 | AN71: 0 | AO71: 0 | AP71: =SUM(AN71,AO71) -> 0 | AQ71: 0 | AR71: 0 | AS71: 0 | AT71: 0 | AU71: =SUM(AS71,AT71) -> 0 | AV71: 39734.2 | AW71: 3ro | AX71: 4to | AY71: Apoyo a las actividades académias dentro del aula.
A72: Otro (especifique) | B72: Teclado adaptado (Braille) para equipo computo. | C72: 4 | D72: 4 | E72: 3 | F72: 6 | G72: =SUM(E72,F72) -> 9 | H72: 0 | I72: 0 | J72: 0 | K72: 0 | L72: =SUM(J72,K72) -> 0 | M72: 7 | N72: 7 | O72: 4 | P72: 5 | Q72: =SUM(O72,P72) -> 9 | R72: 0 | S72: 0 | T72: 0 | U72: 0 | V72: =SUM(T72,U72) -> 0 | W72: 0 | X72: 0 | Y72: 0 | Z72: 0 | AA72: =SUM(Y72,Z72) -> 0 | AB72: 0 | AC72: 0 | AD72: 0 | AE72: 0 | AF72: =SUM(AD72,AE72) -> 0 | AG72: 0 | AH72: 0 | AI72: 0 | AJ72: 0 | AK72: =SUM(AI72,AJ72) -> 0 | AL72: 0 | AM72: 0 | AN72: 0 | AO72: 0 | AP72: =SUM(AN72,AO72) -> 0 | AQ72: 0 | AR72: 0 | AS72: 0 | AT72: 0 | AU72: =SUM(AS72,AT72) -> 0 | AV72: 19940.25 | AW72: 3ro | AX72: 4to | AY72: Favorecer acceso a contenidos en los alumnos
A73: Otro (especifique) | B73: Cámara video, cámara web para PC y portátil, 1080 p - micrófono, conexión USB, 1920x1080 hd resolución, clip adaptador de pantalla. | C73: 0 | D73: 0 | E73: 0 | F73: 0 | G73: =SUM(E73,F73) -> 0 | H73: 0 | I73: 0 | J73: 0 | K73: 0 | L73: =SUM(J73,K73) -> 0 | M73: 1 | N73: 1 | O73: 29 | P73: 51 | Q73: =SUM(O73,P73) -> 80 | R73: 0 | S73: 0 | T73: 0 | U73: 0 | V73: =SUM(T73,U73) -> 0 | W73: 0 | X73: 0 | Y73: 0 | Z73: 0 | AA73: =SUM(Y73,Z73) -> 0 | AB73: 0 | AC73: 0 | AD73: 0 | AE73: 0 | AF73: =SUM(AD73,AE73) -> 0 | AG73: 0 | AH73: 0 | AI73: 0 | AJ73: 0 | AK73: =SUM(AI73,AJ73) -> 0 | AL73: 0 | AM73: 0 | AN73: 0 | AO73: 0 | AP73: =SUM(AN73,AO73) -> 0 | AQ73: 0 | AR73: 0 | AS73: 0 | AT73: 0 | AU73: =SUM(AS73,AT73) -> 0 | AV73: 1786.4 | AW73: 3ro | AX73: 4to | AY73: Apoyar involucrar a los alumnos en las TIC.
A74: Otro (especifique) | B74: Pantalla interactiva, 75 M5A, conectividad rj-45 hdmi y vga, 165 x 92.8 cm, resolución de pantalla de 3840 x 2160 pixeles y retroliuminación led, sistema operativo Android 8.0 preinstalado. | C74: 0 | D74: 0 | E74: 0 | F74: 0 | G74: =SUM(E74,F74) -> 0 | H74: 0 | I74: 0 | J74: 0 | K74: 0 | L74: =SUM(J74,K74) -> 0 | M74: 6 | N74: 6 | O74: 165 | P74: 269 | Q74: =SUM(O74,P74) -> 434 | R74: 0 | S74: 0 | T74: 0 | U74: 0 | V74: =SUM(T74,U74) -> 0 | W74: 0 | X74: 0 | Y74: 0 | Z74: 0 | AA74: =SUM(Y74,Z74) -> 0 | AB74: 0 | AC74: 0 | AD74: 0 | AE74: 0 | AF74: =SUM(AD74,AE74) -> 0 | AG74: 0 | AH74: 0 | AI74: 0 | AJ74: 0 | AK74: =SUM(AI74,AJ74) -> 0 | AL74: 0 | AM74: 0 | AN74: 0 | AO74: 0 | AP74: =SUM(AN74,AO74) -> 0 | AQ74: 0 | AR74: 0 | AS74: 0 | AT74: 0 | AU74: =SUM(AS74,AT74) -> 0 | AV74: 225000 | AW74: 3ro | AX74: 4to | AY74: Apoyo a las actividades académicas dentro del aula.
A75: Otro (especifique) | B75: Engargoladora, para arillo metálico y espiral. | C75: 1 | D75: 1 | E75: 11 | F75: 24 | G75: 35 | H75: 0 | I75: 0 | J75: 0 | K75: 0 | L75: 0 | M75: 0 | N75: 0 | O75: 0 | P75: 0 | Q75: 0 | R75: 0 | S75: 0 | T75: 0 | U75: 0 | V75: 0 | W75: 0 | X75: 0 | Y75: 0 | Z75: 0 | AA75: 0 | AB75: 0 | AC75: 0 | AD75: 0 | AE75: 0 | AF75: 0 | AG75: 0 | AH75: 0 | AI75: 0 | AJ75: 0 | AK75: 0 | AL75: 0 | AM75: 0 | AN75: 0 | AO75: 0 | AP75: 0 | AQ75: 0 | AR75: 0 | AS75: 0 | AT75: 0 | AU75: 0 | AV75: 800 | AW75: 3ro | AX75: 4to | AY75: Diseño de material didáctico
A76: Otro (especifique) | B76: Magnificador de pantalla, 3d lupa black, 18 x 15 x 2 cm, inalámbrica con peso del producto de 1kg. | C76: 3 | D76: 1 | E76: 1 | F76: 2 | G76: 3 | H76: 0 | I76: 0 | J76: 0 | K76: 0 | L76: 0 | M76: 0 | N76: 0 | O76: 0 | P76: 0 | Q76: 0 | R76: 0 | S76: 0 | T76: 0 | U76: 0 | V76: 0 | W76: 0 | X76: 0 | Y76: 0 | Z76: 0 | AA76: 0 | AB76: 0 | AC76: 0 | AD76: 0 | AE76: 0 | AF76: 0 | AG76: 0 | AH76: 0 | AI76: 0 | AJ76: 0 | AK76: 0 | AL76: 0 | AM76: 0 | AN76: 0 | AO76: 0 | AP76: 0 | AQ76: 0 | AR76: 0 | AS76: 0 | AT76: 0 | AU76: 0 | AV76: 1008.68 | AW76: 3ro | AX76: 4to | AY76: Brindar herramientas que complementen la atención a los alumnos con discapacidad.
A77: Total | C77: =SUM(C66:C76) -> 50 | D77: 45 | E77: 300 | F77: 795 | G77: 1095 | H77: 0 | I77: 0 | J77: 0 | K77: 0 | L77: 0 | M77: 65 | N77: 64 | O77: 1124 | P77: 1771 | Q77: 2895 | R77: 2 | S77: 2 | T77: 66 | U77: 66 | V77: 132 | W77: 0 | X77: 0 | Y77: 0 | Z77: 0 | AA77: 0 | AB77: 0 | AC77: 0 | AD77: 0 | AE77: 0 | AF77: 0 | AG77: 0 | AH77: 0 | AI77: 0 | AJ77: 0 | AK77: 0 | AL77: 0 | AM77: 0 | AN77: 0 | AO77: 0 | AP77: 0 | AQ77: 0 | AR77: 0 | AS77: 0 | AT77: 0 | AU77: 0 | AV77: 1643430
A79: En caso de requerir alguna precisión o aclaración, describa brevemente:
A82: 3.6 Adquirir herramientas, utensilios, enseres domésticos y aparatos electrónicos que se requieren para impartir talleres laborales que se ofertan en los CAM laboral y con Formación para el Trabajo
A83: Recurso programado: | C83: ='Estrategia 2024'!H72 -> 1308924.8
A84: Remanente | C84: =C83-Q100 -> 0
G86: Focalizados CAM b con FpT | J86: ='Servicios EE 2024'!C28 -> 28 | L86: Focalizados CAM laboral | O86: ='Servicios EE 2024'!D26 -> 2
A87: Taller a equipar | B87: Herramienta, utensilio, mobiliario o aparato a adquirir | C87: Insumo para instalación, mantenimiento y/o reparación | G87: Cantidad a distribuir | H87: CAM básico con FpT | L87: Cantidad a distribuir | M87: CAM laboral | Q87: Presupuesto | T87: Trimestre de inicio | U87: Trimestre de término | V87: Propósito educativo (específico de los materiales a reproducir)
H88: SEE | I88: Estudiantes | M88: SEE | N88: Estudiantes
I89: M | J89: H | K89: T | N89: M | O89: H | P89: T
A90: Taller de lavandería | B90: 1 Lavadora, 1 Secadora, 1 Estante de metal (cesta) | G90: 6 | H90: 6 | I90: 93 | J90: 126 | K90: =SUM(I90,J90) -> 219 | L90: 0 | M90: 0 | N90: 0 | O90: 0 | P90: =SUM(N90,O90) -> 0 | Q90: 331424.8 | T90: 3ro | U90: 4to | V90: Desarrollo de habilidades para la operación de los equipos de lavar y secar, así como el uso de los materiales.
A91: Taller de Cocina | B91: 1 Juego de vaporeras, 1 Olla presto 6lts, 1 Sarten 6 lts con tapa, 100 Platos hondos, 100 platos extendidos, 100 vasos de vidrio, 100 tazas de ceramica, 100 juego de cubiertos, 2 tanques de gas, 1 cafetera 20 tazas, 1 licuadora industrial, 1 batidora de pedestal, 20 tenedores, 1 comal, 25 cucharas grandes, 15 cuchillos, 1 estufa industrial, 2 tablas para picar, 2 tarja doble tina | G91: 8 | H91: 8 | I91: 130 | J91: 180 | K91: =SUM(I91,J91) -> 310 | L91: 0 | M91: 0 | N91: 0 | O91: 0 | P91: =SUM(N91,O91) -> 0 | Q91: 151960 | T91: 3ro | U91: 4to | V91: Desarrollar saberes, habilidades y aptitudes en los alumnos con discapacidad de los CAM Laboral, para favorecer la inclusión en el ámbito laboral, para reforzar hábitos de higiene y seguridad, así como para distinguir los alimentos.
A92: Taller de repostería | B92: 1 Máquina para hacer churros, 1 crepera, 3 moldes para repostería, 10 mandiles, 1 cazo de cobre, 4 cucharon, 1 escurridor para aceite, 2 vitroleras plástico, 2 cucharones para agua, 5 tenazas, 1 freidora, 1 maquina palomera, 1 batidora industrial, 1 batería de sartenes, 1 moldes para pastel, 1 horno electrico, 1 licuadora, 1 batidora manual, 1 juego de tazas medidoras. | G92: 8 | H92: 8 | I92: 172 | J92: 265 | K92: 437 | L92: 0 | M92: 0 | N92: 0 | O92: 0 | P92: 0 | Q92: 210540 | T92: 3ro | U92: 4to | V92: Fortalecer habilidades laborales en los alumnos de CAM para la elaboración de repostería.
A93: Empaquetado | B93: 3 Pistola de silicón Industrial, 2 Cortadoras, 2 Tijeras eléctricas, 2 Selladora industrial, 1 Aparato para emplayado de alimentos | G93: 1 | H93: 1 | I93: 19 | J93: 26 | K93: 45 | L93: 0 | M93: 0 | N93: 0 | O93: 0 | P93: 0 | Q93: 12500 | T93: 3ro | U93: 4to | V93: Desarrollar en los alumnos habilidades para el empaquetado de alimentos.
A94: Manualidades | B94: 1 Enmicadora, 2 Guillotina | G94: 2 | H94: 2 | I94: 27 | J94: 33 | K94: 60 | L94: 0 | M94: 0 | N94: 0 | O94: 0 | P94: 0 | Q94: 8000 | T94: 3ro | U94: 4to | V94: Favorecer en los alumnos habilidades creativas
A95: Jardinería/Herramientas | B95: 1 Malla sombra 6x6, 2 Extintores, 1 Diablito, 1 Escalera de tripie 3 mts, 1 Tijeras para podar, 1 Asadones, 1 Carretilla, 1 Pala, 1 Desbrozadora, 1 Rastrillos, 1 Mangueras, 1 Caja de herramientas | G95: 5 | H95: 5 | I95: 161 | J95: 271 | K95: 432 | L95: 2 | M95: 2 | N95: 54 | O95: 67 | P95: 121 | Q95: 55500 | T95: 3ro | U95: 4to | V95: Desarrollo de habilidades para el manejo del suelo, las plantas y su cuidado.
A96: Carpintería | B96: 1 Lijadora de 1/4, 1 Martillo de carpintero, 1 Serruchos de costilla de hoja, 1 Juego de brocas p/router, 1 Cintas metricas, 1 Taladros de 3/8, Berbiqui, 1 Caladora eléctrica, 1 Clavadora neumática, 1 Pistola de aire, 1 Cepillos, 1 Escofinas, 1 Escuadras de 8", 1 Router dos manos, 1 Router una mano, 1 Compresor, 1 Pulidora, 1 Disco p/sierra diente diamante 10" entrada 5/8, 1 Sierra circular, 1 Taladro inhalámbrico, 1 Sierra de banco, 1 Sierra Ingletadora. | G96: 4 | H96: 4 | I96: 80 | J96: 122 | K96: 202 | L96: 2 | M96: 2 | N96: 54 | O96: 67 | P96: 121 | Q96: 35000 | T96: 3ro | U96: 4to | V96: Desarrollar habilidades necesarias para el oficio de trabajar y labrar la madera creando objetos útiles.
A97: Corte y confección | B97: 1 Máquina remalladora industrial de 5 hilos, 1 Máquina remalladora industrial MC 500E, 1 Máquina estampadora, 2 Plancha industrial de vapor | G97: 0 | H97: 0 | I97: 0 | J97: 0 | K97: 0 | L97: 2 | M97: 2 | N97: 54 | O97: 67 | P97: 121 | Q97: 38000 | T97: 3ro | U97: 4to | V97: Desarrollar habilidades y establecer prácticas de trabajo seguras y aprenda a manejar de manera adecuada y segura las herramientas y equipos básicos de prendas de vestir .
A98: Autolavado | B98: 1 Hidrolavadora, 1 Tanque espumador, 1 Aspirdora | G98: 1 | H98: 1 | I98: 14 | J98: 21 | K98: 35 | L98: 0 | M98: 0 | N98: 0 | O98: 0 | P98: 0 | Q98: 6000 | T98: 3ro | U98: 4to | V98: Desarrollar habilidades en los alumnos para el manejo de maquinaria y lavado de autos.
A99: Taller Panadería | B99: 1 Batidora industrial, 1 Licuadora industrial, 1 Estufa 6 quemadores, 1 Refrigerador, 1 Maquina para donas, 1 Freidora de aceite, 1 Microondas | G99: 7 | H99: 7 | I99: 97 | J99: 129 | K99: 226 | L99: 1 | M99: 1 | N99: 33 | O99: 33 | P99: 66 | Q99: 460000 | T99: 3ro | U99: 4to | V99: Fortalecer habilidades laborales en el manejo de electrodomésticos proporcionando oportunidades prácticas a los estudiantes que favorezcan su inclusión laboral.
A100: Total | G100: =SUM(G90:G99) -> 42 | H100: 42 | I100: 793 | J100: 1173 | K100: 1966 | L100: 7 | M100: 7 | N100: 195 | O100: 234 | P100: 429 | Q100: =SUM(Q90:Q99) -> 1308924.8
A102: En caso de requerir alguna precisión o aclaración, describa brevemente:
A105: 3.9 Dotar de mobiliario ordinario y/o adaptado para estudiantes con discapacidad
A106: Recurso programado: | C106: ='Estrategia 2024'!H76 -> 550637.21
A107: Remanente | C107: =C106-AV128 -> 0
C109: Focalizados USAER | F109: ='Servicios EE 2024'!B26 -> 81 | H109: Focalizados CAM básico | K109: ='Servicios EE 2024'!C26 -> 0 | M109: Focalizados CAM b con FpT | P109: ='Servicios EE 2024'!C28 -> 28 | R109: Focalizados CAM laboral | U109: ='Servicios EE 2024'!D26 -> 2 | W109: Focalizados CAPEP | Z109: ='Servicios EE 2024'!E26 -> 0 | AB109: Focalizados CRIE | AE109: ='Servicios EE 2024'!F26 -> 0 | AG109: Focalizados UOP | AJ109: ='Servicios EE 2024'!G26 -> 0 | AL109: Focalizados UAEBH | AO109: ='Servicios EE 2024'!H26 -> 0 | AQ109: Focalizados Otro | AT109: ='Servicios EE 2024'!I26 -> 0
A110: Especifique el tipo de mobiliario a adquirir | C110: Cantidad a distribuir | D110: USAER | H110: Cantidad a distribuir | I110: CAM básico | M110: Cantidad a distribuir | N110: CAM básico con FpT | R110: Cantidad a distribuir | S110: CAM laboral | W110: Cantidad a distribuir | X110: CAPEP | AB110: Cantidad a distribuir | AC110: CRIE | AG110: Cantidad a distribuir | AH110: UOP | AL110: Cantidad a distribuir | AM110: UAEBH | AQ110: Cantidad a distribuir | AR110: Otro | AV110: Presupuesto | AW110: Trimestre de inicio | AX110: Trimestre de término | AY110: Propósito educativo (específico del mobiliario a adquirir)
D111: SEE | E111: Estudiantes | I111: SEE | J111: Estudiantes | N111: SEE | O111: Estudiantes | S111: SEE | T111: Estudiantes | X111: SEE | Y111: Estudiantes | AC111: SEE | AD111: Estudiantes | AH111: SEE | AI111: Estudiantes | AM111: SEE | AN111: Estudiantes | AR111: SEE | AS111: Estudiantes
E112: M | F112: H | G112: T | J112: M | K112: H | L112: T | O112: M | P112: H | Q112: T | T112: M | U112: H | V112: T | Y112: M | Z112: H | AA112: T | AD112: M | AE112: H | AF112: T | AI112: M | AJ112: H | AK112: T | AN112: M | AO112: H | AP112: T | AS112: M | AT112: H | AU112: T
A113: Pintarrón 1.50 x90 cm | C113: 66 | D113: 14 | E113: 93 | F113: 238 | G113: =SUM(E113,F113) -> 331 | H113: 0 | I113: 0 | J113: 0 | K113: 0 | L113: =SUM(J113,K113) -> 0 | M113: 23 | N113: 9 | O113: 156 | P113: 268 | Q113: =SUM(O113,P113) -> 424 | R113: 0 | S113: 0 | T113: 0 | U113: 0 | V113: =SUM(T113,U113) -> 0 | W113: 0 | X113: 0 | Y113: 0 | Z113: 0 | AA113: =SUM(Y113,Z113) -> 0 | AB113: 0 | AC113: 0 | AD113: 0 | AE113: 0 | AF113: =SUM(AD113,AE113) -> 0 | AG113: 0 | AH113: 0 | AI113: 0 | AJ113: 0 | AK113: =SUM(AI113,AJ113) -> 0 | AL113: 0 | AM113: 0 | AN113: 0 | AO113: 0 | AP113: =SUM(AN113,AO113) -> 0 | AQ113: 0 | AR113: 0 | AS113: 0 | AT113: 0 | AU113: =SUM(AS113,AT113) -> 0 | AV113: 22395.1 | AW113: 2do | AX113: 4to | AY113: Favorecer el aprendizaje visual y la comunicación mediante representaciones gráficas, esquemas, dibujos, etc., durante las actividades aúlicas.
A114: Sillas adaptadas para PCI | C114: 0 | D114: 0 | E114: 0 | F114: 0 | G114: =SUM(E114,F114) -> 0 | H114: 0 | I114: 0 | J114: 0 | K114: 0 | L114: =SUM(J114,K114) -> 0 | M114: 5 | N114: 1 | O114: 13 | P114: 23 | Q114: =SUM(O114,P114) -> 36 | R114: 0 | S114: 0 | T114: 0 | U114: 0 | V114: =SUM(T114,U114) -> 0 | W114: 0 | X114: 0 | Y114: 0 | Z114: 0 | AA114: =SUM(Y114,Z114) -> 0 | AB114: 0 | AC114: 0 | AD114: 0 | AE114: 0 | AF114: =SUM(AD114,AE114) -> 0 | AG114: 0 | AH114: 0 | AI114: 0 | AJ114: 0 | AK114: =SUM(AI114,AJ114) -> 0 | AL114: 0 | AM114: 0 | AN114: 0 | AO114: 0 | AP114: =SUM(AN114,AO114) -> 0 | AQ114: 0 | AR114: 0 | AS114: 0 | AT114: 0 | AU114: =SUM(AS114,AT114) -> 0 | AV114: 48610 | AW114: 2do | AX114: 4to | AY114: Brindar comodidad y soporte postural adecuado a los alumnos con discapacidad motora durante la jornada escolar, favoreciendo la atención y motivación hacia el aprendizaje.
A115: Mesa trapezoidal | C115: 0 | D115: 0 | E115: 0 | F115: 0 | G115: 0 | H115: 0 | I115: 0 | J115: 0 | K115: 0 | L115: 0 | M115: 10 | N115: 1 | O115: 29 | P115: 55 | Q115: 84 | R115: 0 | S115: 0 | T115: 0 | U115: 0 | V115: 0 | W115: 0 | X115: 0 | Y115: 0 | Z115: 0 | AA115: 0 | AB115: 0 | AC115: 0 | AD115: 0 | AE115: 0 | AF115: 0 | AG115: 0 | AH115: 0 | AI115: 0 | AJ115: 0 | AK115: 0 | AL115: 0 | AM115: 0 | AN115: 0 | AO115: 0 | AP115: 0 | AQ115: 0 | AR115: 0 | AS115: 0 | AT115: 0 | AU115: 0 | AV115: 26650 | AW115: 2do | AX115: 4to | AY115: Facilitar el trabajo colaborativo y la interacción entre alumnos y docentes en actividades grupales.
A116: Cambiador de pañal de adulto para baño | C116: 0 | D116: 0 | E116: 0 | F116: 0 | G116: 0 | H116: 0 | I116: 0 | J116: 0 | K116: 0 | L116: 0 | M116: 6 | N116: 4 | O116: 62 | P116: 94 | Q116: 156 | R116: 0 | S116: 0 | T116: 0 | U116: 0 | V116: 0 | W116: 0 | X116: 0 | Y116: 0 | Z116: 0 | AA116: 0 | AB116: 0 | AC116: 0 | AD116: 0 | AE116: 0 | AF116: 0 | AG116: 0 | AH116: 0 | AI116: 0 | AJ116: 0 | AK116: 0 | AL116: 0 | AM116: 0 | AN116: 0 | AO116: 0 | AP116: 0 | AQ116: 0 | AR116: 0 | AS116: 0 | AT116: 0 | AU116: 0 | AV116: 10000 | AW116: 2do | AX116: 4to | AY116: Proporcionar un espacio seguro, higiénico y digno para el cambio de pañales de alumnos con discapacidades severas en los CAM.
A117: Sillas para alumno | C117: 0 | D117: 0 | E117: 0 | F117: 0 | G117: 0 | H117: 0 | I117: 0 | J117: 0 | K117: 0 | L117: 0 | M117: 40 | N117: 1 | O117: 29 | P117: 51 | Q117: 80 | R117: 0 | S117: 0 | T117: 0 | U117: 0 | V117: 0 | W117: 0 | X117: 0 | Y117: 0 | Z117: 0 | AA117: 0 | AB117: 0 | AC117: 0 | AD117: 0 | AE117: 0 | AF117: 0 | AG117: 0 | AH117: 0 | AI117: 0 | AJ117: 0 | AK117: 0 | AL117: 0 | AM117: 0 | AN117: 0 | AO117: 0 | AP117: 0 | AQ117: 0 | AR117: 0 | AS117: 0 | AT117: 0 | AU117: 0 | AV117: 37000 | AW117: 2do | AX117: 4to | AY117: Ofrecer un mobiliario ergonómico y adecuado para las necesidades de los estudiantes, que pueda ser utilizado para las actividades de aprendizaje en el aula.
A118: Mesas binarias | C118: 0 | D118: 0 | E118: 0 | F118: 0 | G118: 0 | H118: 0 | I118: 0 | J118: 0 | K118: 0 | L118: 0 | M118: 20 | N118: 1 | O118: 29 | P118: 51 | Q118: 80 | R118: 0 | S118: 0 | T118: 0 | U118: 0 | V118: 0 | W118: 0 | X118: 0 | Y118: 0 | Z118: 0 | AA118: 0 | AB118: 0 | AC118: 0 | AD118: 0 | AE118: 0 | AF118: 0 | AG118: 0 | AH118: 0 | AI118: 0 | AJ118: 0 | AK118: 0 | AL118: 0 | AM118: 0 | AN118: 0 | AO118: 0 | AP118: 0 | AQ118: 0 | AR118: 0 | AS118: 0 | AT118: 0 | AU118: 0 | AV118: 54392 | AW118: 2do | AX118: 4to | AY118: Promover el trabajo en parejas y la colaboración entre compañeros, que sea adecuado al espacio de las aulas de CAM.
A119: Mesas grandes para taller | C119: 0 | D119: 0 | E119: 0 | F119: 0 | G119: 0 | H119: 0 | I119: 0 | J119: 0 | K119: 0 | L119: 0 | M119: 3 | N119: 1 | O119: 29 | P119: 51 | Q119: 80 | R119: 0 | S119: 0 | T119: 0 | U119: 0 | V119: 0 | W119: 0 | X119: 0 | Y119: 0 | Z119: 0 | AA119: 0 | AB119: 0 | AC119: 0 | AD119: 0 | AE119: 0 | AF119: 0 | AG119: 0 | AH119: 0 | AI119: 0 | AJ119: 0 | AK119: 0 | AL119: 0 | AM119: 0 | AN119: 0 | AO119: 0 | AP119: 0 | AQ119: 0 | AR119: 0 | AS119: 0 | AT119: 0 | AU119: 0 | AV119: 67426.56 | AW119: 2do | AX119: 4to | AY119: Facilitar actividades prácticas, manuales y de desarrollo de habilidades en los talleres, buscando mayor calidad e higiene en la elaboración de productos, durante la capacitación laboral.
A120: Silla ordinaria | C120: 0 | D120: 0 | E120: 0 | F120: 0 | G120: =SUM(E120,F120) -> 0 | H120: 0 | I120: 0 | J120: 0 | K120: 0 | L120: =SUM(J120,K120) -> 0 | M120: 37 | N120: 3 | O120: 48 | P120: 67 | Q120: =SUM(O120,P120) -> 115 | R120: 0 | S120: 0 | T120: 0 | U120: 0 | V120: =SUM(T120,U120) -> 0 | W120: 0 | X120: 0 | Y120: 0 | Z120: 0 | AA120: =SUM(Y120,Z120) -> 0 | AB120: 0 | AC120: 0 | AD120: 0 | AE120: 0 | AF120: =SUM(AD120,AE120) -> 0 | AG120: 0 | AH120: 0 | AI120: 0 | AJ120: 0 | AK120: =SUM(AI120,AJ120) -> 0 | AL120: 0 | AM120: 0 | AN120: 0 | AO120: 0 | AP120: =SUM(AN120,AO120) -> 0 | AQ120: 0 | AR120: 0 | AS120: 0 | AT120: 0 | AU120: =SUM(AS120,AT120) -> 0 | AV120: 76775 | AW120: 2do | AX120: 4to | AY120: Proveer de mobiliario básico para el aula, adaptable a diferentes necesidades y edades de los alumnos.
A121: Mesa ordinaria | C121: 0 | D121: 0 | E121: 0 | F121: 0 | G121: 0 | H121: 0 | I121: 0 | J121: 0 | K121: 0 | L121: 0 | M121: 14 | N121: 3 | O121: 48 | P121: 67 | Q121: =SUM(O121,P121) -> 115 | R121: 0 | S121: 0 | T121: 0 | U121: 0 | V121: 0 | W121: 0 | X121: 0 | Y121: 0 | Z121: 0 | AA121: 0 | AB121: 0 | AC121: 0 | AD121: 0 | AE121: 0 | AF121: 0 | AG121: 0 | AH121: 0 | AI121: 0 | AJ121: 0 | AK121: 0 | AL121: 0 | AM121: 0 | AN121: 0 | AO121: 0 | AP121: 0 | AQ121: 0 | AR121: 0 | AS121: 0 | AT121: 0 | AU121: 0 | AV121: 33292 | AW121: 2do | AX121: 4to | AY121: Proveer mobiliario básico que brinde una superficie plana de trabajo para actividades de aprendizaje grupales e individuales en el aula.
A122: Atril de madera | C122: 0 | D122: 0 | E122: 0 | F122: 0 | G122: 0 | H122: 0 | I122: 0 | J122: 0 | K122: 0 | L122: 0 | M122: 1 | N122: 1 | O122: 19 | P122: 26 | Q122: =SUM(O122,P122) -> 45 | R122: 0 | S122: 0 | T122: 0 | U122: 0 | V122: 0 | W122: 0 | X122: 0 | Y122: 0 | Z122: 0 | AA122: 0 | AB122: 0 | AC122: 0 | AD122: 0 | AE122: 0 | AF122: 0 | AG122: 0 | AH122: 0 | AI122: 0 | AJ122: 0 | AK122: 0 | AL122: 0 | AM122: 0 | AN122: 0 | AO122: 0 | AP122: 0 | AQ122: 0 | AR122: 0 | AS122: 0 | AT122: 0 | AU122: 0 | AV122: 1578.7 | AW122: 2do | AX122: 4to | AY122: Apoyar la lectura, exposiciones y presentaciones de los alumnos y maestros durante actividades escolares, cívicas, culturales y deportivas.
A123: Bipedestador | C123: 0 | D123: 0 | E123: 0 | F123: 0 | G123: 0 | H123: 0 | I123: 0 | J123: 0 | K123: 0 | L123: 0 | M123: 3 | N123: 1 | O123: 5 | P123: 2 | Q123: =SUM(O123,P123) -> 7 | R123: 0 | S123: 0 | T123: 0 | U123: 0 | V123: 0 | W123: 0 | X123: 0 | Y123: 0 | Z123: 0 | AA123: 0 | AB123: 0 | AC123: 0 | AD123: 0 | AE123: 0 | AF123: 0 | AG123: 0 | AH123: 0 | AI123: 0 | AJ123: 0 | AK123: 0 | AL123: 0 | AM123: 0 | AN123: 0 | AO123: 0 | AP123: 0 | AQ123: 0 | AR123: 0 | AS123: 0 | AT123: 0 | AU123: 0 | AV123: 37050 | AW123: 2do | AX123: 4to | AY123: Favorecer la posición erguida de alumnos con discapacidades motoras para promover la participación y motivación en las diversas actividades escolares.
A124: Silla de plástico | C124: 0 | D124: 0 | E124: 0 | F124: 0 | G124: 0 | H124: 0 | I124: 0 | J124: 0 | K124: 0 | L124: 0 | M124: 10 | N124: 1 | O124: 15 | P124: 20 | Q124: =SUM(O124,P124) -> 35 | R124: 0 | S124: 0 | T124: 0 | U124: 0 | V124: 0 | W124: 0 | X124: 0 | Y124: 0 | Z124: 0 | AA124: 0 | AB124: 0 | AC124: 0 | AD124: 0 | AE124: 0 | AF124: 0 | AG124: 0 | AH124: 0 | AI124: 0 | AJ124: 0 | AK124: 0 | AL124: 0 | AM124: 0 | AN124: 0 | AO124: 0 | AP124: 0 | AQ124: 0 | AR124: 0 | AS124: 0 | AT124: 0 | AU124: 0 | AV124: 9338 | AW124: 2do | AX124: 4to | AY124: Proveer mobiliario adecuado al tamaño de los niños en edad preescolar, que les permita una posición ergonómica durante las actividades de aprendizaje en el aula.
A125: Mesa de acero inoxidable | C125: 0 | D125: 0 | E125: 0 | F125: 0 | G125: 0 | H125: 0 | I125: 0 | J125: 0 | K125: 0 | L125: 0 | M125: 5 | N125: 2 | O125: 66 | P125: 105 | Q125: 171 | R125: 10 | S125: 1 | T125: 33 | U125: 33 | V125: 66 | W125: 0 | X125: 0 | Y125: 0 | Z125: 0 | AA125: 0 | AB125: 0 | AC125: 0 | AD125: 0 | AE125: 0 | AF125: 0 | AG125: 0 | AH125: 0 | AI125: 0 | AJ125: 0 | AK125: 0 | AL125: 0 | AM125: 0 | AN125: 0 | AO125: 0 | AP125: 0 | AQ125: 0 | AR125: 0 | AS125: 0 | AT125: 0 | AU125: 0 | AV125: 62257.75 | AW125: 2do | AX125: 4to | AY125: Facilitar actividades prácticas, manuales y de desarrollo de habilidades en los talleres, buscando mayor calidad e higiene en la elaboración de productos, durante la capacitación laboral.
A126: Estantes metálicos | C126: 0 | D126: 0 | E126: 0 | F126: 0 | G126: 0 | H126: 0 | I126: 0 | J126: 0 | K126: 0 | L126: 0 | M126: 21 | N126: 5 | O126: 66 | P126: 108 | Q126: 174 | R126: 0 | S126: 0 | T126: 0 | U126: 0 | V126: 0 | W126: 0 | X126: 0 | Y126: 0 | Z126: 0 | AA126: 0 | AB126: 0 | AC126: 0 | AD126: 0 | AE126: 0 | AF126: 0 | AG126: 0 | AH126: 0 | AI126: 0 | AJ126: 0 | AK126: 0 | AL126: 0 | AM126: 0 | AN126: 0 | AO126: 0 | AP126: 0 | AQ126: 0 | AR126: 0 | AS126: 0 | AT126: 0 | AU126: 0 | AV126: 59978.1 | AW126: 2do | AX126: 4to | AY126: Proveer mobiliario básico y adecuado a los espacios de las aulas, para que los alumnos y maestros puedan organizar y almacenar materiales didácticos, libros, recursos, etc.
A127: Mueble organizador de madera | C127: 0 | D127: 0 | E127: 0 | F127: 0 | G127: 0 | H127: 0 | I127: 0 | J127: 0 | K127: 0 | L127: 0 | M127: 2 | N127: 1 | O127: 28 | P127: 43 | Q127: 71 | R127: 0 | S127: 0 | T127: 0 | U127: 0 | V127: 0 | W127: 0 | X127: 0 | Y127: 0 | Z127: 0 | AA127: 0 | AB127: 0 | AC127: 0 | AD127: 0 | AE127: 0 | AF127: 0 | AG127: 0 | AH127: 0 | AI127: 0 | AJ127: 0 | AK127: 0 | AL127: 0 | AM127: 0 | AN127: 0 | AO127: 0 | AP127: 0 | AQ127: 0 | AR127: 0 | AS127: 0 | AT127: 0 | AU127: 0 | AV127: 3894 | AW127: 2do | AX127: 4to | AY127: Proveer mobiliario básico y adecuado a los espacios de las aulas, que permita mantener el orden y la accesibilidad de materiales educativos para alumnos y maestros.
A128: Total | C128: =SUM(C113:C127) -> 66 | D128: 14 | E128: 93 | F128: 238 | G128: 331 | H128: 0 | I128: 0 | J128: 0 | K128: 0 | L128: 0 | M128: 200 | N128: 35 | O128: 642 | P128: 1031 | Q128: 1673 | R128: 10 | S128: 1 | T128: 33 | U128: 33 | V128: 66 | W128: 0 | X128: 0 | Y128: 0 | Z128: 0 | AA128: 0 | AB128: 0 | AC128: 0 | AD128: 0 | AE128: 0 | AF128: 0 | AG128: 0 | AH128: 0 | AI128: 0 | AJ128: 0 | AK128: 0 | AL128: 0 | AM128: 0 | AN128: 0 | AO128: 0 | AP128: 0 | AQ128: 0 | AR128: 0 | AS128: 0 | AT128: 0 | AU128: 0 | AV128: 550637.21
A130: En caso de requerir alguna precisión o aclaración, describa brevemente:
A133: 3.10 Adquirir equipamiento y materiales para aulas multisensoriales
A134: Recurso programado: | C134: ='Estrategia 2024'!H77 -> 440000
A135: Remanente | C135: =C134-R145 -> 0
C137: Focalizados CAM básico | F137: ='Servicios EE 2024'!C26 -> 0 | H137: Focalizados CAM b con FpT | K137: ='Servicios EE 2024'!C28 -> 28 | M137: Focalizados CAM laboral | P137: ='Servicios EE 2024'!D26 -> 2
A138: Marque con "X" cuando sea aula de nueva creación | B138: Material a adquirir | C138: Cantidad a distribuir | D138: CAM básico | H138: Cantidad a distribuir | I138: CAM básico con FpT | M138: Cantidad a distribuir | N138: CAM laboral | R138: Presupuesto | U138: Trimestre de inicio | V138: Trimestre de término | W138: Propósito educativo (específico de los materiales a adquirir)
D139: SEE | E139: Estudiantes | I139: SEE | J139: Estudiantes | N139: SEE | O139: Estudiantes
E140: M | F140: H | G140: T | J140: M | K140: H | L140: T | O140: M | P140: H | Q140: T
B141: PAQUETE 1 1 COLUMPIO GIRATORIO DE 100 A 300 KGS; 1 COLUMPIO RECTANGULAR 1 METRO POR 60 CMS; 1 COLUMPIO DE DISCO; 1 COLUMPIO DE CUERDA DE 2 MTS; 2 ESPALDERA HORIZONTAL Y VERTICAL; 5 PELOTAS DE PESO; 5 COLCHONETAS DE 2 X 2; 2 TRAMPOLÍN DE 90 CMS DE DIAMETRO; 1 BRINCOLIN 3 METROS DE DIAMETRO; 3 PELOTA DE EQUILIBRIO; 1 RULO DE ESTIMULACIÓN DE 1 METRO DE DIAMETRO; 2 PISTOLA DE MASAJE; 2 PELOTA DE BOBATH 75 CM; 1 ESPEJO DE PARED; | C141: 0 | D141: 0 | E141: 0 | F141: 0 | G141: =SUM(E141,F141) -> 0 | H141: 10 | I141: 10 | J141: 208 | K141: 287 | L141: =SUM(J141,K141) -> 495 | M141: 0 | N141: 0 | O141: 0 | P141: 0 | Q141: =SUM(O141,P141) -> 0 | R141: 440000 | U141: 3ro | V141: 4to | W141: Estimular los sentidos de los alumnos con discapacidad a traves de una variedad de experiencias multisensoriales.
C142: 0 | D142: 0 | E142: 0 | F142: 0 | G142: =SUM(E142,F142) -> 0 | H142: 0 | I142: 0 | J142: 0 | K142: 0 | L142: =SUM(J142,K142) -> 0 | M142: 0 | N142: 0 | O142: 0 | P142: 0 | Q142: =SUM(O142,P142) -> 0
C143: 0 | D143: 0 | E143: 0 | F143: 0 | G143: 0 | H143: 0 | I143: 0 | J143: 0 | K143: 0 | L143: 0 | M143: 0 | N143: 0 | O143: 0 | P143: 0 | Q143: 0
C144: 0 | D144: 0 | E144: 0 | F144: 0 | G144: 0 | H144: 0 | I144: 0 | J144: 0 | K144: 0 | L144: 0 | M144: 0 | N144: 0 | O144: 0 | P144: 0 | Q144: 0
A145: =COUNTIF(A141:A144,"X") -> 0 | B145: Total | C145: =SUM(C141:C144) -> 0 | D145: 0 | E145: 0 | F145: 0 | G145: 0 | H145: 10 | I145: 10 | J145: 208 | K145: 287 | L145: 495 | M145: 0 | N145: 0 | O145: 0 | P145: 0 | Q145: 0 | R145: =SUM(R141:T144) -> 440000
A147: En caso de requerir alguna precisión o aclaración, describa brevemente:

Sheet 3. Equipamiento espec. (AS)
AG1: Subsecretaría de Educación Básica Dirección General de Desarrollo Curricular Dirección de Fortalecimiento Curricular para la Formación Personal y Social en la Educación Básica Educación Especial
A6: Componente: 3. Equipamiento específico en beneficio de estudiantes con aptitudes sobresalientes
A7: Para garantizar el cumplimiento de los objetivos del PFSEE las AEL podrán destinar hasta un 80% del recurso, de acuerdo con lo estipulado en las reglas de operación 2024
A9: 3.11 Dotar de material didáctico especializado para estudiantes con aptitudes sobresalientes
A10: Recurso programado: | C10: ='Estrategia 2024'!W67 -> 677638.02
A11: Remanente | C11: =C10-AG24 -> 0
C13: Focalizados USAER | F13: ='Servicios EE 2024'!N26 -> 81 | H13: Focalizados CAPEP | K13: ='Servicios EE 2024'!O26 -> 0 | M13: Focalizados CRIE | P13: ='Servicios EE 2024'!P26 -> 0 | R13: Focalizados UOP | U13: ='Servicios EE 2024'!Q26 -> 0 | W13: Focalizados UAEBH | Z13: ='Servicios EE 2024'!R26 -> 0 | AB13: Focalizados Otro | AE13: ='Servicios EE 2024'!S26 -> 0
A14: Tipo de materiales (seleccione) | B14: Material a adquirir | C14: Cantidad a distribuir | D14: USAER | H14: Cantidad a distribuir | I14: CAPEP | M14: Cantidad a distribuir | N14: CRIE | R14: Cantidad a distribuir | S14: UOP | W14: Cantidad a distribuir | X14: UAEBH | AB14: Cantidad a distribuir | AC14: Otro | AG14: Presupuesto | AH14: Trimestre de inicio | AI14: Trimestre de término | AJ14: Propósito educativo (específico del material a adquirir)
D15: SEE | E15: Estudiantes | I15: SEE | J15: Estudiantes | N15: SEE | O15: Estudiantes | S15: SEE | T15: Estudiantes | X15: SEE | Y15: Estudiantes | AC15: SEE | AD15: Estudiantes
E16: M | F16: H | G16: T | J16: M | K16: H | L16: T | O16: M | P16: H | Q16: T | T16: M | U16: H | V16: T | Y16: M | Z16: H | AA16: T | AD16: M | AE16: H | AF16: T
A17: Otro (especifique) | B17: 1 Kit de robótica preescolar | C17: 48 | D17: 16 | E17: 32 | F17: 54 | G17: =SUM(E17,F17) -> 86 | H17: 0 | I17: 0 | J17: 0 | K17: 0 | L17: =SUM(J17,K17) -> 0 | M17: 0 | N17: 0 | O17: 0 | P17: 0 | Q17: =SUM(O17,P17) -> 0 | R17: 0 | S17: 0 | T17: 0 | U17: 0 | V17: =SUM(T17,U17) -> 0 | W17: 0 | X17: 0 | Y17: 0 | Z17: 0 | AA17: =SUM(Y17,Z17) -> 0 | AB17: 0 | AC17: 0 | AD17: 0 | AE17: 0 | AF17: =SUM(AD17,AE17) -> 0 | AG17: 77952 | AH17: 3ro | AI17: 4to | AJ17: Estimular el aprendizaje temprano de habilidades como el pensamiento lógico, resolución de problemas, motricidad fina y alfabetización tecnológica de manera lúdica.
A18: Otro (especifique) | B18: Paquete con 6 kit de robótica primaria | C18: 37 | D18: 37 | E18: 79 | F18: 94 | G18: =SUM(E18,F18) -> 173 | H18: 0 | I18: 0 | J18: 0 | K18: 0 | L18: =SUM(J18,K18) -> 0 | M18: 0 | N18: 0 | O18: 0 | P18: 0 | Q18: =SUM(O18,P18) -> 0 | R18: 0 | S18: 0 | T18: 0 | U18: 0 | V18: =SUM(T18,U18) -> 0 | W18: 0 | X18: 0 | Y18: 0 | Z18: 0 | AA18: =SUM(Y18,Z18) -> 0 | AB18: 0 | AC18: 0 | AD18: 0 | AE18: 0 | AF18: =SUM(AD18,AE18) -> 0 | AG18: 38628 | AH18: 3ro | AI18: 4to | AJ18: Que los alumnos con aptitudes sobresalientes exploren su creatividad, diseñen prototipos y pongan en práctica ideas innovadoras de una manera aplicada y tangible, lo que les permite adquirir un aprendizaje más profundo de ciencias, tecnología, ingeniería y matemáticas.
A19: Otro (especifique) | B19: 1 Kit de robótica secundaria | C19: 20 | D19: 6 | E19: 19 | F19: 15 | G19: 34 | H19: 0 | I19: 0 | J19: 0 | K19: 0 | L19: 0 | M19: 0 | N19: 0 | O19: 0 | P19: 0 | Q19: 0 | R19: 0 | S19: 0 | T19: 0 | U19: 0 | V19: 0 | W19: 0 | X19: 0 | Y19: 0 | Z19: 0 | AA19: 0 | AB19: 0 | AC19: 0 | AD19: 0 | AE19: 0 | AF19: 0 | AG19: 487428.02 | AH19: 3ro | AI19: 4to | AJ19: Brindar oportunidades enriquecedoras a los alumnos con aptitudes sobresalientes, desafiándolos y motivándolos a descubrir sus intereses y habilidades en campos STEM específicos, así como el desarrollo de pensamiento crítico y creativo.
A20: Juegos de estrategia | B20: Paquete: 1 backamon, 1 pictionary, 1 turista mundial, 1 uno, 1 rompecabezas de madera de 24 piezas. | C20: 37 | D20: 37 | E20: 261 | F20: 287 | G20: 548 | H20: 0 | I20: 0 | J20: 0 | K20: 0 | L20: 0 | M20: 0 | N20: 0 | O20: 0 | P20: 0 | Q20: 0 | R20: 0 | S20: 0 | T20: 0 | U20: 0 | V20: 0 | W20: 0 | X20: 0 | Y20: 0 | Z20: 0 | AA20: 0 | AB20: 0 | AC20: 0 | AD20: 0 | AE20: 0 | AF20: 0 | AG20: 73630 | AH20: 3ro | AI20: 4to | AJ20: Estimular en los alumnos con aptitudes sobresalientes el desarrollo del pensamiento divergente, lógico y estratégico, así como habilidades sociales y emocionales que enriquezcan sus procesos de aprendizaje en las aulas.
C21: 0 | D21: 0 | E21: 0 | F21: 0 | G21: 0 | H21: 0 | I21: 0 | J21: 0 | K21: 0 | L21: 0 | M21: 0 | N21: 0 | O21: 0 | P21: 0 | Q21: 0 | R21: 0 | S21: 0 | T21: 0 | U21: 0 | V21: 0 | W21: 0 | X21: 0 | Y21: 0 | Z21: 0 | AA21: 0 | AB21: 0 | AC21: 0 | AD21: 0 | AE21: 0 | AF21: 0
C22: 0 | D22: 0 | E22: 0 | F22: 0 | G22: 0 | H22: 0 | I22: 0 | J22: 0 | K22: 0 | L22: 0 | M22: 0 | N22: 0 | O22: 0 | P22: 0 | Q22: 0 | R22: 0 | S22: 0 | T22: 0 | U22: 0 | V22: 0 | W22: 0 | X22: 0 | Y22: 0 | Z22: 0 | AA22: 0 | AB22: 0 | AC22: 0 | AD22: 0 | AE22: 0 | AF22: 0
C23: 0 | D23: 0 | E23: 0 | F23: 0 | G23: 0 | H23: 0 | I23: 0 | J23: 0 | K23: 0 | L23: 0 | M23: 0 | N23: 0 | O23: 0 | P23: 0 | Q23: 0 | R23: 0 | S23: 0 | T23: 0 | U23: 0 | V23: 0 | W23: 0 | X23: 0 | Y23: 0 | Z23: 0 | AA23: 0 | AB23: 0 | AC23: 0 | AD23: 0 | AE23: 0 | AF23: 0
A24: Total | C24: =SUM(C17:C23) -> 142 | D24: 96 | E24: 391 | F24: 450 | G24: 841 | H24: 0 | I24: 0 | J24: =SUM(J17:J23) -> 0 | K24: 0 | L24: 0 | M24: 0 | N24: 0 | O24: 0 | P24: 0 | Q24: 0 | R24: 0 | S24: 0 | T24: 0 | U24: 0 | V24: 0 | W24: 0 | X24: 0 | Y24: 0 | Z24: 0 | AA24: 0 | AB24: 0 | AC24: 0 | AD24: 0 | AE24: 0 | AF24: 0 | AG24: 677638.02
A26: En caso de requerir alguna precisión o aclaración, describa brevemente:
A27: La cantidad a distribuir se refiere kits de robótica, para los servicios indicados.
A29: 3.12 Dotar de material bibliográfico para estudiantes con aptitudes sobresalientes
A30: Recurso programado: | C30: ='Estrategia 2024'!W68 -> 719360
A31: Remanente | C31: =C30-AG42 -> 0
C33: Focalizados USAER | F33: ='Servicios EE 2024'!N26 -> 81 | H33: Focalizados CAPEP | K33: ='Servicios EE 2024'!O26 -> 0 | M33: Focalizados CRIE | P33: ='Servicios EE 2024'!P26 -> 0 | R33: Focalizados UOP | U33: ='Servicios EE 2024'!Q26 -> 0 | W33: Focalizados UAEBH | Z33: ='Servicios EE 2024'!R26 -> 0 | AB33: Focalizados Otro | AE33: ='Servicios EE 2024'!S26 -> 0
A34: Tipo de libros (seleccione) | C34: Cantidad a distribuir | D34: USAER | H34: Cantidad a distribuir | I34: CAPEP | M34: Cantidad a distribuir | N34: CRIE | R34: Cantidad a distribuir | S34: UOP | W34: Cantidad a distribuir | X34: UAEBH | AB34: Cantidad a distribuir | AC34: Otro | AG34: Presupuesto | AH34: Trimestre de inicio | AI34: Trimestre de término | AJ34: Propósito educativo (específico de la bibliografía a adquirir)
D35: SEE | E35: Estudiantes | I35: SEE | J35: Estudiantes | N35: SEE | O35: Estudiantes | S35: SEE | T35: Estudiantes | X35: SEE | Y35: Estudiantes | AC35: SEE | AD35: Estudiantes
E36: M | F36: H | G36: T | J36: M | K36: H | L36: T | O36: M | P36: H | Q36: T | T36: M | U36: H | V36: T | Y36: M | Z36: H | AA36: T | AD36: M | AE36: H | AF36: T
A37: Especializados en aptitudes sobresalientes | C37: 972 | D37: 81 | E37: 522 | F37: 561 | G37: =SUM(E37,F37) -> 1083 | H37: 0 | I37: 0 | J37: 0 | K37: 0 | L37: =SUM(J37,K37) -> 0 | M37: 0 | N37: 0 | O37: 0 | P37: 0 | Q37: =SUM(O37,P37) -> 0 | R37: 0 | S37: 0 | T37: 0 | U37: 0 | V37: =SUM(T37,U37) -> 0 | W37: 0 | X37: 0 | Y37: 0 | Z37: 0 | AA37: =SUM(Y37,Z37) -> 0 | AB37: 0 | AC37: 0 | AD37: 0 | AE37: 0 | AF37: =SUM(AD37,AE37) -> 0 | AG37: 369360 | AH37: 3ro | AI37: 4to | AJ37: Brindar material bibliográfico como herramienta que permita a los docentes proponer actividades que representen retos cognitivos, lógicos y de resolución de problemas para los alumnos con aptitudes sobresalientes, explorar temas a mayor profundidad, fomentar el pensamiento crítico, la creatividad y las habilidades de análisis y síntesis complejas.
A38: De literatura infantil | C38: 120 | D38: 10 | E38: 63 | F38: 66 | G38: =SUM(E38,F38) -> 129 | H38: 0 | I38: 0 | J38: 0 | K38: 0 | L38: =SUM(J38,K38) -> 0 | M38: 0 | N38: 0 | O38: 0 | P38: 0 | Q38: =SUM(O38,P38) -> 0 | R38: 0 | S38: 0 | T38: 0 | U38: 0 | V38: =SUM(T38,U38) -> 0 | W38: 0 | X38: 0 | Y38: 0 | Z38: 0 | AA38: =SUM(Y38,Z38) -> 0 | AB38: 0 | AC38: 0 | AD38: 0 | AE38: 0 | AF38: =SUM(AD38,AE38) -> 0 | AG38: 350000 | AH38: 3ro | AI38: 4to | AJ38: Fomentar en los alumnos con aptitudes sobresalientes el amor por la lectura, la imaginación y la creatividad mediante obras literarias de calidad, que a su vez desarrollen habilidades lingüísticas, de comprensión lectora y análisis crítico, como un medio para abordar temas profundos de manera atractiva.
C39: 0 | D39: 0 | E39: 0 | F39: 0 | G39: 0 | H39: 0 | I39: 0 | J39: 0 | K39: 0 | L39: 0 | M39: 0 | N39: 0 | O39: 0 | P39: 0 | Q39: 0 | R39: 0 | S39: 0 | T39: 0 | U39: 0 | V39: 0 | W39: 0 | X39: 0 | Y39: 0 | Z39: 0 | AA39: 0 | AB39: 0 | AC39: 0 | AD39: 0 | AE39: 0 | AF39: 0
C40: 0 | D40: 0 | E40: 0 | F40: 0 | G40: 0 | H40: 0 | I40: 0 | J40: 0 | K40: 0 | L40: 0 | M40: 0 | N40: 0 | O40: 0 | P40: 0 | Q40: 0 | R40: 0 | S40: 0 | T40: 0 | U40: 0 | V40: 0 | W40: 0 | X40: 0 | Y40: 0 | Z40: 0 | AA40: 0 | AB40: 0 | AC40: 0 | AD40: 0 | AE40: 0 | AF40: 0
C41: 0 | D41: 0 | E41: 0 | F41: 0 | G41: 0 | H41: 0 | I41: 0 | J41: 0 | K41: 0 | L41: 0 | M41: 0 | N41: 0 | O41: 0 | P41: 0 | Q41: 0 | R41: 0 | S41: 0 | T41: 0 | U41: 0 | V41: 0 | W41: 0 | X41: 0 | Y41: 0 | Z41: 0 | AA41: 0 | AB41: 0 | AC41: 0 | AD41: 0 | AE41: 0 | AF41: 0
A42: Total | C42: =SUM(C37:C41) -> 1092 | D42: 91 | E42: 585 | F42: 627 | G42: 1212 | H42: 0 | I42: 0 | J42: 0 | K42: 0 | L42: 0 | M42: 0 | N42: 0 | O42: 0 | P42: 0 | Q42: 0 | R42: 0 | S42: 0 | T42: 0 | U42: 0 | V42: 0 | W42: 0 | X42: 0 | Y42: 0 | Z42: 0 | AA42: 0 | AB42: 0 | AC42: =SUM(AC37:AC41) -> 0 | AD42: =SUM(AD37:AD41) -> 0 | AE42: =SUM(AE37:AE41) -> 0 | AF42: =SUM(AF37:AF41) -> 0 | AG42: =SUM(AG37:AG41) -> 719360
A44: En caso de requerir alguna precisión o aclaración, describa brevemente:
A45: La cantidad a distribuir se refiere a la libros de cada colección
A47: 3.14 Dotar de euipo tecnológico y/o multimedia para estudiantes con aptitudes sobresalientes
A48: Recurso programado: | C48: ='Estrategia 2024'!W70 -> 1095620.5
A49: Remanente | C49: =C48-AG65 -> 0
C51: Focalizados USAER | F51: ='Servicios EE 2024'!N26 -> 81 | H51: Focalizados CAPEP | K51: ='Servicios EE 2024'!O26 -> 0 | M51: Focalizados CRIE | P51: ='Servicios EE 2024'!P26 -> 0 | R51: Focalizados UOP | U51: ='Servicios EE 2024'!Q26 -> 0 | W51: Focalizados UAEBH | Z51: ='Servicios EE 2024'!R26 -> 0 | AB51: Focalizados Otro | AE51: ='Servicios EE 2024'!S26 -> 0
A52: Tipo de equipo (seleccione) | B52: Características generales de los equipos | C52: Cantidad a distribuir | D52: USAER | H52: Cantidad a distribuir | I52: CAPEP | M52: Cantidad a distribuir | N52: CRIE | R52: Cantidad a distribuir | S52: UOP | W52: Cantidad a distribuir | X52: UAEBH | AB52: Cantidad a distribuir | AC52: Otro | AG52: Presupuesto | AH52: Trimestre de inicio | AI52: Trimestre de término | AJ52: Propósito educativo (específico de los materiales)
D53: SEE | E53: Estudiantes | I53: SEE | J53: Estudiantes | N53: SEE | O53: Estudiantes | S53: SEE | T53: Estudiantes | X53: SEE | Y53: Estudiantes | AC53: SEE | AD53: Estudiantes
E54: M | F54: H | G54: T | J54: M | K54: H | L54: T | O54: M | P54: H | Q54: T | T54: M | U54: H | V54: T | Y54: M | Z54: H | AA54: T | AD54: M | AE54: H | AF54: T
A55: Cañón | B55: Proyector lcd, 3400 lúmenes, brillo de proyector, lámpara UHE 210 vatios, tecnología de proyección 3LCD, resolución de proyección XGA (1024 x 768), resolución de contraste 15000:1 dinámico | C55: 28 | D55: 28 | E55: 148 | F55: 164 | G55: =SUM(E55,F55) -> 312 | H55: 0 | I55: 0 | J55: 0 | K55: 0 | L55: =SUM(J55,K55) -> 0 | M55: 0 | N55: 0 | O55: 0 | P55: 0 | Q55: =SUM(O55,P55) -> 0 | R55: 0 | S55: 0 | T55: 0 | U55: 0 | V55: =SUM(T55,U55) -> 0 | W55: 0 | X55: 0 | Y55: 0 | Z55: 0 | AA55: =SUM(Y55,Z55) -> 0 | AB55: 0 | AC55: 0 | AD55: 0 | AE55: 0 | AF55: =SUM(AD55,AE55) -> 0 | AG55: 369740 | AH55: 3ro | AI55: 4to | AJ55: Facilitar presentaciones visuales atractivas y dinámicas para apoyar el aprendizaje de los alumnos mediante recursos multimedia.
A56: Equipo de cómputo | B56: Laptop, procesador intel core 15-1235 U 12 th gen (12 MB CACHÉ, 10 core 12 threads 4.40 Ghz turbo). Sistema operativo windows 11 home single en español. Microsoft office profesional 2021 en español. Adaptador de C.A.65 watt. Memoria ram 8 gb DDR4 3200 mhz. pantalla 16 pulgadas fhd (1920 x 1200) 60 hz led antirreflejo. teclado en español, tarjeta inhalámbrica wifi 6E AX211, 2X2, 802.11ax, bluetooth. | C56: 13 | D56: 13 | E56: 79 | F56: 96 | G56: =SUM(E56,F56) -> 175 | H56: 0 | I56: 0 | J56: 0 | K56: 0 | L56: =SUM(J56,K56) -> 0 | M56: 0 | N56: 0 | O56: 0 | P56: 0 | Q56: =SUM(O56,P56) -> 0 | R56: 0 | S56: 0 | T56: 0 | U56: 0 | V56: =SUM(T56,U56) -> 0 | W56: 0 | X56: 0 | Y56: 0 | Z56: 0 | AA56: =SUM(Y56,Z56) -> 0 | AB56: 0 | AC56: 0 | AD56: 0 | AE56: 0 | AF56: =SUM(AD56,AE56) -> 0 | AG56: 403000 | AH56: 3ro | AI56: 4to | AJ56: Proveer a los centros de trabajo de una herramienta portátil para que los docentes puedan acceder a recursos digitales, preparar materiales y realizar actividades interactivas en el aula.
A57: Equipo de cómputo | B57: PC escritorio: Intel®️ Core™️ i5 14500T vPro®️ (24MB cache, 14 cores, 20 threads, up to 4.8 GHz) Windows 11 Pro, inglés, español, francés y portugués de Brasil Intel®️ Graphics 8 GB: 1 x 8 GB, DDR5 256 GB, M.2 2230, PCIe NVMe, SSD, Class 35 23.8 pulgadas pantalla | C57: 3 | D57: 3 | E57: 2 | F57: 10 | G57: 12 | H57: 0 | I57: 0 | J57: 0 | K57: 0 | L57: 0 | M57: 0 | N57: 0 | O57: 0 | P57: 0 | Q57: 0 | R57: 0 | S57: 0 | T57: 0 | U57: 0 | V57: 0 | W57: 0 | X57: 0 | Y57: 0 | Z57: 0 | AA57: 0 | AB57: 0 | AC57: 0 | AD57: 0 | AE57: 0 | AF57: 0 | AG57: 70500 | AH57: 3ro | AI57: 4to | AJ57: Proveer herramienta de trabajo para tareas de productividad, investigación en línea, diseño de materiales didácticos y acceso a software educativo especializado.
A58: Impresora | B58: multifuncional de inyección de tinta continua, volumen de impresión mensual 500 páginas aproximadamente, velocidad de impresión en negro 10 ppm, velocidad de impresión a color 5 ppm, interface ethernet integrada. | C58: 23 | D58: 23 | E58: 120 | F58: 116 | G58: 236 | H58: 0 | I58: 0 | J58: 0 | K58: 0 | L58: 0 | M58: 0 | N58: 0 | O58: 0 | P58: 0 | Q58: 0 | R58: 0 | S58: 0 | T58: 0 | U58: 0 | V58: 0 | W58: 0 | X58: 0 | Y58: 0 | Z58: 0 | AA58: 0 | AB58: 0 | AC58: 0 | AD58: 0 | AE58: 0 | AF58: 0 | AG58: 230000 | AH58: 3ro | AI58: 4to | AJ58: Imprimir, escanear y fotocopiar materiales didácticos adaptados a las necesidades de los alumnos para diversas actividades de aprendizaje escolares y áulicas.
A59: Enmicadora | B59: Enmicadora térmica fusiónL ancho 22 cm carta, 3.5 milésimas, dimensiones 14, 2L, x 12,6 w x 41, 4h centímetros. | C59: 12 | D59: 12 | E59: 51 | F59: 61 | G59: 112 | H59: 0 | I59: 0 | J59: 0 | K59: 0 | L59: 0 | M59: 0 | N59: 0 | O59: 0 | P59: 0 | Q59: 0 | R59: 0 | S59: 0 | T59: 0 | U59: 0 | V59: 0 | W59: 0 | X59: 0 | Y59: 0 | Z59: 0 | AA59: 0 | AB59: 0 | AC59: 0 | AD59: 0 | AE59: 0 | AF59: 0 | AG59: 22380.5 | AH59: 3ro | AI59: 4to | AJ59: Plastificar y proteger materiales didácticos manipulativos para un uso prolongado de los alumnos y facilitar su limpieza.
C60: 0 | D60: 0 | E60: 0 | F60: 0 | G60: 0 | H60: 0 | I60: 0 | J60: 0 | K60: 0 | L60: 0 | M60: 0 | N60: 0 | O60: 0 | P60: 0 | Q60: 0 | R60: 0 | S60: 0 | T60: 0 | U60: 0 | V60: 0 | W60: 0 | X60: 0 | Y60: 0 | Z60: 0 | AA60: 0 | AB60: 0 | AC60: 0 | AD60: 0 | AE60: 0 | AF60: 0
C61: 0 | D61: 0 | E61: 0 | F61: 0 | G61: 0 | H61: 0 | I61: 0 | J61: 0 | K61: 0 | L61: 0 | M61: 0 | N61: 0 | O61: 0 | P61: 0 | Q61: 0 | R61: 0 | S61: 0 | T61: 0 | U61: 0 | V61: 0 | W61: 0 | X61: 0 | Y61: 0 | Z61: 0 | AA61: 0 | AB61: 0 | AC61: 0 | AD61: 0 | AE61: 0 | AF61: 0
C62: 0 | D62: 0 | E62: 0 | F62: 0 | G62: 0 | H62: 0 | I62: 0 | J62: 0 | K62: 0 | L62: 0 | M62: 0 | N62: 0 | O62: 0 | P62: 0 | Q62: 0 | R62: 0 | S62: 0 | T62: 0 | U62: 0 | V62: 0 | W62: 0 | X62: 0 | Y62: 0 | Z62: 0 | AA62: 0 | AB62: 0 | AC62: 0 | AD62: 0 | AE62: 0 | AF62: 0
C63: 0 | D63: 0 | E63: 0 | F63: 0 | G63: 0 | H63: 0 | I63: 0 | J63: 0 | K63: 0 | L63: 0 | M63: 0 | N63: 0 | O63: 0 | P63: 0 | Q63: 0 | R63: 0 | S63: 0 | T63: 0 | U63: 0 | V63: 0 | W63: 0 | X63: 0 | Y63: 0 | Z63: 0 | AA63: 0 | AB63: 0 | AC63: 0 | AD63: 0 | AE63: 0 | AF63: 0
C64: 0 | D64: 0 | E64: 0 | F64: 0 | G64: 0 | H64: 0 | I64: 0 | J64: 0 | K64: 0 | L64: 0 | M64: 0 | N64: 0 | O64: 0 | P64: 0 | Q64: 0 | R64: 0 | S64: 0 | T64: 0 | U64: 0 | V64: 0 | W64: 0 | X64: 0 | Y64: 0 | Z64: 0 | AA64: 0 | AB64: 0 | AC64: 0 | AD64: 0 | AE64: 0 | AF64: 0
A65: Total | C65: =SUM(C55:C64) -> 79 | D65: 79 | E65: 400 | F65: 447 | G65: 847 | H65: 0 | I65: 0 | J65: 0 | K65: 0 | L65: 0 | M65: 0 | N65: 0 | O65: 0 | P65: 0 | Q65: 0 | R65: 0 | S65: 0 | T65: 0 | U65: 0 | V65: 0 | W65: 0 | X65: 0 | Y65: 0 | Z65: 0 | AA65: 0 | AB65: 0 | AC65: 0 | AD65: 0 | AE65: 0 | AF65: 0 | AG65: 1095620.5
A67: En caso de requerir alguna precisión o aclaración, describa brevemente:

Sheet Gastos de Operación Local
A1: Subsecretaría de Educación Básica Dirección General de Desarrollo Curricular Dirección de Fortalecimiento Curricular para la Formación Personal y Social en la Educación Básica Educación Especial | Q1: Subsecretaría de Educación Básica Dirección General de Desarrollo Curricular Dirección de Fortalecimiento Curricular para la Formación Personal y Social en la Educación Básica Educación Especial
A6: Recurso programado: | B6: ='Estrategia 2024'!S14 -> 352970.55
A7: Remanente | B7: =B6-E17 -> 0
A9: Gastos de operación local 2024
A10: Tipo | B10: Descripción de las actividades a realizar en cada caso | C10: Trimestre de inicio | D10: Trimestre de término | E10: Presupuesto
A11: Planeación | B11: Análisis y atención de RO en reunion nacional con DGDC, Reunión de trabajo con estructura de supervisores y construcción del PAT | C11: 2do | D11: 2do | E11: 0
A12: Seguimiento y supervisión | B12: Viáticos, combustible, coffee brake, hospedaje y alimentación. | C12: 2do | D12: 4to | E12: 40843
A13: Evaluación | B13: Aplicación de evaluación externa de acuerdo 6.2 de RO | C13: 3ro | D13: 4to | E13: 150000
A14: Acciones de Contraloría Social | B14: Las actividades de Contraloría Social serán descritas en el Programa de Trabajo de la Instancia Ejecutora. | C14: 3ro | D14: 4to | E14: 72970.55
A15: Asistencia a reuniones convocadas por la DGDC | B15: Viáticos y pasajes aereos | C15: 3ro | D15: 4to | E15: 65034
A16: Distribución de materiales a los SEE focalizados | B16: viáticos, combustible, servicio de paquetería | C16: 3ro | D16: 4to | E16: 24123
E17: =SUM(E11:E16) -> 352970.55
A19: En caso de requerir alguna precisión o aclaración, describa brevemente:
A20: En el rubro de Contraloría Social, se programa un recurso menor al ejecicio 2023, a fin de evitar reintegro en este rubro de gasto, ya que se pretende citar en las sedes de las zonas escolares para la conformación de los Comités de Contraloria Social de CAM como de USAER.

Sheet Autorización
G1: Subsecretaría de Educación Básica Dirección General de Desarrollo Curricular Dirección de Fortalecimiento Curricular para la Formación Personal y Social en la Educación Básica
A6: AUTORIZACIÓN PLAN ANUAL DE TRABAJO 2024
A7: Validación de la Persona Coordinadora Local del PFSEE
A8: Nombre | D8: MPOE. J. CRUZ CONTRERAS MORENO
A9: Cargo | D9: COORDINADOR PFSEE
A10: Firma y sello
A12: Validación de la / del Responsable de Educación Especial subsistema Estatal
A13: Nombre
A14: Cargo
A15: Firma y sello
A17: Validación de la / del Responsable de Educación Especial subsistema Federal
A18: Nombre | D18: MPOE. J. CRUZ CONTRERAS MORENO
A19: Cargo | D19: JEFE DE DEPARTAMENTO DE EDUCACIÓN ESPECIAL
A20: Firma y sello
